Organisation Name,Organisation Code,Unique Ref No,Effective Date,Directorate where expenditure incurred,Suggested Supplier Name (inc. possible redactions) to be published,Payment Date,Net Amount,Purpose of spend,"Procurement Classification
(Higher Level)","Procurement Classification
(Lower Level)",CAPITAL / REVENUE,,,,,
Walsall Council,http://opendatacommunities.org/id/metropolitan-district-council/walsall ,WC147-1,28.02.2023,CHILDRENS,247 CARS (WILLENHALL) LIMITED,28/02/2023,"1,850.00",6241-Hire of Vehicle with Driver,TRANSPORT,DIRECT TRANSPORT COSTS,REVENUE
Walsall Council,http://opendatacommunities.org/id/metropolitan-district-council/walsall ,WC147-2,28.02.2023,CHILDRENS,247 CARS (WILLENHALL) LIMITED,28/02/2023,"1,850.00",6241-Hire of Vehicle with Driver,TRANSPORT,DIRECT TRANSPORT COSTS,REVENUE
Walsall Council,http://opendatacommunities.org/id/metropolitan-district-council/walsall ,WC147-3,28.02.2023,CHILDRENS,247 CARS (WILLENHALL) LIMITED,28/02/2023,"1,850.00",6241-Hire of Vehicle with Driver,TRANSPORT,DIRECT TRANSPORT COSTS,REVENUE
Walsall Council,http://opendatacommunities.org/id/metropolitan-district-council/walsall ,WC147-4,28.02.2023,CHILDRENS,247 CARS (WILLENHALL) LIMITED,28/02/2023,"1,850.00",6241-Hire of Vehicle with Driver,TRANSPORT,DIRECT TRANSPORT COSTS,REVENUE
Walsall Council,http://opendatacommunities.org/id/metropolitan-district-council/walsall ,WC147-5,28.02.2023,CHILDRENS,247 CARS (WILLENHALL) LIMITED,28/02/2023,"3,900.00",6241-Hire of Vehicle with Driver,TRANSPORT,DIRECT TRANSPORT COSTS,REVENUE
Walsall Council,http://opendatacommunities.org/id/metropolitan-district-council/walsall ,WC147-6,28.02.2023,CHILDRENS,247 CARS (WILLENHALL) LIMITED,28/02/2023,"1,330.00",6241-Hire of Vehicle with Driver,TRANSPORT,DIRECT TRANSPORT COSTS,REVENUE
Walsall Council,http://opendatacommunities.org/id/metropolitan-district-council/walsall ,WC147-7,28.02.2023,CHILDRENS,247 CARS (WILLENHALL) LIMITED,28/02/2023,"2,140.00",6241-Hire of Vehicle with Driver,TRANSPORT,DIRECT TRANSPORT COSTS,REVENUE
Walsall Council,http://opendatacommunities.org/id/metropolitan-district-council/walsall ,WC147-8,28.02.2023,CHILDRENS,247 CARS (WILLENHALL) LIMITED,28/02/2023,"2,950.00",6241-Hire of Vehicle with Driver,TRANSPORT,DIRECT TRANSPORT COSTS,REVENUE
Walsall Council,http://opendatacommunities.org/id/metropolitan-district-council/walsall ,WC147-9,28.02.2023,CHILDRENS,247 CARS (WILLENHALL) LIMITED,28/02/2023,"1,850.00",6241-Hire of Vehicle with Driver,TRANSPORT,DIRECT TRANSPORT COSTS,REVENUE
Walsall Council,http://opendatacommunities.org/id/metropolitan-district-council/walsall ,WC147-10,28.02.2023,CHILDRENS,247 CARS (WILLENHALL) LIMITED,28/02/2023,"2,720.00",6241-Hire of Vehicle with Driver,TRANSPORT,DIRECT TRANSPORT COSTS,REVENUE
Walsall Council,http://opendatacommunities.org/id/metropolitan-district-council/walsall ,WC147-11,28.02.2023,CHILDRENS,247 CARS (WILLENHALL) LIMITED,28/02/2023,"1,761.20",6241-Hire of Vehicle with Driver,TRANSPORT,DIRECT TRANSPORT COSTS,REVENUE
Walsall Council,http://opendatacommunities.org/id/metropolitan-district-council/walsall ,WC147-12,28.02.2023,CHILDRENS,247 CARS (WILLENHALL) LIMITED,28/02/2023,"1,798.80",6241-Hire of Vehicle with Driver,TRANSPORT,DIRECT TRANSPORT COSTS,REVENUE
Walsall Council,http://opendatacommunities.org/id/metropolitan-district-council/walsall ,WC147-13,28.02.2023,CHILDRENS,247 CARS (WILLENHALL) LIMITED,28/02/2023,"2,230.40",6241-Hire of Vehicle with Driver,TRANSPORT,DIRECT TRANSPORT COSTS,REVENUE
Walsall Council,http://opendatacommunities.org/id/metropolitan-district-council/walsall ,WC147-14,28.02.2023,CHILDRENS,247 CARS (WILLENHALL) LIMITED,28/02/2023,"2,272.00",6241-Hire of Vehicle with Driver,TRANSPORT,DIRECT TRANSPORT COSTS,REVENUE
Walsall Council,http://opendatacommunities.org/id/metropolitan-district-council/walsall ,WC147-15,28.02.2023,CHILDRENS,247 CARS (WILLENHALL) LIMITED,28/02/2023,"2,272.00",6241-Hire of Vehicle with Driver,TRANSPORT,DIRECT TRANSPORT COSTS,REVENUE
Walsall Council,http://opendatacommunities.org/id/metropolitan-district-council/walsall ,WC147-16,28.02.2023,CHILDRENS,247 CARS (WILLENHALL) LIMITED,28/02/2023,"1,500.00",6241-Hire of Vehicle with Driver,TRANSPORT,DIRECT TRANSPORT COSTS,REVENUE
Walsall Council,http://opendatacommunities.org/id/metropolitan-district-council/walsall ,WC147-17,28.02.2023,CHILDRENS,247 CARS (WILLENHALL) LIMITED,28/02/2023,"2,554.00",6241-Hire of Vehicle with Driver,TRANSPORT,DIRECT TRANSPORT COSTS,REVENUE
Walsall Council,http://opendatacommunities.org/id/metropolitan-district-council/walsall ,WC147-18,28.02.2023,CHILDRENS,247 CARS (WILLENHALL) LIMITED,28/02/2023,"1,600.00",6241-Hire of Vehicle with Driver,TRANSPORT,DIRECT TRANSPORT COSTS,REVENUE
Walsall Council,http://opendatacommunities.org/id/metropolitan-district-council/walsall ,WC147-19,28.02.2023,CHILDRENS,247 CARS (WILLENHALL) LIMITED,28/02/2023,"1,272.24",6241-Hire of Vehicle with Driver,TRANSPORT,DIRECT TRANSPORT COSTS,REVENUE
Walsall Council,http://opendatacommunities.org/id/metropolitan-district-council/walsall ,WC147-20,28.02.2023,CHILDRENS,247 CARS (WILLENHALL) LIMITED,28/02/2023,"2,272.00",6241-Hire of Vehicle with Driver,TRANSPORT,DIRECT TRANSPORT COSTS,REVENUE
Walsall Council,http://opendatacommunities.org/id/metropolitan-district-council/walsall ,WC147-21,28.02.2023,CHILDRENS,247 CARS (WILLENHALL) LIMITED,28/02/2023,"2,272.00",6241-Hire of Vehicle with Driver,TRANSPORT,DIRECT TRANSPORT COSTS,REVENUE
Walsall Council,http://opendatacommunities.org/id/metropolitan-district-council/walsall ,WC147-22,28.02.2023,CHILDRENS,247 CARS (WILLENHALL) LIMITED,28/02/2023,526.40,6241-Hire of Vehicle with Driver,TRANSPORT,DIRECT TRANSPORT COSTS,REVENUE
Walsall Council,http://opendatacommunities.org/id/metropolitan-district-council/walsall ,WC147-23,28.02.2023,CHILDRENS,247 CARS (WILLENHALL) LIMITED,28/02/2023,"1,690.00",6241-Hire of Vehicle with Driver,TRANSPORT,DIRECT TRANSPORT COSTS,REVENUE
Walsall Council,http://opendatacommunities.org/id/metropolitan-district-council/walsall ,WC147-24,28.02.2023,CHILDRENS,247 CARS (WILLENHALL) LIMITED,28/02/2023,"-1,249.60",6241-Hire of Vehicle with Driver,TRANSPORT,DIRECT TRANSPORT COSTS,REVENUE
Walsall Council,http://opendatacommunities.org/id/metropolitan-district-council/walsall ,WC147-25,28.02.2023,CHILDRENS,247 CARS (WILLENHALL) LIMITED,28/02/2023,"6,816.00",6241-Hire of Vehicle with Driver,TRANSPORT,DIRECT TRANSPORT COSTS,REVENUE
Walsall Council,http://opendatacommunities.org/id/metropolitan-district-council/walsall ,WC147-26,28.02.2023,CHILDRENS,247 CARS (WILLENHALL) LIMITED,28/02/2023,"1,461.60",6241-Hire of Vehicle with Driver,TRANSPORT,DIRECT TRANSPORT COSTS,REVENUE
Walsall Council,http://opendatacommunities.org/id/metropolitan-district-council/walsall ,WC147-27,28.02.2023,CHILDRENS,247 CARS (WILLENHALL) LIMITED,28/02/2023,"2,530.00",6241-Hire of Vehicle with Driver,TRANSPORT,DIRECT TRANSPORT COSTS,REVENUE
Walsall Council,http://opendatacommunities.org/id/metropolitan-district-council/walsall ,WC147-28,28.02.2023,CHILDRENS,247 CARS (WILLENHALL) LIMITED,28/02/2023,"2,272.00",6241-Hire of Vehicle with Driver,TRANSPORT,DIRECT TRANSPORT COSTS,REVENUE
Walsall Council,http://opendatacommunities.org/id/metropolitan-district-council/walsall ,WC147-29,28.02.2023,CHILDRENS,247 CARS (WILLENHALL) LIMITED,28/02/2023,"1,491.60",6241-Hire of Vehicle with Driver,TRANSPORT,DIRECT TRANSPORT COSTS,REVENUE
Walsall Council,http://opendatacommunities.org/id/metropolitan-district-council/walsall ,WC147-30,28.02.2023,CHILDRENS,247 CARS (WILLENHALL) LIMITED,28/02/2023,"2,400.60",6241-Hire of Vehicle with Driver,TRANSPORT,DIRECT TRANSPORT COSTS,REVENUE
Walsall Council,http://opendatacommunities.org/id/metropolitan-district-council/walsall ,WC147-31,28.02.2023,CHILDRENS,247 CARS (WILLENHALL) LIMITED,28/02/2023,"1,097.60",6241-Hire of Vehicle with Driver,TRANSPORT,DIRECT TRANSPORT COSTS,REVENUE
Walsall Council,http://opendatacommunities.org/id/metropolitan-district-council/walsall ,WC147-32,28.02.2023,RESOURCES AND TRANSFORMATION,3 SPIRIT UK TRAINING & CONSULTANCY,03/02/2023,-700.00,6625-Consultant Fees,SUPPLIES & SERVICES,SERVICES,REVENUE
Walsall Council,http://opendatacommunities.org/id/metropolitan-district-council/walsall ,WC147-33,28.02.2023,RESOURCES AND TRANSFORMATION,3 SPIRIT UK TRAINING & CONSULTANCY,03/02/2023,700.00,6625-Consultant Fees,SUPPLIES & SERVICES,SERVICES,REVENUE
Walsall Council,http://opendatacommunities.org/id/metropolitan-district-council/walsall ,WC147-34,28.02.2023,RESOURCES AND TRANSFORMATION,3 SPIRIT UK TRAINING & CONSULTANCY,23/02/2023,700.00,6625-Consultant Fees,SUPPLIES & SERVICES,SERVICES,REVENUE
Walsall Council,http://opendatacommunities.org/id/metropolitan-district-council/walsall ,WC147-35,28.02.2023,CHILDRENS CAPITAL,360 PROPERTY RENOVATIONS LTD (PART OF THE OAKALLS PROPERTY SERVICES GROUP),22/02/2023,"5,964.00",7100-Private Grants,CAPITAL,CAPITAL GRANTS,CAPITAL GRANTS
Walsall Council,http://opendatacommunities.org/id/metropolitan-district-council/walsall ,WC147-36,28.02.2023,ADULT SOCIAL CARE,5 CARE SERVICES LTD,08/02/2023,"1,308.96",6554-Professional Services-Priv Contractor & Other Agencies,THIRD PARTY PAYMENTS,PRIVATE CONTRACTOR,REVENUE
Walsall Council,http://opendatacommunities.org/id/metropolitan-district-council/walsall ,WC147-37,28.02.2023,ADULT SOCIAL CARE,5 CARE SERVICES LTD,08/02/2023,525.20,6554-Professional Services-Priv Contractor & Other Agencies,THIRD PARTY PAYMENTS,PRIVATE CONTRACTOR,REVENUE
Walsall Council,http://opendatacommunities.org/id/metropolitan-district-council/walsall ,WC147-38,28.02.2023,ADULT SOCIAL CARE,5 CARE SERVICES LTD,08/02/2023,"2,036.16",6554-Professional Services-Priv Contractor & Other Agencies,THIRD PARTY PAYMENTS,PRIVATE CONTRACTOR,REVENUE
Walsall Council,http://opendatacommunities.org/id/metropolitan-district-council/walsall ,WC147-39,28.02.2023,ADULT SOCIAL CARE,5 CARE SERVICES LTD,08/02/2023,363.60,6554-Professional Services-Priv Contractor & Other Agencies,THIRD PARTY PAYMENTS,PRIVATE CONTRACTOR,REVENUE
Walsall Council,http://opendatacommunities.org/id/metropolitan-district-council/walsall ,WC147-40,28.02.2023,ADULT SOCIAL CARE,5 CARE SERVICES LTD,08/02/2023,549.44,6554-Professional Services-Priv Contractor & Other Agencies,THIRD PARTY PAYMENTS,PRIVATE CONTRACTOR,REVENUE
Walsall Council,http://opendatacommunities.org/id/metropolitan-district-council/walsall ,WC147-41,28.02.2023,ADULT SOCIAL CARE,5 CARE SERVICES LTD,08/02/2023,343.40,6554-Professional Services-Priv Contractor & Other Agencies,THIRD PARTY PAYMENTS,PRIVATE CONTRACTOR,REVENUE
Walsall Council,http://opendatacommunities.org/id/metropolitan-district-council/walsall ,WC147-42,28.02.2023,ADULT SOCIAL CARE,5 CARE SERVICES LTD,08/02/2023,775.68,6554-Professional Services-Priv Contractor & Other Agencies,THIRD PARTY PAYMENTS,PRIVATE CONTRACTOR,REVENUE
Walsall Council,http://opendatacommunities.org/id/metropolitan-district-council/walsall ,WC147-43,28.02.2023,ADULT SOCIAL CARE,5 CARE SERVICES LTD,08/02/2023,363.60,6554-Professional Services-Priv Contractor & Other Agencies,THIRD PARTY PAYMENTS,PRIVATE CONTRACTOR,REVENUE
Walsall Council,http://opendatacommunities.org/id/metropolitan-district-council/walsall ,WC147-44,28.02.2023,ADULT SOCIAL CARE,5 CARE SERVICES LTD,08/02/2023,743.36,6554-Professional Services-Priv Contractor & Other Agencies,THIRD PARTY PAYMENTS,PRIVATE CONTRACTOR,REVENUE
Walsall Council,http://opendatacommunities.org/id/metropolitan-district-council/walsall ,WC147-45,28.02.2023,ADULT SOCIAL CARE,5 CARE SERVICES LTD,08/02/2023,"1,551.36",6554-Professional Services-Priv Contractor & Other Agencies,THIRD PARTY PAYMENTS,PRIVATE CONTRACTOR,REVENUE
Walsall Council,http://opendatacommunities.org/id/metropolitan-district-council/walsall ,WC147-46,28.02.2023,ADULT SOCIAL CARE,5 CARE SERVICES LTD,08/02/2023,319.16,6554-Professional Services-Priv Contractor & Other Agencies,THIRD PARTY PAYMENTS,PRIVATE CONTRACTOR,REVENUE
Walsall Council,http://opendatacommunities.org/id/metropolitan-district-council/walsall ,WC147-47,28.02.2023,ADULT SOCIAL CARE,5 CARE SERVICES LTD,08/02/2023,533.28,6554-Professional Services-Priv Contractor & Other Agencies,THIRD PARTY PAYMENTS,PRIVATE CONTRACTOR,REVENUE
Walsall Council,http://opendatacommunities.org/id/metropolitan-district-council/walsall ,WC147-48,28.02.2023,ADULT SOCIAL CARE,5 CARE SERVICES LTD,08/02/2023,"1,268.56",6554-Professional Services-Priv Contractor & Other Agencies,THIRD PARTY PAYMENTS,PRIVATE CONTRACTOR,REVENUE
Walsall Council,http://opendatacommunities.org/id/metropolitan-district-council/walsall ,WC147-49,28.02.2023,ADULT SOCIAL CARE,5 CARE SERVICES LTD,08/02/2023,"4,654.08",6554-Professional Services-Priv Contractor & Other Agencies,THIRD PARTY PAYMENTS,PRIVATE CONTRACTOR,REVENUE
Walsall Council,http://opendatacommunities.org/id/metropolitan-district-council/walsall ,WC147-50,28.02.2023,ADULT SOCIAL CARE,5 CARE SERVICES LTD,08/02/2023,517.12,6554-Professional Services-Priv Contractor & Other Agencies,THIRD PARTY PAYMENTS,PRIVATE CONTRACTOR,REVENUE
Walsall Council,http://opendatacommunities.org/id/metropolitan-district-council/walsall ,WC147-51,28.02.2023,ADULT SOCIAL CARE,5 CARE SERVICES LTD,08/02/2023,"2,452.28",6554-Professional Services-Priv Contractor & Other Agencies,THIRD PARTY PAYMENTS,PRIVATE CONTRACTOR,REVENUE
Walsall Council,http://opendatacommunities.org/id/metropolitan-district-council/walsall ,WC147-52,28.02.2023,ADULT SOCIAL CARE,5 CARE SERVICES LTD,08/02/2023,387.84,6554-Professional Services-Priv Contractor & Other Agencies,THIRD PARTY PAYMENTS,PRIVATE CONTRACTOR,REVENUE
Walsall Council,http://opendatacommunities.org/id/metropolitan-district-council/walsall ,WC147-53,28.02.2023,ADULT SOCIAL CARE,5 CARE SERVICES LTD,08/02/2023,727.20,6554-Professional Services-Priv Contractor & Other Agencies,THIRD PARTY PAYMENTS,PRIVATE CONTRACTOR,REVENUE
Walsall Council,http://opendatacommunities.org/id/metropolitan-district-council/walsall ,WC147-54,28.02.2023,ADULT SOCIAL CARE,5 CARE SERVICES LTD,08/02/2023,"1,745.28",6554-Professional Services-Priv Contractor & Other Agencies,THIRD PARTY PAYMENTS,PRIVATE CONTRACTOR,REVENUE
Walsall Council,http://opendatacommunities.org/id/metropolitan-district-council/walsall ,WC147-55,28.02.2023,ADULT SOCIAL CARE,5 CARE SERVICES LTD,08/02/2023,"1,363.12",6554-Professional Services-Priv Contractor & Other Agencies,THIRD PARTY PAYMENTS,PRIVATE CONTRACTOR,REVENUE
Walsall Council,http://opendatacommunities.org/id/metropolitan-district-council/walsall ,WC147-56,28.02.2023,ADULT SOCIAL CARE,5 CARE SERVICES LTD,08/02/2023,622.16,6554-Professional Services-Priv Contractor & Other Agencies,THIRD PARTY PAYMENTS,PRIVATE CONTRACTOR,REVENUE
Walsall Council,http://opendatacommunities.org/id/metropolitan-district-council/walsall ,WC147-57,28.02.2023,ADULT SOCIAL CARE,5 CARE SERVICES LTD,08/02/2023,"2,036.16",6554-Professional Services-Priv Contractor & Other Agencies,THIRD PARTY PAYMENTS,PRIVATE CONTRACTOR,REVENUE
Walsall Council,http://opendatacommunities.org/id/metropolitan-district-council/walsall ,WC147-58,28.02.2023,ADULT SOCIAL CARE,5 CARE SERVICES LTD,08/02/2023,562.98,6554-Professional Services-Priv Contractor & Other Agencies,THIRD PARTY PAYMENTS,PRIVATE CONTRACTOR,REVENUE
Walsall Council,http://opendatacommunities.org/id/metropolitan-district-council/walsall ,WC147-59,28.02.2023,ADULT SOCIAL CARE,5 CARE SERVICES LTD,08/02/2023,"1,341.28",6554-Professional Services-Priv Contractor & Other Agencies,THIRD PARTY PAYMENTS,PRIVATE CONTRACTOR,REVENUE
Walsall Council,http://opendatacommunities.org/id/metropolitan-district-council/walsall ,WC147-60,28.02.2023,ADULT SOCIAL CARE,5 CARE SERVICES LTD,08/02/2023,"1,163.52",6554-Professional Services-Priv Contractor & Other Agencies,THIRD PARTY PAYMENTS,PRIVATE CONTRACTOR,REVENUE
Walsall Council,http://opendatacommunities.org/id/metropolitan-district-council/walsall ,WC147-61,28.02.2023,ADULT SOCIAL CARE,5 CARE SERVICES LTD,08/02/2023,363.60,6554-Professional Services-Priv Contractor & Other Agencies,THIRD PARTY PAYMENTS,PRIVATE CONTRACTOR,REVENUE
Walsall Council,http://opendatacommunities.org/id/metropolitan-district-council/walsall ,WC147-62,28.02.2023,ADULT SOCIAL CARE,5 CARE SERVICES LTD,08/02/2023,432.28,6554-Professional Services-Priv Contractor & Other Agencies,THIRD PARTY PAYMENTS,PRIVATE CONTRACTOR,REVENUE
Walsall Council,http://opendatacommunities.org/id/metropolitan-district-council/walsall ,WC147-63,28.02.2023,ADULT SOCIAL CARE,5 CARE SERVICES LTD,08/02/2023,727.20,6554-Professional Services-Priv Contractor & Other Agencies,THIRD PARTY PAYMENTS,PRIVATE CONTRACTOR,REVENUE
Walsall Council,http://opendatacommunities.org/id/metropolitan-district-council/walsall ,WC147-64,28.02.2023,ADULT SOCIAL CARE,5 CARE SERVICES LTD,08/02/2023,258.56,6554-Professional Services-Priv Contractor & Other Agencies,THIRD PARTY PAYMENTS,PRIVATE CONTRACTOR,REVENUE
Walsall Council,http://opendatacommunities.org/id/metropolitan-district-council/walsall ,WC147-65,28.02.2023,ADULT SOCIAL CARE,5 CARE SERVICES LTD,08/02/2023,836.28,6554-Professional Services-Priv Contractor & Other Agencies,THIRD PARTY PAYMENTS,PRIVATE CONTRACTOR,REVENUE
Walsall Council,http://opendatacommunities.org/id/metropolitan-district-council/walsall ,WC147-66,28.02.2023,ADULT SOCIAL CARE,5 CARE SERVICES LTD,08/02/2023,509.04,6554-Professional Services-Priv Contractor & Other Agencies,THIRD PARTY PAYMENTS,PRIVATE CONTRACTOR,REVENUE
Walsall Council,http://opendatacommunities.org/id/metropolitan-district-council/walsall ,WC147-67,28.02.2023,ADULT SOCIAL CARE,5 CARE SERVICES LTD,08/02/2023,666.60,6554-Professional Services-Priv Contractor & Other Agencies,THIRD PARTY PAYMENTS,PRIVATE CONTRACTOR,REVENUE
Walsall Council,http://opendatacommunities.org/id/metropolitan-district-council/walsall ,WC147-68,28.02.2023,ADULT SOCIAL CARE,5 CARE SERVICES LTD,08/02/2023,363.60,6554-Professional Services-Priv Contractor & Other Agencies,THIRD PARTY PAYMENTS,PRIVATE CONTRACTOR,REVENUE
Walsall Council,http://opendatacommunities.org/id/metropolitan-district-council/walsall ,WC147-69,28.02.2023,ADULT SOCIAL CARE,5 CARE SERVICES LTD,08/02/2023,597.92,6554-Professional Services-Priv Contractor & Other Agencies,THIRD PARTY PAYMENTS,PRIVATE CONTRACTOR,REVENUE
Walsall Council,http://opendatacommunities.org/id/metropolitan-district-council/walsall ,WC147-70,28.02.2023,ADULT SOCIAL CARE,5 CARE SERVICES LTD,08/02/2023,460.56,6554-Professional Services-Priv Contractor & Other Agencies,THIRD PARTY PAYMENTS,PRIVATE CONTRACTOR,REVENUE
Walsall Council,http://opendatacommunities.org/id/metropolitan-district-council/walsall ,WC147-71,28.02.2023,ADULT SOCIAL CARE,5 CARE SERVICES LTD,08/02/2023,"1,551.36",6554-Professional Services-Priv Contractor & Other Agencies,THIRD PARTY PAYMENTS,PRIVATE CONTRACTOR,REVENUE
Walsall Council,http://opendatacommunities.org/id/metropolitan-district-council/walsall ,WC147-72,28.02.2023,ADULT SOCIAL CARE,5 CARE SERVICES LTD,08/02/2023,"1,341.28",6554-Professional Services-Priv Contractor & Other Agencies,THIRD PARTY PAYMENTS,PRIVATE CONTRACTOR,REVENUE
Walsall Council,http://opendatacommunities.org/id/metropolitan-district-council/walsall ,WC147-73,28.02.2023,ADULT SOCIAL CARE,5 CARE SERVICES LTD,08/02/2023,395.92,6554-Professional Services-Priv Contractor & Other Agencies,THIRD PARTY PAYMENTS,PRIVATE CONTRACTOR,REVENUE
Walsall Council,http://opendatacommunities.org/id/metropolitan-district-council/walsall ,WC147-74,28.02.2023,ADULT SOCIAL CARE,5 CARE SERVICES LTD,08/02/2023,606.00,6554-Professional Services-Priv Contractor & Other Agencies,THIRD PARTY PAYMENTS,PRIVATE CONTRACTOR,REVENUE
Walsall Council,http://opendatacommunities.org/id/metropolitan-district-council/walsall ,WC147-75,28.02.2023,ADULT SOCIAL CARE,5 CARE SERVICES LTD,08/02/2023,549.44,6554-Professional Services-Priv Contractor & Other Agencies,THIRD PARTY PAYMENTS,PRIVATE CONTRACTOR,REVENUE
Walsall Council,http://opendatacommunities.org/id/metropolitan-district-council/walsall ,WC147-76,28.02.2023,ADULT SOCIAL CARE,5 CARE SERVICES LTD,08/02/2023,509.04,6554-Professional Services-Priv Contractor & Other Agencies,THIRD PARTY PAYMENTS,PRIVATE CONTRACTOR,REVENUE
Walsall Council,http://opendatacommunities.org/id/metropolitan-district-council/walsall ,WC147-77,28.02.2023,ADULT SOCIAL CARE,5 CARE SERVICES LTD,08/02/2023,"2,173.52",6554-Professional Services-Priv Contractor & Other Agencies,THIRD PARTY PAYMENTS,PRIVATE CONTRACTOR,REVENUE
Walsall Council,http://opendatacommunities.org/id/metropolitan-district-council/walsall ,WC147-78,28.02.2023,ADULT SOCIAL CARE,5 CARE SERVICES LTD,08/02/2023,363.60,6554-Professional Services-Priv Contractor & Other Agencies,THIRD PARTY PAYMENTS,PRIVATE CONTRACTOR,REVENUE
Walsall Council,http://opendatacommunities.org/id/metropolitan-district-council/walsall ,WC147-79,28.02.2023,ADULT SOCIAL CARE,5 CARE SERVICES LTD,08/02/2023,517.12,6554-Professional Services-Priv Contractor & Other Agencies,THIRD PARTY PAYMENTS,PRIVATE CONTRACTOR,REVENUE
Walsall Council,http://opendatacommunities.org/id/metropolitan-district-council/walsall ,WC147-80,28.02.2023,ADULT SOCIAL CARE,5 CARE SERVICES LTD,08/02/2023,323.20,6554-Professional Services-Priv Contractor & Other Agencies,THIRD PARTY PAYMENTS,PRIVATE CONTRACTOR,REVENUE
Walsall Council,http://opendatacommunities.org/id/metropolitan-district-council/walsall ,WC147-81,28.02.2023,ADULT SOCIAL CARE,5 CARE SERVICES LTD,08/02/2023,"1,070.60",6554-Professional Services-Priv Contractor & Other Agencies,THIRD PARTY PAYMENTS,PRIVATE CONTRACTOR,REVENUE
Walsall Council,http://opendatacommunities.org/id/metropolitan-district-council/walsall ,WC147-82,28.02.2023,ADULT SOCIAL CARE,5 CARE SERVICES LTD,08/02/2023,343.40,6554-Professional Services-Priv Contractor & Other Agencies,THIRD PARTY PAYMENTS,PRIVATE CONTRACTOR,REVENUE
Walsall Council,http://opendatacommunities.org/id/metropolitan-district-council/walsall ,WC147-83,28.02.2023,ADULT SOCIAL CARE,5 CARE SERVICES LTD,08/02/2023,"2,468.44",6554-Professional Services-Priv Contractor & Other Agencies,THIRD PARTY PAYMENTS,PRIVATE CONTRACTOR,REVENUE
Walsall Council,http://opendatacommunities.org/id/metropolitan-district-council/walsall ,WC147-84,28.02.2023,ADULT SOCIAL CARE,5 CARE SERVICES LTD,08/02/2023,"1,284.72",6554-Professional Services-Priv Contractor & Other Agencies,THIRD PARTY PAYMENTS,PRIVATE CONTRACTOR,REVENUE
Walsall Council,http://opendatacommunities.org/id/metropolitan-district-council/walsall ,WC147-85,28.02.2023,ADULT SOCIAL CARE,5 CARE SERVICES LTD,08/02/2023,549.44,6554-Professional Services-Priv Contractor & Other Agencies,THIRD PARTY PAYMENTS,PRIVATE CONTRACTOR,REVENUE
Walsall Council,http://opendatacommunities.org/id/metropolitan-district-council/walsall ,WC147-86,28.02.2023,ADULT SOCIAL CARE,5 CARE SERVICES LTD,08/02/2023,387.84,6554-Professional Services-Priv Contractor & Other Agencies,THIRD PARTY PAYMENTS,PRIVATE CONTRACTOR,REVENUE
Walsall Council,http://opendatacommunities.org/id/metropolitan-district-council/walsall ,WC147-87,28.02.2023,ADULT SOCIAL CARE,5 CARE SERVICES LTD,08/02/2023,"2,844.16",6554-Professional Services-Priv Contractor & Other Agencies,THIRD PARTY PAYMENTS,PRIVATE CONTRACTOR,REVENUE
Walsall Council,http://opendatacommunities.org/id/metropolitan-district-council/walsall ,WC147-88,28.02.2023,ADULT SOCIAL CARE,5 CARE SERVICES LTD,08/02/2023,484.80,6554-Professional Services-Priv Contractor & Other Agencies,THIRD PARTY PAYMENTS,PRIVATE CONTRACTOR,REVENUE
Walsall Council,http://opendatacommunities.org/id/metropolitan-district-council/walsall ,WC147-89,28.02.2023,ADULT SOCIAL CARE,5 CARE SERVICES LTD,08/02/2023,371.76,6554-Professional Services-Priv Contractor & Other Agencies,THIRD PARTY PAYMENTS,PRIVATE CONTRACTOR,REVENUE
Walsall Council,http://opendatacommunities.org/id/metropolitan-district-council/walsall ,WC147-90,28.02.2023,ADULT SOCIAL CARE,5 CARE SERVICES LTD,13/02/2023,254.52,6541-Domiciliary Care,THIRD PARTY PAYMENTS,PRIVATE CONTRACTOR,REVENUE
Walsall Council,http://opendatacommunities.org/id/metropolitan-district-council/walsall ,WC147-91,28.02.2023,ADULT SOCIAL CARE,5 CARE SERVICES LTD,13/02/2023,969.60,6541-Domiciliary Care,THIRD PARTY PAYMENTS,PRIVATE CONTRACTOR,REVENUE
Walsall Council,http://opendatacommunities.org/id/metropolitan-district-council/walsall ,WC147-92,28.02.2023,ADULT SOCIAL CARE,5 CARE SERVICES LTD,13/02/2023,258.56,6541-Domiciliary Care,THIRD PARTY PAYMENTS,PRIVATE CONTRACTOR,REVENUE
Walsall Council,http://opendatacommunities.org/id/metropolitan-district-council/walsall ,WC147-93,28.02.2023,ADULT SOCIAL CARE,5 CARE SERVICES LTD,13/02/2023,509.04,6541-Domiciliary Care,THIRD PARTY PAYMENTS,PRIVATE CONTRACTOR,REVENUE
Walsall Council,http://opendatacommunities.org/id/metropolitan-district-council/walsall ,WC147-94,28.02.2023,ADULT SOCIAL CARE,5 CARE SERVICES LTD,13/02/2023,323.20,6541-Domiciliary Care,THIRD PARTY PAYMENTS,PRIVATE CONTRACTOR,REVENUE
Walsall Council,http://opendatacommunities.org/id/metropolitan-district-council/walsall ,WC147-95,28.02.2023,ADULT SOCIAL CARE,5 CARE SERVICES LTD,13/02/2023,339.36,6541-Domiciliary Care,THIRD PARTY PAYMENTS,PRIVATE CONTRACTOR,REVENUE
Walsall Council,http://opendatacommunities.org/id/metropolitan-district-council/walsall ,WC147-96,28.02.2023,ADULT SOCIAL CARE,5 CARE SERVICES LTD,13/02/2023,509.04,6541-Domiciliary Care,THIRD PARTY PAYMENTS,PRIVATE CONTRACTOR,REVENUE
Walsall Council,http://opendatacommunities.org/id/metropolitan-district-council/walsall ,WC147-97,28.02.2023,ADULT SOCIAL CARE,5 CARE SERVICES LTD,13/02/2023,904.96,6541-Domiciliary Care,THIRD PARTY PAYMENTS,PRIVATE CONTRACTOR,REVENUE
Walsall Council,http://opendatacommunities.org/id/metropolitan-district-council/walsall ,WC147-98,28.02.2023,ADULT SOCIAL CARE,5 CARE SERVICES LTD,13/02/2023,339.36,6541-Domiciliary Care,THIRD PARTY PAYMENTS,PRIVATE CONTRACTOR,REVENUE
Walsall Council,http://opendatacommunities.org/id/metropolitan-district-council/walsall ,WC147-99,28.02.2023,ADULT SOCIAL CARE,5 CARE SERVICES LTD,13/02/2023,606.00,6541-Domiciliary Care,THIRD PARTY PAYMENTS,PRIVATE CONTRACTOR,REVENUE
Walsall Council,http://opendatacommunities.org/id/metropolitan-district-council/walsall ,WC147-100,28.02.2023,ADULT SOCIAL CARE,5 CARE SERVICES LTD,13/02/2023,452.48,6541-Domiciliary Care,THIRD PARTY PAYMENTS,PRIVATE CONTRACTOR,REVENUE
Walsall Council,http://opendatacommunities.org/id/metropolitan-district-council/walsall ,WC147-101,28.02.2023,ADULT SOCIAL CARE,5 CARE SERVICES LTD,13/02/2023,339.36,6541-Domiciliary Care,THIRD PARTY PAYMENTS,PRIVATE CONTRACTOR,REVENUE
Walsall Council,http://opendatacommunities.org/id/metropolitan-district-council/walsall ,WC147-102,28.02.2023,ADULT SOCIAL CARE,5 CARE SERVICES LTD,13/02/2023,694.88,6541-Domiciliary Care,THIRD PARTY PAYMENTS,PRIVATE CONTRACTOR,REVENUE
Walsall Council,http://opendatacommunities.org/id/metropolitan-district-council/walsall ,WC147-103,28.02.2023,ADULT SOCIAL CARE,5 CARE SERVICES LTD,13/02/2023,678.72,6541-Domiciliary Care,THIRD PARTY PAYMENTS,PRIVATE CONTRACTOR,REVENUE
Walsall Council,http://opendatacommunities.org/id/metropolitan-district-council/walsall ,WC147-104,28.02.2023,ADULT SOCIAL CARE,5 CARE SERVICES LTD,13/02/2023,294.92,6541-Domiciliary Care,THIRD PARTY PAYMENTS,PRIVATE CONTRACTOR,REVENUE
Walsall Council,http://opendatacommunities.org/id/metropolitan-district-council/walsall ,WC147-105,28.02.2023,ADULT SOCIAL CARE,5 CARE SERVICES LTD,13/02/2023,659.89,6541-Domiciliary Care,THIRD PARTY PAYMENTS,PRIVATE CONTRACTOR,REVENUE
Walsall Council,http://opendatacommunities.org/id/metropolitan-district-council/walsall ,WC147-106,28.02.2023,ADULT SOCIAL CARE,5 CARE SERVICES LTD,13/02/2023,509.04,6541-Domiciliary Care,THIRD PARTY PAYMENTS,PRIVATE CONTRACTOR,REVENUE
Walsall Council,http://opendatacommunities.org/id/metropolitan-district-council/walsall ,WC147-107,28.02.2023,ADULT SOCIAL CARE,5 CARE SERVICES LTD,13/02/2023,436.32,6541-Domiciliary Care,THIRD PARTY PAYMENTS,PRIVATE CONTRACTOR,REVENUE
Walsall Council,http://opendatacommunities.org/id/metropolitan-district-council/walsall ,WC147-108,28.02.2023,ADULT SOCIAL CARE,5 CARE SERVICES LTD,13/02/2023,509.04,6541-Domiciliary Care,THIRD PARTY PAYMENTS,PRIVATE CONTRACTOR,REVENUE
Walsall Council,http://opendatacommunities.org/id/metropolitan-district-council/walsall ,WC147-109,28.02.2023,ADULT SOCIAL CARE,5 CARE SERVICES LTD,13/02/2023,799.92,6541-Domiciliary Care,THIRD PARTY PAYMENTS,PRIVATE CONTRACTOR,REVENUE
Walsall Council,http://opendatacommunities.org/id/metropolitan-district-council/walsall ,WC147-110,28.02.2023,ADULT SOCIAL CARE,5 CARE SERVICES LTD,13/02/2023,565.60,6541-Domiciliary Care,THIRD PARTY PAYMENTS,PRIVATE CONTRACTOR,REVENUE
Walsall Council,http://opendatacommunities.org/id/metropolitan-district-council/walsall ,WC147-111,28.02.2023,ADULT SOCIAL CARE,5 CARE SERVICES LTD,13/02/2023,452.48,6541-Domiciliary Care,THIRD PARTY PAYMENTS,PRIVATE CONTRACTOR,REVENUE
Walsall Council,http://opendatacommunities.org/id/metropolitan-district-council/walsall ,WC147-112,28.02.2023,ADULT SOCIAL CARE,5 CARE SERVICES LTD,13/02/2023,565.60,6541-Domiciliary Care,THIRD PARTY PAYMENTS,PRIVATE CONTRACTOR,REVENUE
Walsall Council,http://opendatacommunities.org/id/metropolitan-district-council/walsall ,WC147-113,28.02.2023,ADULT SOCIAL CARE,5 CARE SERVICES LTD,13/02/2023,452.48,6541-Domiciliary Care,THIRD PARTY PAYMENTS,PRIVATE CONTRACTOR,REVENUE
Walsall Council,http://opendatacommunities.org/id/metropolitan-district-council/walsall ,WC147-114,28.02.2023,ADULT SOCIAL CARE,5 CARE SERVICES LTD,13/02/2023,509.04,6541-Domiciliary Care,THIRD PARTY PAYMENTS,PRIVATE CONTRACTOR,REVENUE
Walsall Council,http://opendatacommunities.org/id/metropolitan-district-council/walsall ,WC147-115,28.02.2023,ADULT SOCIAL CARE,5 CARE SERVICES LTD,13/02/2023,436.32,6541-Domiciliary Care,THIRD PARTY PAYMENTS,PRIVATE CONTRACTOR,REVENUE
Walsall Council,http://opendatacommunities.org/id/metropolitan-district-council/walsall ,WC147-116,28.02.2023,ADULT SOCIAL CARE,5 CARE SERVICES LTD,13/02/2023,509.04,6541-Domiciliary Care,THIRD PARTY PAYMENTS,PRIVATE CONTRACTOR,REVENUE
Walsall Council,http://opendatacommunities.org/id/metropolitan-district-council/walsall ,WC147-117,28.02.2023,ADULT SOCIAL CARE,5 CARE SERVICES LTD,13/02/2023,254.52,6541-Domiciliary Care,THIRD PARTY PAYMENTS,PRIVATE CONTRACTOR,REVENUE
Walsall Council,http://opendatacommunities.org/id/metropolitan-district-council/walsall ,WC147-118,28.02.2023,ADULT SOCIAL CARE,5 CARE SERVICES LTD,13/02/2023,509.04,6541-Domiciliary Care,THIRD PARTY PAYMENTS,PRIVATE CONTRACTOR,REVENUE
Walsall Council,http://opendatacommunities.org/id/metropolitan-district-council/walsall ,WC147-119,28.02.2023,ADULT SOCIAL CARE,5 CARE SERVICES LTD,13/02/2023,735.28,6541-Domiciliary Care,THIRD PARTY PAYMENTS,PRIVATE CONTRACTOR,REVENUE
Walsall Council,http://opendatacommunities.org/id/metropolitan-district-council/walsall ,WC147-120,28.02.2023,ADULT SOCIAL CARE,5 CARE SERVICES LTD,13/02/2023,254.52,6541-Domiciliary Care,THIRD PARTY PAYMENTS,PRIVATE CONTRACTOR,REVENUE
Walsall Council,http://opendatacommunities.org/id/metropolitan-district-council/walsall ,WC147-121,28.02.2023,ADULT SOCIAL CARE,5 CARE SERVICES LTD,13/02/2023,536.02,6541-Domiciliary Care,THIRD PARTY PAYMENTS,PRIVATE CONTRACTOR,REVENUE
Walsall Council,http://opendatacommunities.org/id/metropolitan-district-council/walsall ,WC147-122,28.02.2023,ADULT SOCIAL CARE,5 CARE SERVICES LTD,13/02/2023,597.92,6541-Domiciliary Care,THIRD PARTY PAYMENTS,PRIVATE CONTRACTOR,REVENUE
Walsall Council,http://opendatacommunities.org/id/metropolitan-district-council/walsall ,WC147-123,28.02.2023,ADULT SOCIAL CARE,5 CARE SERVICES LTD,13/02/2023,"1,244.32",6541-Domiciliary Care,THIRD PARTY PAYMENTS,PRIVATE CONTRACTOR,REVENUE
Walsall Council,http://opendatacommunities.org/id/metropolitan-district-council/walsall ,WC147-124,28.02.2023,ADULT SOCIAL CARE,5 CARE SERVICES LTD,13/02/2023,678.72,6541-Domiciliary Care,THIRD PARTY PAYMENTS,PRIVATE CONTRACTOR,REVENUE
Walsall Council,http://opendatacommunities.org/id/metropolitan-district-council/walsall ,WC147-125,28.02.2023,ADULT SOCIAL CARE,5 CARE SERVICES LTD,13/02/2023,347.44,6541-Domiciliary Care,THIRD PARTY PAYMENTS,PRIVATE CONTRACTOR,REVENUE
Walsall Council,http://opendatacommunities.org/id/metropolitan-district-council/walsall ,WC147-126,28.02.2023,ADULT SOCIAL CARE,5 CARE SERVICES LTD,13/02/2023,254.52,6541-Domiciliary Care,THIRD PARTY PAYMENTS,PRIVATE CONTRACTOR,REVENUE
Walsall Council,http://opendatacommunities.org/id/metropolitan-district-council/walsall ,WC147-127,28.02.2023,ADULT SOCIAL CARE,5 CARE SERVICES LTD,13/02/2023,584.50,6541-Domiciliary Care,THIRD PARTY PAYMENTS,PRIVATE CONTRACTOR,REVENUE
Walsall Council,http://opendatacommunities.org/id/metropolitan-district-council/walsall ,WC147-128,28.02.2023,ADULT SOCIAL CARE,5 CARE SERVICES LTD,13/02/2023,565.60,6541-Domiciliary Care,THIRD PARTY PAYMENTS,PRIVATE CONTRACTOR,REVENUE
Walsall Council,http://opendatacommunities.org/id/metropolitan-district-council/walsall ,WC147-129,28.02.2023,ADULT SOCIAL CARE,5 CARE SERVICES LTD,13/02/2023,678.72,6541-Domiciliary Care,THIRD PARTY PAYMENTS,PRIVATE CONTRACTOR,REVENUE
Walsall Council,http://opendatacommunities.org/id/metropolitan-district-council/walsall ,WC147-130,28.02.2023,ADULT SOCIAL CARE,5 CARE SERVICES LTD,13/02/2023,294.92,6541-Domiciliary Care,THIRD PARTY PAYMENTS,PRIVATE CONTRACTOR,REVENUE
Walsall Council,http://opendatacommunities.org/id/metropolitan-district-council/walsall ,WC147-131,28.02.2023,ADULT SOCIAL CARE,5 CARE SERVICES LTD,13/02/2023,659.89,6541-Domiciliary Care,THIRD PARTY PAYMENTS,PRIVATE CONTRACTOR,REVENUE
Walsall Council,http://opendatacommunities.org/id/metropolitan-district-council/walsall ,WC147-132,28.02.2023,ADULT SOCIAL CARE,5 CARE SERVICES LTD,13/02/2023,565.60,6541-Domiciliary Care,THIRD PARTY PAYMENTS,PRIVATE CONTRACTOR,REVENUE
Walsall Council,http://opendatacommunities.org/id/metropolitan-district-council/walsall ,WC147-133,28.02.2023,ADULT SOCIAL CARE,5 CARE SERVICES LTD,13/02/2023,323.20,6541-Domiciliary Care,THIRD PARTY PAYMENTS,PRIVATE CONTRACTOR,REVENUE
Walsall Council,http://opendatacommunities.org/id/metropolitan-district-council/walsall ,WC147-134,28.02.2023,ADULT SOCIAL CARE,5 CARE SERVICES LTD,13/02/2023,339.36,6541-Domiciliary Care,THIRD PARTY PAYMENTS,PRIVATE CONTRACTOR,REVENUE
Walsall Council,http://opendatacommunities.org/id/metropolitan-district-council/walsall ,WC147-135,28.02.2023,ADULT SOCIAL CARE,5 CARE SERVICES LTD,13/02/2023,509.04,6541-Domiciliary Care,THIRD PARTY PAYMENTS,PRIVATE CONTRACTOR,REVENUE
Walsall Council,http://opendatacommunities.org/id/metropolitan-district-council/walsall ,WC147-136,28.02.2023,ADULT SOCIAL CARE,5 CARE SERVICES LTD,13/02/2023,904.96,6541-Domiciliary Care,THIRD PARTY PAYMENTS,PRIVATE CONTRACTOR,REVENUE
Walsall Council,http://opendatacommunities.org/id/metropolitan-district-council/walsall ,WC147-137,28.02.2023,ADULT SOCIAL CARE,5 CARE SERVICES LTD,13/02/2023,452.48,6541-Domiciliary Care,THIRD PARTY PAYMENTS,PRIVATE CONTRACTOR,REVENUE
Walsall Council,http://opendatacommunities.org/id/metropolitan-district-council/walsall ,WC147-138,28.02.2023,ADULT SOCIAL CARE,5 CARE SERVICES LTD,13/02/2023,509.04,6541-Domiciliary Care,THIRD PARTY PAYMENTS,PRIVATE CONTRACTOR,REVENUE
Walsall Council,http://opendatacommunities.org/id/metropolitan-district-council/walsall ,WC147-139,28.02.2023,ADULT SOCIAL CARE,5 CARE SERVICES LTD,13/02/2023,339.36,6541-Domiciliary Care,THIRD PARTY PAYMENTS,PRIVATE CONTRACTOR,REVENUE
Walsall Council,http://opendatacommunities.org/id/metropolitan-district-council/walsall ,WC147-140,28.02.2023,ADULT SOCIAL CARE,5 CARE SERVICES LTD,13/02/2023,254.52,6541-Domiciliary Care,THIRD PARTY PAYMENTS,PRIVATE CONTRACTOR,REVENUE
Walsall Council,http://opendatacommunities.org/id/metropolitan-district-council/walsall ,WC147-141,28.02.2023,ADULT SOCIAL CARE,5 CARE SERVICES LTD,13/02/2023,581.76,6541-Domiciliary Care,THIRD PARTY PAYMENTS,PRIVATE CONTRACTOR,REVENUE
Walsall Council,http://opendatacommunities.org/id/metropolitan-district-council/walsall ,WC147-142,28.02.2023,ADULT SOCIAL CARE,5 CARE SERVICES LTD,13/02/2023,509.04,6541-Domiciliary Care,THIRD PARTY PAYMENTS,PRIVATE CONTRACTOR,REVENUE
Walsall Council,http://opendatacommunities.org/id/metropolitan-district-council/walsall ,WC147-143,28.02.2023,ADULT SOCIAL CARE,5 CARE SERVICES LTD,13/02/2023,509.04,6541-Domiciliary Care,THIRD PARTY PAYMENTS,PRIVATE CONTRACTOR,REVENUE
Walsall Council,http://opendatacommunities.org/id/metropolitan-district-council/walsall ,WC147-144,28.02.2023,ADULT SOCIAL CARE,5 CARE SERVICES LTD,13/02/2023,254.52,6541-Domiciliary Care,THIRD PARTY PAYMENTS,PRIVATE CONTRACTOR,REVENUE
Walsall Council,http://opendatacommunities.org/id/metropolitan-district-council/walsall ,WC147-145,28.02.2023,ADULT SOCIAL CARE,5 CARE SERVICES LTD,13/02/2023,509.04,6541-Domiciliary Care,THIRD PARTY PAYMENTS,PRIVATE CONTRACTOR,REVENUE
Walsall Council,http://opendatacommunities.org/id/metropolitan-district-council/walsall ,WC147-146,28.02.2023,ADULT SOCIAL CARE,5 CARE SERVICES LTD,13/02/2023,509.04,6541-Domiciliary Care,THIRD PARTY PAYMENTS,PRIVATE CONTRACTOR,REVENUE
Walsall Council,http://opendatacommunities.org/id/metropolitan-district-council/walsall ,WC147-147,28.02.2023,ADULT SOCIAL CARE,5 CARE SERVICES LTD,13/02/2023,694.88,6541-Domiciliary Care,THIRD PARTY PAYMENTS,PRIVATE CONTRACTOR,REVENUE
Walsall Council,http://opendatacommunities.org/id/metropolitan-district-council/walsall ,WC147-148,28.02.2023,ADULT SOCIAL CARE,5 CARE SERVICES LTD,13/02/2023,258.56,6541-Domiciliary Care,THIRD PARTY PAYMENTS,PRIVATE CONTRACTOR,REVENUE
Walsall Council,http://opendatacommunities.org/id/metropolitan-district-council/walsall ,WC147-149,28.02.2023,ADULT SOCIAL CARE,5 CARE SERVICES LTD,13/02/2023,509.04,6541-Domiciliary Care,THIRD PARTY PAYMENTS,PRIVATE CONTRACTOR,REVENUE
Walsall Council,http://opendatacommunities.org/id/metropolitan-district-council/walsall ,WC147-150,28.02.2023,ADULT SOCIAL CARE,5 CARE SERVICES LTD,13/02/2023,339.36,6541-Domiciliary Care,THIRD PARTY PAYMENTS,PRIVATE CONTRACTOR,REVENUE
Walsall Council,http://opendatacommunities.org/id/metropolitan-district-council/walsall ,WC147-151,28.02.2023,ADULT SOCIAL CARE,5 CARE SERVICES LTD,13/02/2023,606.00,6541-Domiciliary Care,THIRD PARTY PAYMENTS,PRIVATE CONTRACTOR,REVENUE
Walsall Council,http://opendatacommunities.org/id/metropolitan-district-council/walsall ,WC147-152,28.02.2023,ADULT SOCIAL CARE,5 CARE SERVICES LTD,13/02/2023,452.48,6541-Domiciliary Care,THIRD PARTY PAYMENTS,PRIVATE CONTRACTOR,REVENUE
Walsall Council,http://opendatacommunities.org/id/metropolitan-district-council/walsall ,WC147-153,28.02.2023,ADULT SOCIAL CARE,5 CARE SERVICES LTD,13/02/2023,565.60,6541-Domiciliary Care,THIRD PARTY PAYMENTS,PRIVATE CONTRACTOR,REVENUE
Walsall Council,http://opendatacommunities.org/id/metropolitan-district-council/walsall ,WC147-154,28.02.2023,ADULT SOCIAL CARE,5 CARE SERVICES LTD,13/02/2023,452.48,6541-Domiciliary Care,THIRD PARTY PAYMENTS,PRIVATE CONTRACTOR,REVENUE
Walsall Council,http://opendatacommunities.org/id/metropolitan-district-council/walsall ,WC147-155,28.02.2023,ADULT SOCIAL CARE,5 CARE SERVICES LTD,13/02/2023,509.04,6541-Domiciliary Care,THIRD PARTY PAYMENTS,PRIVATE CONTRACTOR,REVENUE
Walsall Council,http://opendatacommunities.org/id/metropolitan-district-council/walsall ,WC147-156,28.02.2023,ADULT SOCIAL CARE,5 CARE SERVICES LTD,13/02/2023,509.04,6541-Domiciliary Care,THIRD PARTY PAYMENTS,PRIVATE CONTRACTOR,REVENUE
Walsall Council,http://opendatacommunities.org/id/metropolitan-district-council/walsall ,WC147-157,28.02.2023,ADULT SOCIAL CARE,5 CARE SERVICES LTD,13/02/2023,509.04,6541-Domiciliary Care,THIRD PARTY PAYMENTS,PRIVATE CONTRACTOR,REVENUE
Walsall Council,http://opendatacommunities.org/id/metropolitan-district-council/walsall ,WC147-158,28.02.2023,ADULT SOCIAL CARE,5 CARE SERVICES LTD,13/02/2023,735.28,6541-Domiciliary Care,THIRD PARTY PAYMENTS,PRIVATE CONTRACTOR,REVENUE
Walsall Council,http://opendatacommunities.org/id/metropolitan-district-council/walsall ,WC147-159,28.02.2023,ADULT SOCIAL CARE,5 CARE SERVICES LTD,13/02/2023,254.52,6541-Domiciliary Care,THIRD PARTY PAYMENTS,PRIVATE CONTRACTOR,REVENUE
Walsall Council,http://opendatacommunities.org/id/metropolitan-district-council/walsall ,WC147-160,28.02.2023,ADULT SOCIAL CARE,5 CARE SERVICES LTD,13/02/2023,799.92,6541-Domiciliary Care,THIRD PARTY PAYMENTS,PRIVATE CONTRACTOR,REVENUE
Walsall Council,http://opendatacommunities.org/id/metropolitan-district-council/walsall ,WC147-161,28.02.2023,ADULT SOCIAL CARE,5 CARE SERVICES LTD,13/02/2023,536.02,6541-Domiciliary Care,THIRD PARTY PAYMENTS,PRIVATE CONTRACTOR,REVENUE
Walsall Council,http://opendatacommunities.org/id/metropolitan-district-council/walsall ,WC147-162,28.02.2023,ADULT SOCIAL CARE,5 CARE SERVICES LTD,13/02/2023,662.56,6541-Domiciliary Care,THIRD PARTY PAYMENTS,PRIVATE CONTRACTOR,REVENUE
Walsall Council,http://opendatacommunities.org/id/metropolitan-district-council/walsall ,WC147-163,28.02.2023,ADULT SOCIAL CARE,5 CARE SERVICES LTD,13/02/2023,"1,244.32",6541-Domiciliary Care,THIRD PARTY PAYMENTS,PRIVATE CONTRACTOR,REVENUE
Walsall Council,http://opendatacommunities.org/id/metropolitan-district-council/walsall ,WC147-164,28.02.2023,ADULT SOCIAL CARE,5 CARE SERVICES LTD,13/02/2023,678.72,6541-Domiciliary Care,THIRD PARTY PAYMENTS,PRIVATE CONTRACTOR,REVENUE
Walsall Council,http://opendatacommunities.org/id/metropolitan-district-council/walsall ,WC147-165,28.02.2023,ADULT SOCIAL CARE,5 CARE SERVICES LTD,13/02/2023,347.44,6541-Domiciliary Care,THIRD PARTY PAYMENTS,PRIVATE CONTRACTOR,REVENUE
Walsall Council,http://opendatacommunities.org/id/metropolitan-district-council/walsall ,WC147-166,28.02.2023,ADULT SOCIAL CARE,5 CARE SERVICES LTD,13/02/2023,254.52,6541-Domiciliary Care,THIRD PARTY PAYMENTS,PRIVATE CONTRACTOR,REVENUE
Walsall Council,http://opendatacommunities.org/id/metropolitan-district-council/walsall ,WC147-167,28.02.2023,ADULT SOCIAL CARE,5 CARE SERVICES LTD,13/02/2023,584.50,6541-Domiciliary Care,THIRD PARTY PAYMENTS,PRIVATE CONTRACTOR,REVENUE
Walsall Council,http://opendatacommunities.org/id/metropolitan-district-council/walsall ,WC147-168,28.02.2023,ADULT SOCIAL CARE,5 CARE SERVICES LTD,13/02/2023,565.60,6541-Domiciliary Care,THIRD PARTY PAYMENTS,PRIVATE CONTRACTOR,REVENUE
Walsall Council,http://opendatacommunities.org/id/metropolitan-district-council/walsall ,WC147-169,28.02.2023,ADULT SOCIAL CARE,5 CARE SERVICES LTD,13/02/2023,525.20,6541-Domiciliary Care,THIRD PARTY PAYMENTS,PRIVATE CONTRACTOR,REVENUE
Walsall Council,http://opendatacommunities.org/id/metropolitan-district-council/walsall ,WC147-170,28.02.2023,ADULT SOCIAL CARE,5 CARE SERVICES LTD,28/02/2023,323.20,6541-Domiciliary Care,THIRD PARTY PAYMENTS,PRIVATE CONTRACTOR,REVENUE
Walsall Council,http://opendatacommunities.org/id/metropolitan-district-council/walsall ,WC147-171,28.02.2023,ADULT SOCIAL CARE,5 CARE SERVICES LTD,28/02/2023,339.36,6541-Domiciliary Care,THIRD PARTY PAYMENTS,PRIVATE CONTRACTOR,REVENUE
Walsall Council,http://opendatacommunities.org/id/metropolitan-district-council/walsall ,WC147-172,28.02.2023,ADULT SOCIAL CARE,5 CARE SERVICES LTD,28/02/2023,509.04,6541-Domiciliary Care,THIRD PARTY PAYMENTS,PRIVATE CONTRACTOR,REVENUE
Walsall Council,http://opendatacommunities.org/id/metropolitan-district-council/walsall ,WC147-173,28.02.2023,ADULT SOCIAL CARE,5 CARE SERVICES LTD,28/02/2023,254.52,6541-Domiciliary Care,THIRD PARTY PAYMENTS,PRIVATE CONTRACTOR,REVENUE
Walsall Council,http://opendatacommunities.org/id/metropolitan-district-council/walsall ,WC147-174,28.02.2023,ADULT SOCIAL CARE,5 CARE SERVICES LTD,28/02/2023,904.96,6541-Domiciliary Care,THIRD PARTY PAYMENTS,PRIVATE CONTRACTOR,REVENUE
Walsall Council,http://opendatacommunities.org/id/metropolitan-district-council/walsall ,WC147-175,28.02.2023,ADULT SOCIAL CARE,5 CARE SERVICES LTD,28/02/2023,258.56,6541-Domiciliary Care,THIRD PARTY PAYMENTS,PRIVATE CONTRACTOR,REVENUE
Walsall Council,http://opendatacommunities.org/id/metropolitan-district-council/walsall ,WC147-176,28.02.2023,ADULT SOCIAL CARE,5 CARE SERVICES LTD,28/02/2023,509.04,6541-Domiciliary Care,THIRD PARTY PAYMENTS,PRIVATE CONTRACTOR,REVENUE
Walsall Council,http://opendatacommunities.org/id/metropolitan-district-council/walsall ,WC147-177,28.02.2023,ADULT SOCIAL CARE,5 CARE SERVICES LTD,28/02/2023,678.72,6541-Domiciliary Care,THIRD PARTY PAYMENTS,PRIVATE CONTRACTOR,REVENUE
Walsall Council,http://opendatacommunities.org/id/metropolitan-district-council/walsall ,WC147-178,28.02.2023,ADULT SOCIAL CARE,5 CARE SERVICES LTD,28/02/2023,294.92,6541-Domiciliary Care,THIRD PARTY PAYMENTS,PRIVATE CONTRACTOR,REVENUE
Walsall Council,http://opendatacommunities.org/id/metropolitan-district-council/walsall ,WC147-179,28.02.2023,ADULT SOCIAL CARE,5 CARE SERVICES LTD,28/02/2023,659.89,6541-Domiciliary Care,THIRD PARTY PAYMENTS,PRIVATE CONTRACTOR,REVENUE
Walsall Council,http://opendatacommunities.org/id/metropolitan-district-council/walsall ,WC147-180,28.02.2023,ADULT SOCIAL CARE,5 CARE SERVICES LTD,28/02/2023,339.36,6541-Domiciliary Care,THIRD PARTY PAYMENTS,PRIVATE CONTRACTOR,REVENUE
Walsall Council,http://opendatacommunities.org/id/metropolitan-district-council/walsall ,WC147-181,28.02.2023,ADULT SOCIAL CARE,5 CARE SERVICES LTD,28/02/2023,"2,149.28",6541-Domiciliary Care,THIRD PARTY PAYMENTS,PRIVATE CONTRACTOR,REVENUE
Walsall Council,http://opendatacommunities.org/id/metropolitan-district-council/walsall ,WC147-182,28.02.2023,ADULT SOCIAL CARE,5 CARE SERVICES LTD,28/02/2023,694.88,6541-Domiciliary Care,THIRD PARTY PAYMENTS,PRIVATE CONTRACTOR,REVENUE
Walsall Council,http://opendatacommunities.org/id/metropolitan-district-council/walsall ,WC147-183,28.02.2023,ADULT SOCIAL CARE,5 CARE SERVICES LTD,28/02/2023,509.04,6541-Domiciliary Care,THIRD PARTY PAYMENTS,PRIVATE CONTRACTOR,REVENUE
Walsall Council,http://opendatacommunities.org/id/metropolitan-district-council/walsall ,WC147-184,28.02.2023,ADULT SOCIAL CARE,5 CARE SERVICES LTD,28/02/2023,509.04,6541-Domiciliary Care,THIRD PARTY PAYMENTS,PRIVATE CONTRACTOR,REVENUE
Walsall Council,http://opendatacommunities.org/id/metropolitan-district-council/walsall ,WC147-185,28.02.2023,ADULT SOCIAL CARE,5 CARE SERVICES LTD,28/02/2023,509.04,6541-Domiciliary Care,THIRD PARTY PAYMENTS,PRIVATE CONTRACTOR,REVENUE
Walsall Council,http://opendatacommunities.org/id/metropolitan-district-council/walsall ,WC147-186,28.02.2023,ADULT SOCIAL CARE,5 CARE SERVICES LTD,28/02/2023,735.28,6541-Domiciliary Care,THIRD PARTY PAYMENTS,PRIVATE CONTRACTOR,REVENUE
Walsall Council,http://opendatacommunities.org/id/metropolitan-district-council/walsall ,WC147-187,28.02.2023,ADULT SOCIAL CARE,5 CARE SERVICES LTD,28/02/2023,254.52,6541-Domiciliary Care,THIRD PARTY PAYMENTS,PRIVATE CONTRACTOR,REVENUE
Walsall Council,http://opendatacommunities.org/id/metropolitan-district-council/walsall ,WC147-188,28.02.2023,ADULT SOCIAL CARE,5 CARE SERVICES LTD,28/02/2023,254.52,6541-Domiciliary Care,THIRD PARTY PAYMENTS,PRIVATE CONTRACTOR,REVENUE
Walsall Council,http://opendatacommunities.org/id/metropolitan-district-council/walsall ,WC147-189,28.02.2023,ADULT SOCIAL CARE,5 CARE SERVICES LTD,28/02/2023,799.92,6541-Domiciliary Care,THIRD PARTY PAYMENTS,PRIVATE CONTRACTOR,REVENUE
Walsall Council,http://opendatacommunities.org/id/metropolitan-district-council/walsall ,WC147-190,28.02.2023,ADULT SOCIAL CARE,5 CARE SERVICES LTD,28/02/2023,536.02,6541-Domiciliary Care,THIRD PARTY PAYMENTS,PRIVATE CONTRACTOR,REVENUE
Walsall Council,http://opendatacommunities.org/id/metropolitan-district-council/walsall ,WC147-191,28.02.2023,ADULT SOCIAL CARE,5 CARE SERVICES LTD,28/02/2023,597.92,6541-Domiciliary Care,THIRD PARTY PAYMENTS,PRIVATE CONTRACTOR,REVENUE
Walsall Council,http://opendatacommunities.org/id/metropolitan-district-council/walsall ,WC147-192,28.02.2023,ADULT SOCIAL CARE,5 CARE SERVICES LTD,28/02/2023,"1,244.32",6541-Domiciliary Care,THIRD PARTY PAYMENTS,PRIVATE CONTRACTOR,REVENUE
Walsall Council,http://opendatacommunities.org/id/metropolitan-district-council/walsall ,WC147-193,28.02.2023,ADULT SOCIAL CARE,5 CARE SERVICES LTD,28/02/2023,"2,408.06",6541-Domiciliary Care,THIRD PARTY PAYMENTS,PRIVATE CONTRACTOR,REVENUE
Walsall Council,http://opendatacommunities.org/id/metropolitan-district-council/walsall ,WC147-194,28.02.2023,ADULT SOCIAL CARE,5 CARE SERVICES LTD,28/02/2023,"5,866.08",6541-Domiciliary Care,THIRD PARTY PAYMENTS,PRIVATE CONTRACTOR,REVENUE
Walsall Council,http://opendatacommunities.org/id/metropolitan-district-council/walsall ,WC147-195,28.02.2023,ADULT SOCIAL CARE,5 CARE SERVICES LTD,28/02/2023,266.64,6541-Domiciliary Care,THIRD PARTY PAYMENTS,PRIVATE CONTRACTOR,REVENUE
Walsall Council,http://opendatacommunities.org/id/metropolitan-district-council/walsall ,WC147-196,28.02.2023,ADULT SOCIAL CARE,5 CARE SERVICES LTD,28/02/2023,339.36,6541-Domiciliary Care,THIRD PARTY PAYMENTS,PRIVATE CONTRACTOR,REVENUE
Walsall Council,http://opendatacommunities.org/id/metropolitan-district-council/walsall ,WC147-197,28.02.2023,ADULT SOCIAL CARE,5 CARE SERVICES LTD,28/02/2023,606.00,6541-Domiciliary Care,THIRD PARTY PAYMENTS,PRIVATE CONTRACTOR,REVENUE
Walsall Council,http://opendatacommunities.org/id/metropolitan-district-council/walsall ,WC147-198,28.02.2023,ADULT SOCIAL CARE,5 CARE SERVICES LTD,28/02/2023,"-5,413.60",6541-Domiciliary Care,THIRD PARTY PAYMENTS,PRIVATE CONTRACTOR,REVENUE
Walsall Council,http://opendatacommunities.org/id/metropolitan-district-council/walsall ,WC147-199,28.02.2023,ADULT SOCIAL CARE,5 CARE SERVICES LTD,28/02/2023,"-1,971.52",6541-Domiciliary Care,THIRD PARTY PAYMENTS,PRIVATE CONTRACTOR,REVENUE
Walsall Council,http://opendatacommunities.org/id/metropolitan-district-council/walsall ,WC147-200,28.02.2023,ADULT SOCIAL CARE,5 CARE SERVICES LTD,28/02/2023,565.60,6541-Domiciliary Care,THIRD PARTY PAYMENTS,PRIVATE CONTRACTOR,REVENUE
Walsall Council,http://opendatacommunities.org/id/metropolitan-district-council/walsall ,WC147-201,28.02.2023,ADULT SOCIAL CARE,5 CARE SERVICES LTD,28/02/2023,-492.88,6541-Domiciliary Care,THIRD PARTY PAYMENTS,PRIVATE CONTRACTOR,REVENUE
Walsall Council,http://opendatacommunities.org/id/metropolitan-district-council/walsall ,WC147-202,28.02.2023,ADULT SOCIAL CARE,5 CARE SERVICES LTD,28/02/2023,"-2,585.60",6541-Domiciliary Care,THIRD PARTY PAYMENTS,PRIVATE CONTRACTOR,REVENUE
Walsall Council,http://opendatacommunities.org/id/metropolitan-district-council/walsall ,WC147-203,28.02.2023,ADULT SOCIAL CARE,5 CARE SERVICES LTD,28/02/2023,"3,038.08",6541-Domiciliary Care,THIRD PARTY PAYMENTS,PRIVATE CONTRACTOR,REVENUE
Walsall Council,http://opendatacommunities.org/id/metropolitan-district-council/walsall ,WC147-204,28.02.2023,ADULT SOCIAL CARE,5 CARE SERVICES LTD,28/02/2023,678.72,6541-Domiciliary Care,THIRD PARTY PAYMENTS,PRIVATE CONTRACTOR,REVENUE
Walsall Council,http://opendatacommunities.org/id/metropolitan-district-council/walsall ,WC147-205,28.02.2023,ADULT SOCIAL CARE,5 CARE SERVICES LTD,28/02/2023,347.44,6541-Domiciliary Care,THIRD PARTY PAYMENTS,PRIVATE CONTRACTOR,REVENUE
Walsall Council,http://opendatacommunities.org/id/metropolitan-district-council/walsall ,WC147-206,28.02.2023,ADULT SOCIAL CARE,5 CARE SERVICES LTD,28/02/2023,"-2,210.10",6541-Domiciliary Care,THIRD PARTY PAYMENTS,PRIVATE CONTRACTOR,REVENUE
Walsall Council,http://opendatacommunities.org/id/metropolitan-district-council/walsall ,WC147-207,28.02.2023,ADULT SOCIAL CARE,5 CARE SERVICES LTD,28/02/2023,254.52,6541-Domiciliary Care,THIRD PARTY PAYMENTS,PRIVATE CONTRACTOR,REVENUE
Walsall Council,http://opendatacommunities.org/id/metropolitan-district-council/walsall ,WC147-208,28.02.2023,ADULT SOCIAL CARE,5 CARE SERVICES LTD,28/02/2023,584.50,6541-Domiciliary Care,THIRD PARTY PAYMENTS,PRIVATE CONTRACTOR,REVENUE
Walsall Council,http://opendatacommunities.org/id/metropolitan-district-council/walsall ,WC147-209,28.02.2023,ADULT SOCIAL CARE,5 CARE SERVICES LTD,28/02/2023,565.60,6541-Domiciliary Care,THIRD PARTY PAYMENTS,PRIVATE CONTRACTOR,REVENUE
Walsall Council,http://opendatacommunities.org/id/metropolitan-district-council/walsall ,WC147-210,28.02.2023,ADULT SOCIAL CARE,5 CARE SERVICES LTD,28/02/2023,565.60,6541-Domiciliary Care,THIRD PARTY PAYMENTS,PRIVATE CONTRACTOR,REVENUE
Walsall Council,http://opendatacommunities.org/id/metropolitan-district-council/walsall ,WC147-211,28.02.2023,ADULT SOCIAL CARE,5 CARE SERVICES LTD,28/02/2023,565.60,6541-Domiciliary Care,THIRD PARTY PAYMENTS,PRIVATE CONTRACTOR,REVENUE
Walsall Council,http://opendatacommunities.org/id/metropolitan-district-council/walsall ,WC147-212,28.02.2023,ADULT SOCIAL CARE,5 CARE SERVICES LTD,28/02/2023,-452.48,6541-Domiciliary Care,THIRD PARTY PAYMENTS,PRIVATE CONTRACTOR,REVENUE
Walsall Council,http://opendatacommunities.org/id/metropolitan-district-council/walsall ,WC147-213,28.02.2023,ADULT SOCIAL CARE,5 CARE SERVICES LTD,28/02/2023,323.20,6541-Domiciliary Care,THIRD PARTY PAYMENTS,PRIVATE CONTRACTOR,REVENUE
Walsall Council,http://opendatacommunities.org/id/metropolitan-district-council/walsall ,WC147-214,28.02.2023,ADULT SOCIAL CARE,5 CARE SERVICES LTD,28/02/2023,509.04,6541-Domiciliary Care,THIRD PARTY PAYMENTS,PRIVATE CONTRACTOR,REVENUE
Walsall Council,http://opendatacommunities.org/id/metropolitan-district-council/walsall ,WC147-215,28.02.2023,ADULT SOCIAL CARE,5 CARE SERVICES LTD,28/02/2023,509.04,6541-Domiciliary Care,THIRD PARTY PAYMENTS,PRIVATE CONTRACTOR,REVENUE
Walsall Council,http://opendatacommunities.org/id/metropolitan-district-council/walsall ,WC147-216,28.02.2023,ADULT SOCIAL CARE,5 CARE SERVICES LTD,28/02/2023,509.04,6541-Domiciliary Care,THIRD PARTY PAYMENTS,PRIVATE CONTRACTOR,REVENUE
Walsall Council,http://opendatacommunities.org/id/metropolitan-district-council/walsall ,WC147-217,28.02.2023,ADULT SOCIAL CARE,5 CARE SERVICES LTD,28/02/2023,254.52,6541-Domiciliary Care,THIRD PARTY PAYMENTS,PRIVATE CONTRACTOR,REVENUE
Walsall Council,http://opendatacommunities.org/id/metropolitan-district-council/walsall ,WC147-218,28.02.2023,ADULT SOCIAL CARE,5 CARE SERVICES LTD,28/02/2023,509.04,6541-Domiciliary Care,THIRD PARTY PAYMENTS,PRIVATE CONTRACTOR,REVENUE
Walsall Council,http://opendatacommunities.org/id/metropolitan-district-council/walsall ,WC147-219,28.02.2023,ADULT SOCIAL CARE,5 CARE SERVICES LTD,28/02/2023,678.72,6541-Domiciliary Care,THIRD PARTY PAYMENTS,PRIVATE CONTRACTOR,REVENUE
Walsall Council,http://opendatacommunities.org/id/metropolitan-district-council/walsall ,WC147-220,28.02.2023,ADULT SOCIAL CARE,5 CARE SERVICES LTD,28/02/2023,294.92,6541-Domiciliary Care,THIRD PARTY PAYMENTS,PRIVATE CONTRACTOR,REVENUE
Walsall Council,http://opendatacommunities.org/id/metropolitan-district-council/walsall ,WC147-221,28.02.2023,ADULT SOCIAL CARE,5 CARE SERVICES LTD,28/02/2023,659.89,6541-Domiciliary Care,THIRD PARTY PAYMENTS,PRIVATE CONTRACTOR,REVENUE
Walsall Council,http://opendatacommunities.org/id/metropolitan-district-council/walsall ,WC147-222,28.02.2023,ADULT SOCIAL CARE,5 CARE SERVICES LTD,28/02/2023,254.52,6541-Domiciliary Care,THIRD PARTY PAYMENTS,PRIVATE CONTRACTOR,REVENUE
Walsall Council,http://opendatacommunities.org/id/metropolitan-district-council/walsall ,WC147-223,28.02.2023,ADULT SOCIAL CARE,5 CARE SERVICES LTD,28/02/2023,581.76,6541-Domiciliary Care,THIRD PARTY PAYMENTS,PRIVATE CONTRACTOR,REVENUE
Walsall Council,http://opendatacommunities.org/id/metropolitan-district-council/walsall ,WC147-224,28.02.2023,ADULT SOCIAL CARE,5 CARE SERVICES LTD,28/02/2023,694.88,6541-Domiciliary Care,THIRD PARTY PAYMENTS,PRIVATE CONTRACTOR,REVENUE
Walsall Council,http://opendatacommunities.org/id/metropolitan-district-council/walsall ,WC147-225,28.02.2023,ADULT SOCIAL CARE,5 CARE SERVICES LTD,28/02/2023,258.56,6541-Domiciliary Care,THIRD PARTY PAYMENTS,PRIVATE CONTRACTOR,REVENUE
Walsall Council,http://opendatacommunities.org/id/metropolitan-district-council/walsall ,WC147-226,28.02.2023,ADULT SOCIAL CARE,5 CARE SERVICES LTD,28/02/2023,509.04,6541-Domiciliary Care,THIRD PARTY PAYMENTS,PRIVATE CONTRACTOR,REVENUE
Walsall Council,http://opendatacommunities.org/id/metropolitan-district-council/walsall ,WC147-227,28.02.2023,ADULT SOCIAL CARE,5 CARE SERVICES LTD,28/02/2023,565.60,6541-Domiciliary Care,THIRD PARTY PAYMENTS,PRIVATE CONTRACTOR,REVENUE
Walsall Council,http://opendatacommunities.org/id/metropolitan-district-council/walsall ,WC147-228,28.02.2023,ADULT SOCIAL CARE,5 CARE SERVICES LTD,28/02/2023,735.28,6541-Domiciliary Care,THIRD PARTY PAYMENTS,PRIVATE CONTRACTOR,REVENUE
Walsall Council,http://opendatacommunities.org/id/metropolitan-district-council/walsall ,WC147-229,28.02.2023,ADULT SOCIAL CARE,5 CARE SERVICES LTD,28/02/2023,254.52,6541-Domiciliary Care,THIRD PARTY PAYMENTS,PRIVATE CONTRACTOR,REVENUE
Walsall Council,http://opendatacommunities.org/id/metropolitan-district-council/walsall ,WC147-230,28.02.2023,ADULT SOCIAL CARE,5 CARE SERVICES LTD,28/02/2023,323.20,6541-Domiciliary Care,THIRD PARTY PAYMENTS,PRIVATE CONTRACTOR,REVENUE
Walsall Council,http://opendatacommunities.org/id/metropolitan-district-council/walsall ,WC147-231,28.02.2023,ADULT SOCIAL CARE,5 CARE SERVICES LTD,28/02/2023,339.36,6541-Domiciliary Care,THIRD PARTY PAYMENTS,PRIVATE CONTRACTOR,REVENUE
Walsall Council,http://opendatacommunities.org/id/metropolitan-district-council/walsall ,WC147-232,28.02.2023,ADULT SOCIAL CARE,5 CARE SERVICES LTD,28/02/2023,509.04,6541-Domiciliary Care,THIRD PARTY PAYMENTS,PRIVATE CONTRACTOR,REVENUE
Walsall Council,http://opendatacommunities.org/id/metropolitan-district-council/walsall ,WC147-233,28.02.2023,ADULT SOCIAL CARE,5 CARE SERVICES LTD,28/02/2023,536.02,6541-Domiciliary Care,THIRD PARTY PAYMENTS,PRIVATE CONTRACTOR,REVENUE
Walsall Council,http://opendatacommunities.org/id/metropolitan-district-council/walsall ,WC147-234,28.02.2023,ADULT SOCIAL CARE,5 CARE SERVICES LTD,28/02/2023,597.92,6541-Domiciliary Care,THIRD PARTY PAYMENTS,PRIVATE CONTRACTOR,REVENUE
Walsall Council,http://opendatacommunities.org/id/metropolitan-district-council/walsall ,WC147-235,28.02.2023,ADULT SOCIAL CARE,5 CARE SERVICES LTD,28/02/2023,"1,244.32",6541-Domiciliary Care,THIRD PARTY PAYMENTS,PRIVATE CONTRACTOR,REVENUE
Walsall Council,http://opendatacommunities.org/id/metropolitan-district-council/walsall ,WC147-236,28.02.2023,ADULT SOCIAL CARE,5 CARE SERVICES LTD,28/02/2023,678.72,6541-Domiciliary Care,THIRD PARTY PAYMENTS,PRIVATE CONTRACTOR,REVENUE
Walsall Council,http://opendatacommunities.org/id/metropolitan-district-council/walsall ,WC147-237,28.02.2023,ADULT SOCIAL CARE,5 CARE SERVICES LTD,28/02/2023,339.36,6541-Domiciliary Care,THIRD PARTY PAYMENTS,PRIVATE CONTRACTOR,REVENUE
Walsall Council,http://opendatacommunities.org/id/metropolitan-district-council/walsall ,WC147-238,28.02.2023,ADULT SOCIAL CARE,5 CARE SERVICES LTD,28/02/2023,904.96,6541-Domiciliary Care,THIRD PARTY PAYMENTS,PRIVATE CONTRACTOR,REVENUE
Walsall Council,http://opendatacommunities.org/id/metropolitan-district-council/walsall ,WC147-239,28.02.2023,ADULT SOCIAL CARE,5 CARE SERVICES LTD,28/02/2023,339.36,6541-Domiciliary Care,THIRD PARTY PAYMENTS,PRIVATE CONTRACTOR,REVENUE
Walsall Council,http://opendatacommunities.org/id/metropolitan-district-council/walsall ,WC147-240,28.02.2023,ADULT SOCIAL CARE,5 CARE SERVICES LTD,28/02/2023,509.04,6541-Domiciliary Care,THIRD PARTY PAYMENTS,PRIVATE CONTRACTOR,REVENUE
Walsall Council,http://opendatacommunities.org/id/metropolitan-district-council/walsall ,WC147-241,28.02.2023,ADULT SOCIAL CARE,5 CARE SERVICES LTD,28/02/2023,509.04,6541-Domiciliary Care,THIRD PARTY PAYMENTS,PRIVATE CONTRACTOR,REVENUE
Walsall Council,http://opendatacommunities.org/id/metropolitan-district-council/walsall ,WC147-242,28.02.2023,ADULT SOCIAL CARE,5 CARE SERVICES LTD,28/02/2023,347.44,6541-Domiciliary Care,THIRD PARTY PAYMENTS,PRIVATE CONTRACTOR,REVENUE
Walsall Council,http://opendatacommunities.org/id/metropolitan-district-council/walsall ,WC147-243,28.02.2023,ADULT SOCIAL CARE,5 CARE SERVICES LTD,28/02/2023,254.52,6541-Domiciliary Care,THIRD PARTY PAYMENTS,PRIVATE CONTRACTOR,REVENUE
Walsall Council,http://opendatacommunities.org/id/metropolitan-district-council/walsall ,WC147-244,28.02.2023,ADULT SOCIAL CARE,5 CARE SERVICES LTD,28/02/2023,584.50,6541-Domiciliary Care,THIRD PARTY PAYMENTS,PRIVATE CONTRACTOR,REVENUE
Walsall Council,http://opendatacommunities.org/id/metropolitan-district-council/walsall ,WC147-245,28.02.2023,ADULT SOCIAL CARE,5 CARE SERVICES LTD,28/02/2023,565.60,6541-Domiciliary Care,THIRD PARTY PAYMENTS,PRIVATE CONTRACTOR,REVENUE
Walsall Council,http://opendatacommunities.org/id/metropolitan-district-council/walsall ,WC147-246,28.02.2023,ADULT SOCIAL CARE,5 CARE SERVICES LTD,28/02/2023,565.60,6541-Domiciliary Care,THIRD PARTY PAYMENTS,PRIVATE CONTRACTOR,REVENUE
Walsall Council,http://opendatacommunities.org/id/metropolitan-district-council/walsall ,WC147-247,28.02.2023,ADULT SOCIAL CARE,5 CARE SERVICES LTD,28/02/2023,509.04,6541-Domiciliary Care,THIRD PARTY PAYMENTS,PRIVATE CONTRACTOR,REVENUE
Walsall Council,http://opendatacommunities.org/id/metropolitan-district-council/walsall ,WC147-248,28.02.2023,ADULT SOCIAL CARE,5 CARE SERVICES LTD,28/02/2023,509.04,6541-Domiciliary Care,THIRD PARTY PAYMENTS,PRIVATE CONTRACTOR,REVENUE
Walsall Council,http://opendatacommunities.org/id/metropolitan-district-council/walsall ,WC147-249,28.02.2023,ADULT SOCIAL CARE,5 CARE SERVICES LTD,28/02/2023,799.92,6541-Domiciliary Care,THIRD PARTY PAYMENTS,PRIVATE CONTRACTOR,REVENUE
Walsall Council,http://opendatacommunities.org/id/metropolitan-district-council/walsall ,WC147-250,28.02.2023,ADULT SOCIAL CARE,5 CARE SERVICES LTD,28/02/2023,452.48,6541-Domiciliary Care,THIRD PARTY PAYMENTS,PRIVATE CONTRACTOR,REVENUE
Walsall Council,http://opendatacommunities.org/id/metropolitan-district-council/walsall ,WC147-251,28.02.2023,ADULT SOCIAL CARE,5 CARE SERVICES LTD,28/02/2023,509.04,6541-Domiciliary Care,THIRD PARTY PAYMENTS,PRIVATE CONTRACTOR,REVENUE
Walsall Council,http://opendatacommunities.org/id/metropolitan-district-council/walsall ,WC147-252,28.02.2023,ADULT SOCIAL CARE,5 CARE SERVICES LTD,28/02/2023,509.04,6541-Domiciliary Care,THIRD PARTY PAYMENTS,PRIVATE CONTRACTOR,REVENUE
Walsall Council,http://opendatacommunities.org/id/metropolitan-district-council/walsall ,WC147-253,28.02.2023,ADULT SOCIAL CARE,5 CARE SERVICES LTD,28/02/2023,254.52,6541-Domiciliary Care,THIRD PARTY PAYMENTS,PRIVATE CONTRACTOR,REVENUE
Walsall Council,http://opendatacommunities.org/id/metropolitan-district-council/walsall ,WC147-254,28.02.2023,ADULT SOCIAL CARE,5 CARE SERVICES LTD,28/02/2023,606.00,6541-Domiciliary Care,THIRD PARTY PAYMENTS,PRIVATE CONTRACTOR,REVENUE
Walsall Council,http://opendatacommunities.org/id/metropolitan-district-council/walsall ,WC147-255,28.02.2023,ADULT SOCIAL CARE,5 CARE SERVICES LTD,28/02/2023,565.60,6541-Domiciliary Care,THIRD PARTY PAYMENTS,PRIVATE CONTRACTOR,REVENUE
Walsall Council,http://opendatacommunities.org/id/metropolitan-district-council/walsall ,WC147-256,28.02.2023,ADULT SOCIAL CARE,5 CARE SERVICES LTD,28/02/2023,452.48,6541-Domiciliary Care,THIRD PARTY PAYMENTS,PRIVATE CONTRACTOR,REVENUE
Walsall Council,http://opendatacommunities.org/id/metropolitan-district-council/walsall ,WC147-257,28.02.2023,ADULT SOCIAL CARE,5 CARE SERVICES LTD,28/02/2023,816.08,6541-Domiciliary Care,THIRD PARTY PAYMENTS,PRIVATE CONTRACTOR,REVENUE
Walsall Council,http://opendatacommunities.org/id/metropolitan-district-council/walsall ,WC147-258,28.02.2023,ADULT SOCIAL CARE,5 CARE SERVICES LTD,08/02/2023,"1,163.52",6554-Professional Services-Priv Contractor & Other Agencies,THIRD PARTY PAYMENTS,PRIVATE CONTRACTOR,REVENUE
Walsall Council,http://opendatacommunities.org/id/metropolitan-district-council/walsall ,WC147-259,28.02.2023,ADULT SOCIAL CARE,5 CARE SERVICES LTD,08/02/2023,"1,203.92",6554-Professional Services-Priv Contractor & Other Agencies,THIRD PARTY PAYMENTS,PRIVATE CONTRACTOR,REVENUE
Walsall Council,http://opendatacommunities.org/id/metropolitan-district-council/walsall ,WC147-260,28.02.2023,"ECONOMY, ENVIRONMENT & COMMUNITIES",A ASHTON,07/02/2023,465.00,6410-Materials,SUPPLIES & SERVICES,EQUIPMENT FURNITURE & MATERIALS,REVENUE
Walsall Council,http://opendatacommunities.org/id/metropolitan-district-council/walsall ,WC147-261,28.02.2023,"ECONOMY, ENVIRONMENT & COMMUNITIES",A F BLAKEMORE & SON LTD,15/02/2023,271.89,6413-Food & Drink Supplies,SUPPLIES & SERVICES,CATERING,REVENUE
Walsall Council,http://opendatacommunities.org/id/metropolitan-district-council/walsall ,WC147-262,28.02.2023,"ECONOMY, ENVIRONMENT & COMMUNITIES",A F BLAKEMORE & SON LTD,15/02/2023,616.56,6413-Food & Drink Supplies,SUPPLIES & SERVICES,CATERING,REVENUE
Walsall Council,http://opendatacommunities.org/id/metropolitan-district-council/walsall ,WC147-263,28.02.2023,"ECONOMY, ENVIRONMENT & COMMUNITIES",A F BLAKEMORE & SON LTD,15/02/2023,556.09,6413-Food & Drink Supplies,SUPPLIES & SERVICES,CATERING,REVENUE
Walsall Council,http://opendatacommunities.org/id/metropolitan-district-council/walsall ,WC147-264,28.02.2023,"ECONOMY, ENVIRONMENT & COMMUNITIES",A F BLAKEMORE & SON LTD,15/02/2023,812.10,6413-Food & Drink Supplies,SUPPLIES & SERVICES,CATERING,REVENUE
Walsall Council,http://opendatacommunities.org/id/metropolitan-district-council/walsall ,WC147-265,28.02.2023,"ECONOMY, ENVIRONMENT & COMMUNITIES",A F BLAKEMORE & SON LTD,15/02/2023,313.75,6413-Food & Drink Supplies,SUPPLIES & SERVICES,CATERING,REVENUE
Walsall Council,http://opendatacommunities.org/id/metropolitan-district-council/walsall ,WC147-266,28.02.2023,"ECONOMY, ENVIRONMENT & COMMUNITIES",A F BLAKEMORE & SON LTD,15/02/2023,647.43,6413-Food & Drink Supplies,SUPPLIES & SERVICES,CATERING,REVENUE
Walsall Council,http://opendatacommunities.org/id/metropolitan-district-council/walsall ,WC147-267,28.02.2023,CHILDRENS,A1 WALSALL RADIO CARS,28/02/2023,"2,200.00",6241-Hire of Vehicle with Driver,TRANSPORT,DIRECT TRANSPORT COSTS,REVENUE
Walsall Council,http://opendatacommunities.org/id/metropolitan-district-council/walsall ,WC147-268,28.02.2023,CHILDRENS,A1 WALSALL RADIO CARS,28/02/2023,"2,400.00",6241-Hire of Vehicle with Driver,TRANSPORT,DIRECT TRANSPORT COSTS,REVENUE
Walsall Council,http://opendatacommunities.org/id/metropolitan-district-council/walsall ,WC147-269,28.02.2023,CHILDRENS,A1 WALSALL RADIO CARS,28/02/2023,"1,660.00",6241-Hire of Vehicle with Driver,TRANSPORT,DIRECT TRANSPORT COSTS,REVENUE
Walsall Council,http://opendatacommunities.org/id/metropolitan-district-council/walsall ,WC147-270,28.02.2023,CHILDRENS,A1 WALSALL RADIO CARS,28/02/2023,"1,700.00",6241-Hire of Vehicle with Driver,TRANSPORT,DIRECT TRANSPORT COSTS,REVENUE
Walsall Council,http://opendatacommunities.org/id/metropolitan-district-council/walsall ,WC147-271,28.02.2023,CHILDRENS,A1 WALSALL RADIO CARS,28/02/2023,"1,300.00",6241-Hire of Vehicle with Driver,TRANSPORT,DIRECT TRANSPORT COSTS,REVENUE
Walsall Council,http://opendatacommunities.org/id/metropolitan-district-council/walsall ,WC147-272,28.02.2023,CHILDRENS,A1 WALSALL RADIO CARS,28/02/2023,"2,160.00",6241-Hire of Vehicle with Driver,TRANSPORT,DIRECT TRANSPORT COSTS,REVENUE
Walsall Council,http://opendatacommunities.org/id/metropolitan-district-council/walsall ,WC147-273,28.02.2023,CHILDRENS,A1 WALSALL RADIO CARS,28/02/2023,"1,536.00",6241-Hire of Vehicle with Driver,TRANSPORT,DIRECT TRANSPORT COSTS,REVENUE
Walsall Council,http://opendatacommunities.org/id/metropolitan-district-council/walsall ,WC147-274,28.02.2023,CHILDRENS,A1 WALSALL RADIO CARS,28/02/2023,"2,000.00",6241-Hire of Vehicle with Driver,TRANSPORT,DIRECT TRANSPORT COSTS,REVENUE
Walsall Council,http://opendatacommunities.org/id/metropolitan-district-council/walsall ,WC147-275,28.02.2023,CHILDRENS,A1 WALSALL RADIO CARS,28/02/2023,250.00,6241-Hire of Vehicle with Driver,TRANSPORT,DIRECT TRANSPORT COSTS,REVENUE
Walsall Council,http://opendatacommunities.org/id/metropolitan-district-council/walsall ,WC147-276,28.02.2023,CHILDRENS,A1 WALSALL RADIO CARS,28/02/2023,"1,080.00",6241-Hire of Vehicle with Driver,TRANSPORT,DIRECT TRANSPORT COSTS,REVENUE
Walsall Council,http://opendatacommunities.org/id/metropolitan-district-council/walsall ,WC147-277,28.02.2023,CHILDRENS,A1 WALSALL RADIO CARS,28/02/2023,920.00,6241-Hire of Vehicle with Driver,TRANSPORT,DIRECT TRANSPORT COSTS,REVENUE
Walsall Council,http://opendatacommunities.org/id/metropolitan-district-council/walsall ,WC147-278,28.02.2023,"ECONOMY, ENVIRONMENT & COMMUNITIES",AAINA COMMUNITY HUB,02/02/2023,"1,809.50",6430-Grants to Other Orgs,SUPPLIES & SERVICES,GRANTS (EXP) & SUBSCRIPTIONS,REVENUE
Walsall Council,http://opendatacommunities.org/id/metropolitan-district-council/walsall ,WC147-279,28.02.2023,"ECONOMY, ENVIRONMENT & COMMUNITIES",AAINA COMMUNITY HUB,21/02/2023,"5,830.50",6313-Grants to Other Orgs,SUPPLIES & SERVICES,GRANTS (EXP) & SUBSCRIPTIONS,REVENUE
Walsall Council,http://opendatacommunities.org/id/metropolitan-district-council/walsall ,WC147-280,28.02.2023,ADULT SOCIAL CARE,REDACTED,02/02/2023,311.20,6541-Direct Payment,THIRD PARTY PAYMENTS,PRIVATE CONTRACTOR,REVENUE
Walsall Council,http://opendatacommunities.org/id/metropolitan-district-council/walsall ,WC147-281,28.02.2023,CHILDRENS,ABACUS FOSTERING LTD,21/02/2023,"2,763.20",6223-Independent Foster Care-Oth Agency Provision,THIRD PARTY PAYMENTS,PRIVATE CONTRACTOR,REVENUE
Walsall Council,http://opendatacommunities.org/id/metropolitan-district-council/walsall ,WC147-282,28.02.2023,CHILDRENS,ABACUS FOSTERING LTD,21/02/2023,"2,955.20",6223-Independent Foster Care-Oth Agency Provision,THIRD PARTY PAYMENTS,PRIVATE CONTRACTOR,REVENUE
Walsall Council,http://opendatacommunities.org/id/metropolitan-district-council/walsall ,WC147-283,28.02.2023,CHILDRENS CAPITAL,ABBEY BLINDS 001,07/02/2023,600.60,7155-Site Works Contractors,CAPITAL,"NEW CONSTRUCTION,CONVERSION & RENOVATION",CAPITAL
Walsall Council,http://opendatacommunities.org/id/metropolitan-district-council/walsall ,WC147-284,28.02.2023,ADULT SOCIAL CARE,ABBEY COURT NURSING & RESIDEN,13/02/2023,"2,606.04",6541-Residential EMI,THIRD PARTY PAYMENTS,PRIVATE CONTRACTOR,REVENUE
Walsall Council,http://opendatacommunities.org/id/metropolitan-district-council/walsall ,WC147-285,28.02.2023,ADULT SOCIAL CARE,ABBEY HEALTHCARE HOMES LTD,13/02/2023,"3,180.76",6541-Residential,THIRD PARTY PAYMENTS,PRIVATE CONTRACTOR,REVENUE
Walsall Council,http://opendatacommunities.org/id/metropolitan-district-council/walsall ,WC147-286,28.02.2023,ADULT SOCIAL CARE,ABBEY HEALTHCARE HOMES LTD,13/02/2023,"2,432.32",6541-Residential,THIRD PARTY PAYMENTS,PRIVATE CONTRACTOR,REVENUE
Walsall Council,http://opendatacommunities.org/id/metropolitan-district-council/walsall ,WC147-287,28.02.2023,ADULT SOCIAL CARE,ABBEY HEALTHCARE HOMES LTD,13/02/2023,"3,180.76",6541-Residential,THIRD PARTY PAYMENTS,PRIVATE CONTRACTOR,REVENUE
Walsall Council,http://opendatacommunities.org/id/metropolitan-district-council/walsall ,WC147-288,28.02.2023,ADULT SOCIAL CARE,ABBEY HEALTHCARE HOMES LTD,13/02/2023,"3,604.84",6541-Residential,THIRD PARTY PAYMENTS,PRIVATE CONTRACTOR,REVENUE
Walsall Council,http://opendatacommunities.org/id/metropolitan-district-council/walsall ,WC147-289,28.02.2023,CHILDRENS,ABC DAY NURSERY (WILLENHALL) LIMITED,15/02/2023,"5,088.94",1184-Other-Grants to Other Orgs,SUPPLIES & SERVICES,GRANTS (EXP) & SUBSCRIPTIONS,REVENUE
Walsall Council,http://opendatacommunities.org/id/metropolitan-district-council/walsall ,WC147-290,28.02.2023,CHILDRENS,ABC DAY NURSERY (WILLENHALL) LIMITED,15/02/2023,"4,976.40",1184-Other-Grants to Other Orgs,SUPPLIES & SERVICES,GRANTS (EXP) & SUBSCRIPTIONS,REVENUE
Walsall Council,http://opendatacommunities.org/id/metropolitan-district-council/walsall ,WC147-291,28.02.2023,ADULT SOCIAL CARE,REDACTED,02/02/2023,"2,212.84",6541-Direct Payment,THIRD PARTY PAYMENTS,PRIVATE CONTRACTOR,REVENUE
Walsall Council,http://opendatacommunities.org/id/metropolitan-district-council/walsall ,WC147-292,28.02.2023,ADULT SOCIAL CARE,ABILITY HEALTHCARE LTD,08/02/2023,"1,893.60",6541-Domiciliary Care,THIRD PARTY PAYMENTS,PRIVATE CONTRACTOR,REVENUE
Walsall Council,http://opendatacommunities.org/id/metropolitan-district-council/walsall ,WC147-293,28.02.2023,ADULT SOCIAL CARE,ABILITY HEALTHCARE LTD,08/02/2023,303.00,6541-Domiciliary Care,THIRD PARTY PAYMENTS,PRIVATE CONTRACTOR,REVENUE
Walsall Council,http://opendatacommunities.org/id/metropolitan-district-council/walsall ,WC147-294,28.02.2023,ADULT SOCIAL CARE,ABILITY HEALTHCARE LTD,08/02/2023,"1,885.52",6541-Domiciliary Care,THIRD PARTY PAYMENTS,PRIVATE CONTRACTOR,REVENUE
Walsall Council,http://opendatacommunities.org/id/metropolitan-district-council/walsall ,WC147-295,28.02.2023,ADULT SOCIAL CARE,ABILITY HEALTHCARE LTD,08/02/2023,"1,357.44",6541-Domiciliary Care,THIRD PARTY PAYMENTS,PRIVATE CONTRACTOR,REVENUE
Walsall Council,http://opendatacommunities.org/id/metropolitan-district-council/walsall ,WC147-296,28.02.2023,ADULT SOCIAL CARE,ABILITY HEALTHCARE LTD,08/02/2023,"1,163.52",6541-Domiciliary Care,THIRD PARTY PAYMENTS,PRIVATE CONTRACTOR,REVENUE
Walsall Council,http://opendatacommunities.org/id/metropolitan-district-council/walsall ,WC147-297,28.02.2023,ADULT SOCIAL CARE,ABILITY HEALTHCARE LTD,08/02/2023,"1,809.92",6541-Domiciliary Care,THIRD PARTY PAYMENTS,PRIVATE CONTRACTOR,REVENUE
Walsall Council,http://opendatacommunities.org/id/metropolitan-district-council/walsall ,WC147-298,28.02.2023,ADULT SOCIAL CARE,ABILITY HEALTHCARE LTD,08/02/2023,"1,885.52",6541-Domiciliary Care,THIRD PARTY PAYMENTS,PRIVATE CONTRACTOR,REVENUE
Walsall Council,http://opendatacommunities.org/id/metropolitan-district-council/walsall ,WC147-299,28.02.2023,ADULT SOCIAL CARE,ABILITY HEALTHCARE LTD,08/02/2023,"1,513.65",6541-Domiciliary Care,THIRD PARTY PAYMENTS,PRIVATE CONTRACTOR,REVENUE
Walsall Council,http://opendatacommunities.org/id/metropolitan-district-council/walsall ,WC147-300,28.02.2023,ADULT SOCIAL CARE,ABILITY HEALTHCARE LTD,08/02/2023,"1,018.08",6541-Domiciliary Care,THIRD PARTY PAYMENTS,PRIVATE CONTRACTOR,REVENUE
Walsall Council,http://opendatacommunities.org/id/metropolitan-district-council/walsall ,WC147-301,28.02.2023,ADULT SOCIAL CARE,ABILITY HEALTHCARE LTD,08/02/2023,"1,018.08",6541-Domiciliary Care,THIRD PARTY PAYMENTS,PRIVATE CONTRACTOR,REVENUE
Walsall Council,http://opendatacommunities.org/id/metropolitan-district-council/walsall ,WC147-302,28.02.2023,ADULT SOCIAL CARE,ABILITY HEALTHCARE LTD,08/02/2023,"2,036.16",6541-Domiciliary Care,THIRD PARTY PAYMENTS,PRIVATE CONTRACTOR,REVENUE
Walsall Council,http://opendatacommunities.org/id/metropolitan-district-council/walsall ,WC147-303,28.02.2023,ADULT SOCIAL CARE,ABILITY HEALTHCARE LTD,08/02/2023,"1,809.92",6541-Domiciliary Care,THIRD PARTY PAYMENTS,PRIVATE CONTRACTOR,REVENUE
Walsall Council,http://opendatacommunities.org/id/metropolitan-district-council/walsall ,WC147-304,28.02.2023,ADULT SOCIAL CARE,ABILITY HEALTHCARE LTD,08/02/2023,"1,583.68",6541-Domiciliary Care,THIRD PARTY PAYMENTS,PRIVATE CONTRACTOR,REVENUE
Walsall Council,http://opendatacommunities.org/id/metropolitan-district-council/walsall ,WC147-305,28.02.2023,ADULT SOCIAL CARE,ABILITY HEALTHCARE LTD,08/02/2023,"1,018.08",6541-Domiciliary Care,THIRD PARTY PAYMENTS,PRIVATE CONTRACTOR,REVENUE
Walsall Council,http://opendatacommunities.org/id/metropolitan-district-council/walsall ,WC147-306,28.02.2023,ADULT SOCIAL CARE,ABILITY HEALTHCARE LTD,08/02/2023,377.16,6541-Domiciliary Care,THIRD PARTY PAYMENTS,PRIVATE CONTRACTOR,REVENUE
Walsall Council,http://opendatacommunities.org/id/metropolitan-district-council/walsall ,WC147-307,28.02.2023,ADULT SOCIAL CARE,ABILITY HEALTHCARE LTD,08/02/2023,"1,486.72",6541-Domiciliary Care,THIRD PARTY PAYMENTS,PRIVATE CONTRACTOR,REVENUE
Walsall Council,http://opendatacommunities.org/id/metropolitan-district-council/walsall ,WC147-308,28.02.2023,ADULT SOCIAL CARE,ABILITY HEALTHCARE LTD,08/02/2023,905.52,6541-Domiciliary Care,THIRD PARTY PAYMENTS,PRIVATE CONTRACTOR,REVENUE
Walsall Council,http://opendatacommunities.org/id/metropolitan-district-council/walsall ,WC147-309,28.02.2023,ADULT SOCIAL CARE,ABILITY HEALTHCARE LTD,08/02/2023,824.16,6541-Domiciliary Care,THIRD PARTY PAYMENTS,PRIVATE CONTRACTOR,REVENUE
Walsall Council,http://opendatacommunities.org/id/metropolitan-district-council/walsall ,WC147-310,28.02.2023,ADULT SOCIAL CARE,ABILITY HEALTHCARE LTD,08/02/2023,904.96,6541-Domiciliary Care,THIRD PARTY PAYMENTS,PRIVATE CONTRACTOR,REVENUE
Walsall Council,http://opendatacommunities.org/id/metropolitan-district-council/walsall ,WC147-311,28.02.2023,ADULT SOCIAL CARE,ABILITY HEALTHCARE LTD,08/02/2023,"2,036.16",6541-Domiciliary Care,THIRD PARTY PAYMENTS,PRIVATE CONTRACTOR,REVENUE
Walsall Council,http://opendatacommunities.org/id/metropolitan-district-council/walsall ,WC147-312,28.02.2023,ADULT SOCIAL CARE,ABILITY HEALTHCARE LTD,08/02/2023,"1,809.92",6541-Domiciliary Care,THIRD PARTY PAYMENTS,PRIVATE CONTRACTOR,REVENUE
Walsall Council,http://opendatacommunities.org/id/metropolitan-district-council/walsall ,WC147-313,28.02.2023,ADULT SOCIAL CARE,ABILITY HEALTHCARE LTD,08/02/2023,"2,068.48",6541-Domiciliary Care,THIRD PARTY PAYMENTS,PRIVATE CONTRACTOR,REVENUE
Walsall Council,http://opendatacommunities.org/id/metropolitan-district-council/walsall ,WC147-314,28.02.2023,ADULT SOCIAL CARE,ABILITY HEALTHCARE LTD,08/02/2023,"1,648.32",6541-Domiciliary Care,THIRD PARTY PAYMENTS,PRIVATE CONTRACTOR,REVENUE
Walsall Council,http://opendatacommunities.org/id/metropolitan-district-council/walsall ,WC147-315,28.02.2023,ADULT SOCIAL CARE,ABILITY HEALTHCARE LTD,08/02/2023,"1,583.68",6541-Domiciliary Care,THIRD PARTY PAYMENTS,PRIVATE CONTRACTOR,REVENUE
Walsall Council,http://opendatacommunities.org/id/metropolitan-district-council/walsall ,WC147-316,28.02.2023,ADULT SOCIAL CARE,ABILITY HEALTHCARE LTD,08/02/2023,"1,809.92",6541-Domiciliary Care,THIRD PARTY PAYMENTS,PRIVATE CONTRACTOR,REVENUE
Walsall Council,http://opendatacommunities.org/id/metropolitan-district-council/walsall ,WC147-317,28.02.2023,ADULT SOCIAL CARE,ABILITY HEALTHCARE LTD,08/02/2023,"1,809.92",6541-Domiciliary Care,THIRD PARTY PAYMENTS,PRIVATE CONTRACTOR,REVENUE
Walsall Council,http://opendatacommunities.org/id/metropolitan-district-council/walsall ,WC147-318,28.02.2023,ADULT SOCIAL CARE,ABILITY HEALTHCARE LTD,08/02/2023,"2,036.16",6541-Domiciliary Care,THIRD PARTY PAYMENTS,PRIVATE CONTRACTOR,REVENUE
Walsall Council,http://opendatacommunities.org/id/metropolitan-district-council/walsall ,WC147-319,28.02.2023,ADULT SOCIAL CARE,ABILITY HEALTHCARE LTD,08/02/2023,452.76,6541-Domiciliary Care,THIRD PARTY PAYMENTS,PRIVATE CONTRACTOR,REVENUE
Walsall Council,http://opendatacommunities.org/id/metropolitan-district-council/walsall ,WC147-320,28.02.2023,ADULT SOCIAL CARE,ABILITY HEALTHCARE LTD,08/02/2023,"1,659.28",6541-Domiciliary Care,THIRD PARTY PAYMENTS,PRIVATE CONTRACTOR,REVENUE
Walsall Council,http://opendatacommunities.org/id/metropolitan-district-council/walsall ,WC147-321,28.02.2023,ADULT SOCIAL CARE,ABILITY HEALTHCARE LTD,08/02/2023,"1,206.80",6541-Domiciliary Care,THIRD PARTY PAYMENTS,PRIVATE CONTRACTOR,REVENUE
Walsall Council,http://opendatacommunities.org/id/metropolitan-district-council/walsall ,WC147-322,28.02.2023,ADULT SOCIAL CARE,ABILITY HEALTHCARE LTD,08/02/2023,"1,809.92",6541-Domiciliary Care,THIRD PARTY PAYMENTS,PRIVATE CONTRACTOR,REVENUE
Walsall Council,http://opendatacommunities.org/id/metropolitan-district-council/walsall ,WC147-323,28.02.2023,ADULT SOCIAL CARE,ABILITY HEALTHCARE LTD,08/02/2023,751.44,6541-Domiciliary Care,THIRD PARTY PAYMENTS,PRIVATE CONTRACTOR,REVENUE
Walsall Council,http://opendatacommunities.org/id/metropolitan-district-council/walsall ,WC147-324,28.02.2023,ADULT SOCIAL CARE,ABILITY HEALTHCARE LTD,08/02/2023,"2,036.16",6541-Domiciliary Care,THIRD PARTY PAYMENTS,PRIVATE CONTRACTOR,REVENUE
Walsall Council,http://opendatacommunities.org/id/metropolitan-district-council/walsall ,WC147-325,28.02.2023,ADULT SOCIAL CARE,ABILITY HEALTHCARE LTD,08/02/2023,509.04,6541-Domiciliary Care,THIRD PARTY PAYMENTS,PRIVATE CONTRACTOR,REVENUE
Walsall Council,http://opendatacommunities.org/id/metropolitan-district-council/walsall ,WC147-326,28.02.2023,ADULT SOCIAL CARE,ABILITY HEALTHCARE LTD,08/02/2023,533.28,6541-Domiciliary Care,THIRD PARTY PAYMENTS,PRIVATE CONTRACTOR,REVENUE
Walsall Council,http://opendatacommunities.org/id/metropolitan-district-council/walsall ,WC147-327,28.02.2023,ADULT SOCIAL CARE,ABILITY HEALTHCARE LTD,08/02/2023,"2,036.16",6554-Professional Services-Priv Contractor & Other Agencies,THIRD PARTY PAYMENTS,PRIVATE CONTRACTOR,REVENUE
Walsall Council,http://opendatacommunities.org/id/metropolitan-district-council/walsall ,WC147-328,28.02.2023,ADULT SOCIAL CARE,ABILITY HEALTHCARE LTD,08/02/2023,799.92,6554-Professional Services-Priv Contractor & Other Agencies,THIRD PARTY PAYMENTS,PRIVATE CONTRACTOR,REVENUE
Walsall Council,http://opendatacommunities.org/id/metropolitan-district-council/walsall ,WC147-329,28.02.2023,ADULT SOCIAL CARE,ABILITY HEALTHCARE LTD,08/02/2023,"2,036.16",6554-Professional Services-Priv Contractor & Other Agencies,THIRD PARTY PAYMENTS,PRIVATE CONTRACTOR,REVENUE
Walsall Council,http://opendatacommunities.org/id/metropolitan-district-council/walsall ,WC147-330,28.02.2023,ADULT SOCIAL CARE,ABILITY HEALTHCARE LTD,08/02/2023,"2,133.12",6554-Professional Services-Priv Contractor & Other Agencies,THIRD PARTY PAYMENTS,PRIVATE CONTRACTOR,REVENUE
Walsall Council,http://opendatacommunities.org/id/metropolitan-district-council/walsall ,WC147-331,28.02.2023,ADULT SOCIAL CARE,ABILITY HEALTHCARE LTD,08/02/2023,323.20,6554-Professional Services-Priv Contractor & Other Agencies,THIRD PARTY PAYMENTS,PRIVATE CONTRACTOR,REVENUE
Walsall Council,http://opendatacommunities.org/id/metropolitan-district-council/walsall ,WC147-332,28.02.2023,ADULT SOCIAL CARE,ABILITY HEALTHCARE LTD,08/02/2023,500.96,6554-Professional Services-Priv Contractor & Other Agencies,THIRD PARTY PAYMENTS,PRIVATE CONTRACTOR,REVENUE
Walsall Council,http://opendatacommunities.org/id/metropolitan-district-council/walsall ,WC147-333,28.02.2023,ADULT SOCIAL CARE,ABILITY HEALTHCARE LTD,08/02/2023,"1,527.12",6554-Professional Services-Priv Contractor & Other Agencies,THIRD PARTY PAYMENTS,PRIVATE CONTRACTOR,REVENUE
Walsall Council,http://opendatacommunities.org/id/metropolitan-district-council/walsall ,WC147-334,28.02.2023,CHILDRENS,ABLEWELL CARS,28/02/2023,"1,264.00",6241-Hire of Vehicle with Driver,TRANSPORT,DIRECT TRANSPORT COSTS,REVENUE
Walsall Council,http://opendatacommunities.org/id/metropolitan-district-council/walsall ,WC147-335,28.02.2023,CHILDRENS,ABLEWELL CARS,28/02/2023,"1,471.20",6241-Hire of Vehicle with Driver,TRANSPORT,DIRECT TRANSPORT COSTS,REVENUE
Walsall Council,http://opendatacommunities.org/id/metropolitan-district-council/walsall ,WC147-336,28.02.2023,CHILDRENS,ABLEWELL CARS,28/02/2023,"1,320.00",6241-Hire of Vehicle with Driver,TRANSPORT,DIRECT TRANSPORT COSTS,REVENUE
Walsall Council,http://opendatacommunities.org/id/metropolitan-district-council/walsall ,WC147-337,28.02.2023,CHILDRENS,ABLEWELL CARS,28/02/2023,"1,664.00",6241-Hire of Vehicle with Driver,TRANSPORT,DIRECT TRANSPORT COSTS,REVENUE
Walsall Council,http://opendatacommunities.org/id/metropolitan-district-council/walsall ,WC147-338,28.02.2023,CHILDRENS,ABLEWELL CARS,28/02/2023,"1,617.00",6241-Hire of Vehicle with Driver,TRANSPORT,DIRECT TRANSPORT COSTS,REVENUE
Walsall Council,http://opendatacommunities.org/id/metropolitan-district-council/walsall ,WC147-339,28.02.2023,CHILDRENS,ABLEWELL CARS,28/02/2023,"2,650.80",6241-Hire of Vehicle with Driver,TRANSPORT,DIRECT TRANSPORT COSTS,REVENUE
Walsall Council,http://opendatacommunities.org/id/metropolitan-district-council/walsall ,WC147-340,28.02.2023,CHILDRENS,ABS TAXIS (ALDRIDGE),28/02/2023,"1,776.00",6241-Hire of Vehicle with Driver,TRANSPORT,DIRECT TRANSPORT COSTS,REVENUE
Walsall Council,http://opendatacommunities.org/id/metropolitan-district-council/walsall ,WC147-341,28.02.2023,CHILDRENS,ABS TAXIS (ALDRIDGE),28/02/2023,"1,974.00",6241-Hire of Vehicle with Driver,TRANSPORT,DIRECT TRANSPORT COSTS,REVENUE
Walsall Council,http://opendatacommunities.org/id/metropolitan-district-council/walsall ,WC147-342,28.02.2023,CHILDRENS,ABS TAXIS (ALDRIDGE),28/02/2023,"1,610.00",6241-Hire of Vehicle with Driver,TRANSPORT,DIRECT TRANSPORT COSTS,REVENUE
Walsall Council,http://opendatacommunities.org/id/metropolitan-district-council/walsall ,WC147-343,28.02.2023,CHILDRENS,ABS TAXIS (ALDRIDGE),28/02/2023,"1,400.00",6241-Hire of Vehicle with Driver,TRANSPORT,DIRECT TRANSPORT COSTS,REVENUE
Walsall Council,http://opendatacommunities.org/id/metropolitan-district-council/walsall ,WC147-344,28.02.2023,ADULT SOCIAL CARE,ABSOLUTE HEALTHCARE SWAN HOUSE LTD,13/02/2023,"2,095.40",6541-Residential,THIRD PARTY PAYMENTS,PRIVATE CONTRACTOR,REVENUE
Walsall Council,http://opendatacommunities.org/id/metropolitan-district-council/walsall ,WC147-345,28.02.2023,ADULT SOCIAL CARE,ABSOLUTE HEALTHCARE SWAN HOUSE LTD,13/02/2023,823.19,6541-Residential,THIRD PARTY PAYMENTS,PRIVATE CONTRACTOR,REVENUE
Walsall Council,http://opendatacommunities.org/id/metropolitan-district-council/walsall ,WC147-346,28.02.2023,ADULT SOCIAL CARE,ABSOLUTE HEALTHCARE SWAN HOUSE LTD,13/02/2023,"2,366.04",6541-Residential EMI,THIRD PARTY PAYMENTS,PRIVATE CONTRACTOR,REVENUE
Walsall Council,http://opendatacommunities.org/id/metropolitan-district-council/walsall ,WC147-347,28.02.2023,ADULT SOCIAL CARE,ABSOLUTE HEALTHCARE SWAN HOUSE LTD,13/02/2023,"2,235.40",6541-Residential,THIRD PARTY PAYMENTS,PRIVATE CONTRACTOR,REVENUE
Walsall Council,http://opendatacommunities.org/id/metropolitan-district-council/walsall ,WC147-348,28.02.2023,ADULT SOCIAL CARE,ABSOLUTE HEALTHCARE SWAN HOUSE LTD,13/02/2023,"2,135.40",6541-Residential,THIRD PARTY PAYMENTS,PRIVATE CONTRACTOR,REVENUE
Walsall Council,http://opendatacommunities.org/id/metropolitan-district-council/walsall ,WC147-349,28.02.2023,ADULT SOCIAL CARE,ABSOLUTE HEALTHCARE SWAN HOUSE LTD,13/02/2023,"2,095.40",6541-Residential,THIRD PARTY PAYMENTS,PRIVATE CONTRACTOR,REVENUE
Walsall Council,http://opendatacommunities.org/id/metropolitan-district-council/walsall ,WC147-350,28.02.2023,ADULT SOCIAL CARE,ABSOLUTE HEALTHCARE SWAN HOUSE LTD,13/02/2023,"2,095.40",6541-Residential,THIRD PARTY PAYMENTS,PRIVATE CONTRACTOR,REVENUE
Walsall Council,http://opendatacommunities.org/id/metropolitan-district-council/walsall ,WC147-351,28.02.2023,ADULT SOCIAL CARE,ABSOLUTE HEALTHCARE SWAN HOUSE LTD,13/02/2023,"2,366.04",6541-Residential EMI,THIRD PARTY PAYMENTS,PRIVATE CONTRACTOR,REVENUE
Walsall Council,http://opendatacommunities.org/id/metropolitan-district-council/walsall ,WC147-352,28.02.2023,ADULT SOCIAL CARE,ABSOLUTE HEALTHCARE SWAN HOUSE LTD,13/02/2023,"2,763.80",6541-Nursing EMI,THIRD PARTY PAYMENTS,PRIVATE CONTRACTOR,REVENUE
Walsall Council,http://opendatacommunities.org/id/metropolitan-district-council/walsall ,WC147-353,28.02.2023,ADULT SOCIAL CARE,ABSOLUTE HEALTHCARE SWAN HOUSE LTD,13/02/2023,"2,366.04",6541-Residential EMI,THIRD PARTY PAYMENTS,PRIVATE CONTRACTOR,REVENUE
Walsall Council,http://opendatacommunities.org/id/metropolitan-district-council/walsall ,WC147-354,28.02.2023,ADULT SOCIAL CARE,ABSOLUTE HEALTHCARE SWAN HOUSE LTD,13/02/2023,"2,095.40",6541-Residential,THIRD PARTY PAYMENTS,PRIVATE CONTRACTOR,REVENUE
Walsall Council,http://opendatacommunities.org/id/metropolitan-district-council/walsall ,WC147-355,28.02.2023,ADULT SOCIAL CARE,ABSOLUTE HEALTHCARE SWAN HOUSE LTD,13/02/2023,305.05,6541-Residential,THIRD PARTY PAYMENTS,PRIVATE CONTRACTOR,REVENUE
Walsall Council,http://opendatacommunities.org/id/metropolitan-district-council/walsall ,WC147-356,28.02.2023,ADULT SOCIAL CARE,ABSOLUTE HEALTHCARE SWAN HOUSE LTD,13/02/2023,"-4,647.58",6541-Residential EMI,THIRD PARTY PAYMENTS,PRIVATE CONTRACTOR,REVENUE
Walsall Council,http://opendatacommunities.org/id/metropolitan-district-council/walsall ,WC147-357,28.02.2023,ADULT SOCIAL CARE,ABSOLUTE HEALTHCARE SWAN HOUSE LTD,13/02/2023,"2,095.40",6541-Residential,THIRD PARTY PAYMENTS,PRIVATE CONTRACTOR,REVENUE
Walsall Council,http://opendatacommunities.org/id/metropolitan-district-council/walsall ,WC147-358,28.02.2023,ADULT SOCIAL CARE,ABSOLUTE HEALTHCARE SWAN HOUSE LTD,13/02/2023,"2,366.04",6541-Residential EMI,THIRD PARTY PAYMENTS,PRIVATE CONTRACTOR,REVENUE
Walsall Council,http://opendatacommunities.org/id/metropolitan-district-council/walsall ,WC147-359,28.02.2023,ADULT SOCIAL CARE,ABSOLUTE HEALTHCARE SWAN HOUSE LTD,13/02/2023,"7,013.62",6541-Residential EMI,THIRD PARTY PAYMENTS,PRIVATE CONTRACTOR,REVENUE
Walsall Council,http://opendatacommunities.org/id/metropolitan-district-council/walsall ,WC147-360,28.02.2023,CHILDRENS,ABSOLUTE INTERPRETING & TRANSLATIONS LTD,22/02/2023,456.00,6223-Language & Interpretation Services,SUPPLIES & SERVICES,SERVICES,REVENUE
Walsall Council,http://opendatacommunities.org/id/metropolitan-district-council/walsall ,WC147-361,28.02.2023,CHILDRENS,ABU BAKR NURSERY,15/02/2023,"8,318.06",1184-Other-Grants to Other Orgs,SUPPLIES & SERVICES,GRANTS (EXP) & SUBSCRIPTIONS,REVENUE
Walsall Council,http://opendatacommunities.org/id/metropolitan-district-council/walsall ,WC147-362,28.02.2023,CHILDRENS,ABU BAKR NURSERY,15/02/2023,"20,298.84",1184-Other-Grants to Other Orgs,SUPPLIES & SERVICES,GRANTS (EXP) & SUBSCRIPTIONS,REVENUE
Walsall Council,http://opendatacommunities.org/id/metropolitan-district-council/walsall ,WC147-363,28.02.2023,CHILDRENS,ACCALIA CARE SERVICES LTD,21/02/2023,"20,960.00",6223-External Residential Care-Oth Agency Provision,THIRD PARTY PAYMENTS,PRIVATE CONTRACTOR,REVENUE
Walsall Council,http://opendatacommunities.org/id/metropolitan-district-council/walsall ,WC147-364,28.02.2023,CHILDRENS,ACCEPTING BEHAVIOUR LTD,03/02/2023,682.50,1220-Professional Fees & Services,SUPPLIES & SERVICES,SERVICES,REVENUE
Walsall Council,http://opendatacommunities.org/id/metropolitan-district-council/walsall ,WC147-365,28.02.2023,HOLDING ACCOUNTS,ACCLAIM LEGAL SERVICES LIMITED,09/02/2023,300.00,2877-Insurance Payment Claims,SUPPLIES & SERVICES,INSURANCE,REVENUE
Walsall Council,http://opendatacommunities.org/id/metropolitan-district-council/walsall ,WC147-366,28.02.2023,ADULT SOCIAL CARE,ACCORD HOUSING ASSOCIATION LIMITED - HOBS MEADOW,13/02/2023,"4,776.84",6541-Residential,THIRD PARTY PAYMENTS,PRIVATE CONTRACTOR,REVENUE
Walsall Council,http://opendatacommunities.org/id/metropolitan-district-council/walsall ,WC147-367,28.02.2023,ADULT SOCIAL CARE,ACCORD HOUSING ASSOCIATION LIMITED - HOBS MEADOW,13/02/2023,"4,776.84",6541-Residential,THIRD PARTY PAYMENTS,PRIVATE CONTRACTOR,REVENUE
Walsall Council,http://opendatacommunities.org/id/metropolitan-district-council/walsall ,WC147-368,28.02.2023,ADULT SOCIAL CARE,ACCORD HOUSING ASSOCIATION LIMITED - HOBS MEADOW,13/02/2023,"4,776.84",6541-Residential,THIRD PARTY PAYMENTS,PRIVATE CONTRACTOR,REVENUE
Walsall Council,http://opendatacommunities.org/id/metropolitan-district-council/walsall ,WC147-369,28.02.2023,ADULT SOCIAL CARE,ACCORD HOUSING ASSOCIATION LIMITED - HOBS MEADOW,13/02/2023,"4,776.84",6541-Residential,THIRD PARTY PAYMENTS,PRIVATE CONTRACTOR,REVENUE
Walsall Council,http://opendatacommunities.org/id/metropolitan-district-council/walsall ,WC147-370,28.02.2023,CHILDRENS,ACE CARS & MINIBUSES LTD,28/02/2023,"2,360.00",6241-Hire of Vehicle with Driver,TRANSPORT,DIRECT TRANSPORT COSTS,REVENUE
Walsall Council,http://opendatacommunities.org/id/metropolitan-district-council/walsall ,WC147-371,28.02.2023,CHILDRENS,ACE CARS & MINIBUSES LTD,28/02/2023,"2,690.40",6241-Hire of Vehicle with Driver,TRANSPORT,DIRECT TRANSPORT COSTS,REVENUE
Walsall Council,http://opendatacommunities.org/id/metropolitan-district-council/walsall ,WC147-372,28.02.2023,CHILDRENS,ACE CARS & MINIBUSES LTD,28/02/2023,"2,501.60",6241-Hire of Vehicle with Driver,TRANSPORT,DIRECT TRANSPORT COSTS,REVENUE
Walsall Council,http://opendatacommunities.org/id/metropolitan-district-council/walsall ,WC147-373,28.02.2023,CHILDRENS,ACE CARS & MINIBUSES LTD,28/02/2023,"2,360.00",6241-Hire of Vehicle with Driver,TRANSPORT,DIRECT TRANSPORT COSTS,REVENUE
Walsall Council,http://opendatacommunities.org/id/metropolitan-district-council/walsall ,WC147-374,28.02.2023,CHILDRENS,ACE CARS & MINIBUSES LTD,28/02/2023,"3,200.00",6241-Hire of Vehicle with Driver,TRANSPORT,DIRECT TRANSPORT COSTS,REVENUE
Walsall Council,http://opendatacommunities.org/id/metropolitan-district-council/walsall ,WC147-375,28.02.2023,CHILDRENS,ACE CARS & MINIBUSES LTD,28/02/2023,"3,783.80",6241-Hire of Vehicle with Driver,TRANSPORT,DIRECT TRANSPORT COSTS,REVENUE
Walsall Council,http://opendatacommunities.org/id/metropolitan-district-council/walsall ,WC147-376,28.02.2023,CHILDRENS,ACE CARS & MINIBUSES LTD,28/02/2023,"2,722.00",6241-Hire of Vehicle with Driver,TRANSPORT,DIRECT TRANSPORT COSTS,REVENUE
Walsall Council,http://opendatacommunities.org/id/metropolitan-district-council/walsall ,WC147-377,28.02.2023,CHILDRENS,ACE CARS & MINIBUSES LTD,28/02/2023,"3,075.80",6241-Hire of Vehicle with Driver,TRANSPORT,DIRECT TRANSPORT COSTS,REVENUE
Walsall Council,http://opendatacommunities.org/id/metropolitan-district-council/walsall ,WC147-378,28.02.2023,CHILDRENS,ACE CARS & MINIBUSES LTD,28/02/2023,"3,393.80",6241-Hire of Vehicle with Driver,TRANSPORT,DIRECT TRANSPORT COSTS,REVENUE
Walsall Council,http://opendatacommunities.org/id/metropolitan-district-council/walsall ,WC147-379,28.02.2023,CHILDRENS,ACE CARS & MINIBUSES LTD,28/02/2023,"2,140.00",6241-Hire of Vehicle with Driver,TRANSPORT,DIRECT TRANSPORT COSTS,REVENUE
Walsall Council,http://opendatacommunities.org/id/metropolitan-district-council/walsall ,WC147-380,28.02.2023,CHILDRENS,ACE CARS & MINIBUSES LTD,28/02/2023,"2,140.00",6241-Hire of Vehicle with Driver,TRANSPORT,DIRECT TRANSPORT COSTS,REVENUE
Walsall Council,http://opendatacommunities.org/id/metropolitan-district-council/walsall ,WC147-381,28.02.2023,CHILDRENS,ACE CARS & MINIBUSES LTD,28/02/2023,"2,360.00",6241-Hire of Vehicle with Driver,TRANSPORT,DIRECT TRANSPORT COSTS,REVENUE
Walsall Council,http://opendatacommunities.org/id/metropolitan-district-council/walsall ,WC147-382,28.02.2023,CHILDRENS,ACE CARS & MINIBUSES LTD,28/02/2023,"2,280.00",6241-Hire of Vehicle with Driver,TRANSPORT,DIRECT TRANSPORT COSTS,REVENUE
Walsall Council,http://opendatacommunities.org/id/metropolitan-district-council/walsall ,WC147-383,28.02.2023,CHILDRENS,ACE CARS & MINIBUSES LTD,28/02/2023,"2,280.00",6241-Hire of Vehicle with Driver,TRANSPORT,DIRECT TRANSPORT COSTS,REVENUE
Walsall Council,http://opendatacommunities.org/id/metropolitan-district-council/walsall ,WC147-384,28.02.2023,CHILDRENS,ACE CARS & MINIBUSES LTD,28/02/2023,"3,848.00",6241-Hire of Vehicle with Driver,TRANSPORT,DIRECT TRANSPORT COSTS,REVENUE
Walsall Council,http://opendatacommunities.org/id/metropolitan-district-council/walsall ,WC147-385,28.02.2023,CHILDRENS,ACE CARS & MINIBUSES LTD,28/02/2023,"2,280.00",6241-Hire of Vehicle with Driver,TRANSPORT,DIRECT TRANSPORT COSTS,REVENUE
Walsall Council,http://opendatacommunities.org/id/metropolitan-district-council/walsall ,WC147-386,28.02.2023,CHILDRENS,ACE CARS & MINIBUSES LTD,28/02/2023,"3,115.20",6241-Hire of Vehicle with Driver,TRANSPORT,DIRECT TRANSPORT COSTS,REVENUE
Walsall Council,http://opendatacommunities.org/id/metropolitan-district-council/walsall ,WC147-387,28.02.2023,CHILDRENS,ACE CARS & MINIBUSES LTD,28/02/2023,"2,140.00",6241-Hire of Vehicle with Driver,TRANSPORT,DIRECT TRANSPORT COSTS,REVENUE
Walsall Council,http://opendatacommunities.org/id/metropolitan-district-council/walsall ,WC147-388,28.02.2023,CHILDRENS,ACE CARS & MINIBUSES LTD,28/02/2023,"2,140.00",6241-Hire of Vehicle with Driver,TRANSPORT,DIRECT TRANSPORT COSTS,REVENUE
Walsall Council,http://opendatacommunities.org/id/metropolitan-district-council/walsall ,WC147-389,28.02.2023,CHILDRENS,ACE CARS & MINIBUSES LTD,28/02/2023,"2,140.00",6241-Hire of Vehicle with Driver,TRANSPORT,DIRECT TRANSPORT COSTS,REVENUE
Walsall Council,http://opendatacommunities.org/id/metropolitan-district-council/walsall ,WC147-390,28.02.2023,CHILDRENS,ACE CARS & MINIBUSES LTD,28/02/2023,"2,140.00",6241-Hire of Vehicle with Driver,TRANSPORT,DIRECT TRANSPORT COSTS,REVENUE
Walsall Council,http://opendatacommunities.org/id/metropolitan-district-council/walsall ,WC147-391,28.02.2023,CHILDRENS,ACE CARS & MINIBUSES LTD,28/02/2023,"2,360.00",6241-Hire of Vehicle with Driver,TRANSPORT,DIRECT TRANSPORT COSTS,REVENUE
Walsall Council,http://opendatacommunities.org/id/metropolitan-district-council/walsall ,WC147-392,28.02.2023,CHILDRENS,ACE CARS & MINIBUSES LTD,28/02/2023,"3,170.00",6241-Hire of Vehicle with Driver,TRANSPORT,DIRECT TRANSPORT COSTS,REVENUE
Walsall Council,http://opendatacommunities.org/id/metropolitan-district-council/walsall ,WC147-393,28.02.2023,CHILDRENS,ACE CARS & MINIBUSES LTD,28/02/2023,"2,390.00",6241-Hire of Vehicle with Driver,TRANSPORT,DIRECT TRANSPORT COSTS,REVENUE
Walsall Council,http://opendatacommunities.org/id/metropolitan-district-council/walsall ,WC147-394,28.02.2023,CHILDRENS,ACE CARS & MINIBUSES LTD,28/02/2023,"2,629.00",6241-Hire of Vehicle with Driver,TRANSPORT,DIRECT TRANSPORT COSTS,REVENUE
Walsall Council,http://opendatacommunities.org/id/metropolitan-district-council/walsall ,WC147-395,28.02.2023,CHILDRENS,ACE CARS & MINIBUSES LTD,28/02/2023,"2,390.00",6241-Hire of Vehicle with Driver,TRANSPORT,DIRECT TRANSPORT COSTS,REVENUE
Walsall Council,http://opendatacommunities.org/id/metropolitan-district-council/walsall ,WC147-396,28.02.2023,CHILDRENS,ACE CARS & MINIBUSES LTD,28/02/2023,"2,722.00",6241-Hire of Vehicle with Driver,TRANSPORT,DIRECT TRANSPORT COSTS,REVENUE
Walsall Council,http://opendatacommunities.org/id/metropolitan-district-council/walsall ,WC147-397,28.02.2023,CHILDRENS,ACE CARS & MINIBUSES LTD,28/02/2023,"2,722.00",6241-Hire of Vehicle with Driver,TRANSPORT,DIRECT TRANSPORT COSTS,REVENUE
Walsall Council,http://opendatacommunities.org/id/metropolitan-district-council/walsall ,WC147-398,28.02.2023,CHILDRENS,ACE CARS & MINIBUSES LTD,28/02/2023,"2,280.00",6241-Hire of Vehicle with Driver,TRANSPORT,DIRECT TRANSPORT COSTS,REVENUE
Walsall Council,http://opendatacommunities.org/id/metropolitan-district-council/walsall ,WC147-399,28.02.2023,CHILDRENS,ACE CARS & MINIBUSES LTD,28/02/2023,"2,140.00",6241-Hire of Vehicle with Driver,TRANSPORT,DIRECT TRANSPORT COSTS,REVENUE
Walsall Council,http://opendatacommunities.org/id/metropolitan-district-council/walsall ,WC147-400,28.02.2023,CHILDRENS,ACE CARS & MINIBUSES LTD,28/02/2023,"4,248.00",6241-Hire of Vehicle with Driver,TRANSPORT,DIRECT TRANSPORT COSTS,REVENUE
Walsall Council,http://opendatacommunities.org/id/metropolitan-district-council/walsall ,WC147-401,28.02.2023,CHILDRENS,ACE CARS & MINIBUSES LTD,28/02/2023,"2,140.00",6241-Hire of Vehicle with Driver,TRANSPORT,DIRECT TRANSPORT COSTS,REVENUE
Walsall Council,http://opendatacommunities.org/id/metropolitan-district-council/walsall ,WC147-402,28.02.2023,CHILDRENS,ACE CARS & MINIBUSES LTD,28/02/2023,"2,140.00",6241-Hire of Vehicle with Driver,TRANSPORT,DIRECT TRANSPORT COSTS,REVENUE
Walsall Council,http://opendatacommunities.org/id/metropolitan-district-council/walsall ,WC147-403,28.02.2023,CHILDRENS,ACE CARS & MINIBUSES LTD,28/02/2023,"2,140.00",6241-Hire of Vehicle with Driver,TRANSPORT,DIRECT TRANSPORT COSTS,REVENUE
Walsall Council,http://opendatacommunities.org/id/metropolitan-district-council/walsall ,WC147-404,28.02.2023,CHILDRENS,ACE CARS & MINIBUSES LTD,28/02/2023,"2,360.00",6241-Hire of Vehicle with Driver,TRANSPORT,DIRECT TRANSPORT COSTS,REVENUE
Walsall Council,http://opendatacommunities.org/id/metropolitan-district-council/walsall ,WC147-405,28.02.2023,CHILDRENS,ACE CARS & MINIBUSES LTD,28/02/2023,"2,390.00",6241-Hire of Vehicle with Driver,TRANSPORT,DIRECT TRANSPORT COSTS,REVENUE
Walsall Council,http://opendatacommunities.org/id/metropolitan-district-council/walsall ,WC147-406,28.02.2023,CHILDRENS,ACE CARS & MINIBUSES LTD,28/02/2023,"2,722.00",6241-Hire of Vehicle with Driver,TRANSPORT,DIRECT TRANSPORT COSTS,REVENUE
Walsall Council,http://opendatacommunities.org/id/metropolitan-district-council/walsall ,WC147-407,28.02.2023,CHILDRENS,ACE CARS & MINIBUSES LTD,28/02/2023,"2,722.00",6241-Hire of Vehicle with Driver,TRANSPORT,DIRECT TRANSPORT COSTS,REVENUE
Walsall Council,http://opendatacommunities.org/id/metropolitan-district-council/walsall ,WC147-408,28.02.2023,CHILDRENS,ACE CARS & MINIBUSES LTD,28/02/2023,"2,722.00",6241-Hire of Vehicle with Driver,TRANSPORT,DIRECT TRANSPORT COSTS,REVENUE
Walsall Council,http://opendatacommunities.org/id/metropolitan-district-council/walsall ,WC147-409,28.02.2023,CHILDRENS,ACE CARS & MINIBUSES LTD,28/02/2023,"3,390.00",6241-Hire of Vehicle with Driver,TRANSPORT,DIRECT TRANSPORT COSTS,REVENUE
Walsall Council,http://opendatacommunities.org/id/metropolitan-district-council/walsall ,WC147-410,28.02.2023,ADULT SOCIAL CARE,ACEPAY LTD (COTTAGE NUR HOME),13/02/2023,"2,456.24",6541-Nursing,THIRD PARTY PAYMENTS,PRIVATE CONTRACTOR,REVENUE
Walsall Council,http://opendatacommunities.org/id/metropolitan-district-council/walsall ,WC147-411,28.02.2023,ADULT SOCIAL CARE,ACEPAY LTD (COTTAGE NUR HOME),13/02/2023,"2,456.24",6541-Nursing,THIRD PARTY PAYMENTS,PRIVATE CONTRACTOR,REVENUE
Walsall Council,http://opendatacommunities.org/id/metropolitan-district-council/walsall ,WC147-412,28.02.2023,ADULT SOCIAL CARE,ACEPAY LTD (COTTAGE NUR HOME),13/02/2023,"2,456.24",6541-Nursing,THIRD PARTY PAYMENTS,PRIVATE CONTRACTOR,REVENUE
Walsall Council,http://opendatacommunities.org/id/metropolitan-district-council/walsall ,WC147-413,28.02.2023,ADULT SOCIAL CARE,ACEPAY LTD (COTTAGE NUR HOME),13/02/2023,"2,366.04",6541-Residential EMI,THIRD PARTY PAYMENTS,PRIVATE CONTRACTOR,REVENUE
Walsall Council,http://opendatacommunities.org/id/metropolitan-district-council/walsall ,WC147-414,28.02.2023,ADULT SOCIAL CARE,ACEPAY LTD (COTTAGE NUR HOME),13/02/2023,"2,456.24",6541-Nursing,THIRD PARTY PAYMENTS,PRIVATE CONTRACTOR,REVENUE
Walsall Council,http://opendatacommunities.org/id/metropolitan-district-council/walsall ,WC147-415,28.02.2023,ADULT SOCIAL CARE,ACEPAY LTD (COTTAGE NUR HOME),13/02/2023,"2,656.24",6541-Nursing,THIRD PARTY PAYMENTS,PRIVATE CONTRACTOR,REVENUE
Walsall Council,http://opendatacommunities.org/id/metropolitan-district-council/walsall ,WC147-416,28.02.2023,ADULT SOCIAL CARE,ACEPAY LTD (COTTAGE NUR HOME),13/02/2023,"2,763.80",6541-Nursing EMI,THIRD PARTY PAYMENTS,PRIVATE CONTRACTOR,REVENUE
Walsall Council,http://opendatacommunities.org/id/metropolitan-district-council/walsall ,WC147-417,28.02.2023,ADULT SOCIAL CARE,ACEPAY LTD (COTTAGE NUR HOME),13/02/2023,"2,366.04",6541-Residential EMI,THIRD PARTY PAYMENTS,PRIVATE CONTRACTOR,REVENUE
Walsall Council,http://opendatacommunities.org/id/metropolitan-district-council/walsall ,WC147-418,28.02.2023,ADULT SOCIAL CARE,ACEPAY LTD (COTTAGE NUR HOME),13/02/2023,"2,456.24",6541-Nursing,THIRD PARTY PAYMENTS,PRIVATE CONTRACTOR,REVENUE
Walsall Council,http://opendatacommunities.org/id/metropolitan-district-council/walsall ,WC147-419,28.02.2023,ADULT SOCIAL CARE,ACEPAY LTD (COTTAGE NUR HOME),13/02/2023,"2,456.24",6541-Nursing,THIRD PARTY PAYMENTS,PRIVATE CONTRACTOR,REVENUE
Walsall Council,http://opendatacommunities.org/id/metropolitan-district-council/walsall ,WC147-420,28.02.2023,ADULT SOCIAL CARE,ACEPAY LTD (COTTAGE NUR HOME),13/02/2023,"2,763.80",6541-Nursing EMI,THIRD PARTY PAYMENTS,PRIVATE CONTRACTOR,REVENUE
Walsall Council,http://opendatacommunities.org/id/metropolitan-district-council/walsall ,WC147-421,28.02.2023,ADULT SOCIAL CARE,ACEPAY LTD (COTTAGE NUR HOME),13/02/2023,"2,366.04",6541-Residential EMI,THIRD PARTY PAYMENTS,PRIVATE CONTRACTOR,REVENUE
Walsall Council,http://opendatacommunities.org/id/metropolitan-district-council/walsall ,WC147-422,28.02.2023,ADULT SOCIAL CARE,ACEPAY LTD (COTTAGE NUR HOME),13/02/2023,"2,366.04",6541-Residential EMI,THIRD PARTY PAYMENTS,PRIVATE CONTRACTOR,REVENUE
Walsall Council,http://opendatacommunities.org/id/metropolitan-district-council/walsall ,WC147-423,28.02.2023,ADULT SOCIAL CARE,ACEPAY LTD (COTTAGE NUR HOME),13/02/2023,"2,763.80",6541-Nursing EMI,THIRD PARTY PAYMENTS,PRIVATE CONTRACTOR,REVENUE
Walsall Council,http://opendatacommunities.org/id/metropolitan-district-council/walsall ,WC147-424,28.02.2023,ADULT SOCIAL CARE,ACEPAY LTD (COTTAGE NUR HOME),13/02/2023,"2,456.24",6541-Nursing,THIRD PARTY PAYMENTS,PRIVATE CONTRACTOR,REVENUE
Walsall Council,http://opendatacommunities.org/id/metropolitan-district-council/walsall ,WC147-425,28.02.2023,ADULT SOCIAL CARE,ACEPAY LTD (COTTAGE NUR HOME),13/02/2023,"2,456.24",6541-Nursing,THIRD PARTY PAYMENTS,PRIVATE CONTRACTOR,REVENUE
Walsall Council,http://opendatacommunities.org/id/metropolitan-district-council/walsall ,WC147-426,28.02.2023,ADULT SOCIAL CARE,ACEPAY LTD (COTTAGE NUR HOME),13/02/2023,"2,456.24",6541-Nursing,THIRD PARTY PAYMENTS,PRIVATE CONTRACTOR,REVENUE
Walsall Council,http://opendatacommunities.org/id/metropolitan-district-council/walsall ,WC147-427,28.02.2023,ADULT SOCIAL CARE,ACEPAY LTD (COTTAGE NUR HOME),13/02/2023,"2,456.24",6541-Nursing,THIRD PARTY PAYMENTS,PRIVATE CONTRACTOR,REVENUE
Walsall Council,http://opendatacommunities.org/id/metropolitan-district-council/walsall ,WC147-428,28.02.2023,ADULT SOCIAL CARE,ACEPAY LTD (COTTAGE NUR HOME),13/02/2023,"2,456.24",6541-Nursing,THIRD PARTY PAYMENTS,PRIVATE CONTRACTOR,REVENUE
Walsall Council,http://opendatacommunities.org/id/metropolitan-district-council/walsall ,WC147-429,28.02.2023,ADULT SOCIAL CARE,ACEPAY LTD (COTTAGE NUR HOME),13/02/2023,"2,456.24",6541-Nursing,THIRD PARTY PAYMENTS,PRIVATE CONTRACTOR,REVENUE
Walsall Council,http://opendatacommunities.org/id/metropolitan-district-council/walsall ,WC147-430,28.02.2023,ADULT SOCIAL CARE,ACHIEVE TOGETHER LIMITED,13/02/2023,"5,506.08",6541-Residential,THIRD PARTY PAYMENTS,PRIVATE CONTRACTOR,REVENUE
Walsall Council,http://opendatacommunities.org/id/metropolitan-district-council/walsall ,WC147-431,28.02.2023,ADULT SOCIAL CARE,ACHIEVE TOGETHER LIMITED,13/02/2023,"5,740.84",6541-Residential,THIRD PARTY PAYMENTS,PRIVATE CONTRACTOR,REVENUE
Walsall Council,http://opendatacommunities.org/id/metropolitan-district-council/walsall ,WC147-432,28.02.2023,ADULT SOCIAL CARE,ACHIEVE TOGETHER LIMITED,13/02/2023,"6,572.72",6541-Residential,THIRD PARTY PAYMENTS,PRIVATE CONTRACTOR,REVENUE
Walsall Council,http://opendatacommunities.org/id/metropolitan-district-council/walsall ,WC147-433,28.02.2023,ADULT SOCIAL CARE,ACHIEVE TOGETHER LIMITED,13/02/2023,"3,852.80",6541-Residential,THIRD PARTY PAYMENTS,PRIVATE CONTRACTOR,REVENUE
Walsall Council,http://opendatacommunities.org/id/metropolitan-district-council/walsall ,WC147-434,28.02.2023,ADULT SOCIAL CARE,ACHIEVE TOGETHER LIMITED,13/02/2023,"4,920.72",6541-Residential,THIRD PARTY PAYMENTS,PRIVATE CONTRACTOR,REVENUE
Walsall Council,http://opendatacommunities.org/id/metropolitan-district-council/walsall ,WC147-435,28.02.2023,CHILDRENS,ACORN CARE & EDUCATION LTD (SALES),21/02/2023,"-1,958.33",1220-Top Up Funding -Grants to Schools,SUPPLIES & SERVICES,GRANTS (EXP) & SUBSCRIPTIONS,REVENUE
Walsall Council,http://opendatacommunities.org/id/metropolitan-district-council/walsall ,WC147-436,28.02.2023,CHILDRENS,ACORN CARE & EDUCATION LTD (SALES),21/02/2023,"1,958.33",1220-Top Up Funding -Grants to Schools,SUPPLIES & SERVICES,GRANTS (EXP) & SUBSCRIPTIONS,REVENUE
Walsall Council,http://opendatacommunities.org/id/metropolitan-district-council/walsall ,WC147-437,28.02.2023,CHILDRENS,ACORN CARE & EDUCATION LTD (SALES),20/02/2023,"-2,884.58",1220-Top Up Funding -Grants to Schools,SUPPLIES & SERVICES,GRANTS (EXP) & SUBSCRIPTIONS,REVENUE
Walsall Council,http://opendatacommunities.org/id/metropolitan-district-council/walsall ,WC147-438,28.02.2023,CHILDRENS,ACORN CARE & EDUCATION LTD (SALES),20/02/2023,"2,884.58",1220-Top Up Funding -Grants to Schools,SUPPLIES & SERVICES,GRANTS (EXP) & SUBSCRIPTIONS,REVENUE
Walsall Council,http://opendatacommunities.org/id/metropolitan-district-council/walsall ,WC147-439,28.02.2023,CHILDRENS,ACORN CARE & EDUCATION LTD (SALES),20/02/2023,"-2,884.58",1220-Top Up Funding -Grants to Schools,SUPPLIES & SERVICES,GRANTS (EXP) & SUBSCRIPTIONS,REVENUE
Walsall Council,http://opendatacommunities.org/id/metropolitan-district-council/walsall ,WC147-440,28.02.2023,CHILDRENS,ACORN CARE & EDUCATION LTD (SALES),20/02/2023,"2,884.58",1220-Top Up Funding -Grants to Schools,SUPPLIES & SERVICES,GRANTS (EXP) & SUBSCRIPTIONS,REVENUE
Walsall Council,http://opendatacommunities.org/id/metropolitan-district-council/walsall ,WC147-441,28.02.2023,CHILDRENS,ACORN CARE & EDUCATION LTD (SALES),20/02/2023,"-2,884.58",1220-Top Up Funding -Grants to Schools,SUPPLIES & SERVICES,GRANTS (EXP) & SUBSCRIPTIONS,REVENUE
Walsall Council,http://opendatacommunities.org/id/metropolitan-district-council/walsall ,WC147-442,28.02.2023,CHILDRENS,ACORN CARE & EDUCATION LTD (SALES),20/02/2023,"2,884.58",1220-Top Up Funding -Grants to Schools,SUPPLIES & SERVICES,GRANTS (EXP) & SUBSCRIPTIONS,REVENUE
Walsall Council,http://opendatacommunities.org/id/metropolitan-district-council/walsall ,WC147-443,28.02.2023,CHILDRENS,ACORN CARE & EDUCATION LTD (SALES),20/02/2023,"-2,884.58",1220-Top Up Funding -Grants to Schools,SUPPLIES & SERVICES,GRANTS (EXP) & SUBSCRIPTIONS,REVENUE
Walsall Council,http://opendatacommunities.org/id/metropolitan-district-council/walsall ,WC147-444,28.02.2023,CHILDRENS,ACORN CARE & EDUCATION LTD (SALES),20/02/2023,"2,884.58",1220-Top Up Funding -Grants to Schools,SUPPLIES & SERVICES,GRANTS (EXP) & SUBSCRIPTIONS,REVENUE
Walsall Council,http://opendatacommunities.org/id/metropolitan-district-council/walsall ,WC147-445,28.02.2023,CHILDRENS,ACORN CARE & EDUCATION LTD (SALES),20/02/2023,"-2,884.58",1220-Top Up Funding -Grants to Schools,SUPPLIES & SERVICES,GRANTS (EXP) & SUBSCRIPTIONS,REVENUE
Walsall Council,http://opendatacommunities.org/id/metropolitan-district-council/walsall ,WC147-446,28.02.2023,CHILDRENS,ACORN CARE & EDUCATION LTD (SALES),20/02/2023,"2,884.58",1220-Top Up Funding -Grants to Schools,SUPPLIES & SERVICES,GRANTS (EXP) & SUBSCRIPTIONS,REVENUE
Walsall Council,http://opendatacommunities.org/id/metropolitan-district-council/walsall ,WC147-447,28.02.2023,CHILDRENS,ACORN CARE & EDUCATION LTD (SALES),20/02/2023,"-2,884.58",1220-Top Up Funding -Grants to Schools,SUPPLIES & SERVICES,GRANTS (EXP) & SUBSCRIPTIONS,REVENUE
Walsall Council,http://opendatacommunities.org/id/metropolitan-district-council/walsall ,WC147-448,28.02.2023,CHILDRENS,ACORN CARE & EDUCATION LTD (SALES),20/02/2023,"2,884.58",1220-Top Up Funding -Grants to Schools,SUPPLIES & SERVICES,GRANTS (EXP) & SUBSCRIPTIONS,REVENUE
Walsall Council,http://opendatacommunities.org/id/metropolitan-district-council/walsall ,WC147-449,28.02.2023,CHILDRENS,ACORN CARE & EDUCATION LTD (SALES),21/02/2023,"-3,461.50",1220-Top Up Funding -Grants to Schools,SUPPLIES & SERVICES,GRANTS (EXP) & SUBSCRIPTIONS,REVENUE
Walsall Council,http://opendatacommunities.org/id/metropolitan-district-council/walsall ,WC147-450,28.02.2023,CHILDRENS,ACORN CARE & EDUCATION LTD (SALES),21/02/2023,"-2,884.58",1220-Top Up Funding -Grants to Schools,SUPPLIES & SERVICES,GRANTS (EXP) & SUBSCRIPTIONS,REVENUE
Walsall Council,http://opendatacommunities.org/id/metropolitan-district-council/walsall ,WC147-451,28.02.2023,CHILDRENS,ACORN CARE & EDUCATION LTD (SALES),21/02/2023,"2,884.58",1220-Top Up Funding -Grants to Schools,SUPPLIES & SERVICES,GRANTS (EXP) & SUBSCRIPTIONS,REVENUE
Walsall Council,http://opendatacommunities.org/id/metropolitan-district-council/walsall ,WC147-452,28.02.2023,CHILDRENS,ACORN CARE & EDUCATION LTD (SALES),21/02/2023,"3,461.50",1220-Top Up Funding -Grants to Schools,SUPPLIES & SERVICES,GRANTS (EXP) & SUBSCRIPTIONS,REVENUE
Walsall Council,http://opendatacommunities.org/id/metropolitan-district-council/walsall ,WC147-453,28.02.2023,CHILDRENS,ACORN CARE & EDUCATION LTD (SALES),23/02/2023,"6,389.17",1220-Professional Fees & Services,SUPPLIES & SERVICES,SERVICES,REVENUE
Walsall Council,http://opendatacommunities.org/id/metropolitan-district-council/walsall ,WC147-454,28.02.2023,"ECONOMY, ENVIRONMENT & COMMUNITIES",ACORN ENVIRONMENTAL MANAGEMENT GROUP LTD,22/02/2023,"12,054.00",6410-Professional Services-Priv Contractor & Other Agencies,THIRD PARTY PAYMENTS,PRIVATE CONTRACTOR,REVENUE
Walsall Council,http://opendatacommunities.org/id/metropolitan-district-council/walsall ,WC147-455,28.02.2023,CHILDRENS,ACORN FOSTERING SERVICES LTD,21/02/2023,"3,340.00",6223-Independent Foster Care-Oth Agency Provision,THIRD PARTY PAYMENTS,PRIVATE CONTRACTOR,REVENUE
Walsall Council,http://opendatacommunities.org/id/metropolitan-district-council/walsall ,WC147-456,28.02.2023,CHILDRENS,ACORNS CHILDRENS HOSPICE TRUST,16/02/2023,"1,700.00",6220-Professional Fees & Services,SUPPLIES & SERVICES,SERVICES,REVENUE
Walsall Council,http://opendatacommunities.org/id/metropolitan-district-council/walsall ,WC147-457,28.02.2023,CHILDRENS,ACORNS CHILDRENS HOSPICE TRUST,16/02/2023,"1,700.00",6220-Professional Fees & Services,SUPPLIES & SERVICES,SERVICES,REVENUE
Walsall Council,http://opendatacommunities.org/id/metropolitan-district-council/walsall ,WC147-458,28.02.2023,CHILDRENS,ACPAS LIMITED,21/02/2023,795.60,6222-Professional Fees & Services,SUPPLIES & SERVICES,SERVICES,REVENUE
Walsall Council,http://opendatacommunities.org/id/metropolitan-district-council/walsall ,WC147-459,28.02.2023,CHILDRENS,ACPAS LIMITED,24/02/2023,795.60,6222-Professional Fees & Services,SUPPLIES & SERVICES,SERVICES,REVENUE
Walsall Council,http://opendatacommunities.org/id/metropolitan-district-council/walsall ,WC147-460,28.02.2023,"ECONOMY, ENVIRONMENT & COMMUNITIES",ACTION DEAFNESS LIMITED,17/02/2023,500.00,6430-Grants to Other Orgs,SUPPLIES & SERVICES,GRANTS (EXP) & SUBSCRIPTIONS,REVENUE
Walsall Council,http://opendatacommunities.org/id/metropolitan-district-council/walsall ,WC147-461,28.02.2023,"ECONOMY, ENVIRONMENT & COMMUNITIES",ACTION GRAPHICS & DISPLAY LTD,21/02/2023,260.70,6414-Outwork Print & Design,SUPPLIES & SERVICES,PRINTING STATIONERY & GENERAL OFFICE,REVENUE
Walsall Council,http://opendatacommunities.org/id/metropolitan-district-council/walsall ,WC147-462,28.02.2023,CHILDRENS,ACTIVE CARE SOLUTIONS LTD,21/02/2023,"2,815.00",6223-Independent Foster Care-Oth Agency Provision,THIRD PARTY PAYMENTS,PRIVATE CONTRACTOR,REVENUE
Walsall Council,http://opendatacommunities.org/id/metropolitan-district-council/walsall ,WC147-463,28.02.2023,CHILDRENS,ACTIVE CARE SOLUTIONS LTD,21/02/2023,"2,923.06",6223-Independent Foster Care-Oth Agency Provision,THIRD PARTY PAYMENTS,PRIVATE CONTRACTOR,REVENUE
Walsall Council,http://opendatacommunities.org/id/metropolitan-district-council/walsall ,WC147-464,28.02.2023,CHILDRENS,ACTIVE CARE SOLUTIONS LTD,21/02/2023,"3,445.08",6223-Independent Foster Care-Oth Agency Provision,THIRD PARTY PAYMENTS,PRIVATE CONTRACTOR,REVENUE
Walsall Council,http://opendatacommunities.org/id/metropolitan-district-council/walsall ,WC147-465,28.02.2023,CHILDRENS,ACTIVE CARE SOLUTIONS LTD,21/02/2023,"2,815.00",6223-Independent Foster Care-Oth Agency Provision,THIRD PARTY PAYMENTS,PRIVATE CONTRACTOR,REVENUE
Walsall Council,http://opendatacommunities.org/id/metropolitan-district-council/walsall ,WC147-466,28.02.2023,CHILDRENS,ACTIVE CARE SOLUTIONS LTD,21/02/2023,"2,429.72",6223-Independent Foster Care-Oth Agency Provision,THIRD PARTY PAYMENTS,PRIVATE CONTRACTOR,REVENUE
Walsall Council,http://opendatacommunities.org/id/metropolitan-district-council/walsall ,WC147-467,28.02.2023,ADULT SOCIAL CARE,REDACTED,02/02/2023,733.28,6541-Direct Payment,THIRD PARTY PAYMENTS,PRIVATE CONTRACTOR,REVENUE
Walsall Council,http://opendatacommunities.org/id/metropolitan-district-council/walsall ,WC147-468,28.02.2023,CHILDRENS,ADAMS TOURS LTD,01/02/2023,395.00,6211-Transportation-Priv Contractor Fees,THIRD PARTY PAYMENTS,PRIVATE CONTRACTOR,REVENUE
Walsall Council,http://opendatacommunities.org/id/metropolitan-district-council/walsall ,WC147-469,28.02.2023,CHILDRENS,REDACTED,08/02/2023,337.12,6223-Residents Orders,TRANSFER PAYMENTS,CHILDREN SOCIAL SERVICES CLIENT,REVENUE
Walsall Council,http://opendatacommunities.org/id/metropolitan-district-council/walsall ,WC147-470,28.02.2023,ADULT SOCIAL CARE,ADVANCE HEALTH CARE (UK) LTD,08/02/2023,"2,316.64",6541-Domiciliary Care,THIRD PARTY PAYMENTS,PRIVATE CONTRACTOR,REVENUE
Walsall Council,http://opendatacommunities.org/id/metropolitan-district-council/walsall ,WC147-471,28.02.2023,ADULT SOCIAL CARE,ADVANCE HEALTH CARE (UK) LTD,08/02/2023,"1,066.56",6541-Domiciliary Care,THIRD PARTY PAYMENTS,PRIVATE CONTRACTOR,REVENUE
Walsall Council,http://opendatacommunities.org/id/metropolitan-district-council/walsall ,WC147-472,28.02.2023,ADULT SOCIAL CARE,ADVANCE HEALTH CARE (UK) LTD,08/02/2023,942.76,6541-Domiciliary Care,THIRD PARTY PAYMENTS,PRIVATE CONTRACTOR,REVENUE
Walsall Council,http://opendatacommunities.org/id/metropolitan-district-council/walsall ,WC147-473,28.02.2023,ADULT SOCIAL CARE,ADVANCE HEALTH CARE (UK) LTD,08/02/2023,"1,042.32",6541-Domiciliary Care,THIRD PARTY PAYMENTS,PRIVATE CONTRACTOR,REVENUE
Walsall Council,http://opendatacommunities.org/id/metropolitan-district-council/walsall ,WC147-474,28.02.2023,ADULT SOCIAL CARE,ADVANCE HEALTH CARE (UK) LTD,08/02/2023,"1,018.08",6541-Domiciliary Care,THIRD PARTY PAYMENTS,PRIVATE CONTRACTOR,REVENUE
Walsall Council,http://opendatacommunities.org/id/metropolitan-district-council/walsall ,WC147-475,28.02.2023,ADULT SOCIAL CARE,ADVANCE HEALTH CARE (UK) LTD,08/02/2023,840.54,6541-Domiciliary Care,THIRD PARTY PAYMENTS,PRIVATE CONTRACTOR,REVENUE
Walsall Council,http://opendatacommunities.org/id/metropolitan-district-council/walsall ,WC147-476,28.02.2023,ADULT SOCIAL CARE,ADVANCE HEALTH CARE (UK) LTD,08/02/2023,754.32,6541-Domiciliary Care,THIRD PARTY PAYMENTS,PRIVATE CONTRACTOR,REVENUE
Walsall Council,http://opendatacommunities.org/id/metropolitan-district-council/walsall ,WC147-477,28.02.2023,ADULT SOCIAL CARE,ADVANCE HEALTH CARE (UK) LTD,08/02/2023,"1,082.72",6541-Domiciliary Care,THIRD PARTY PAYMENTS,PRIVATE CONTRACTOR,REVENUE
Walsall Council,http://opendatacommunities.org/id/metropolitan-district-council/walsall ,WC147-478,28.02.2023,ADULT SOCIAL CARE,ADVANCE HEALTH CARE (UK) LTD,08/02/2023,490.28,6541-Domiciliary Care,THIRD PARTY PAYMENTS,PRIVATE CONTRACTOR,REVENUE
Walsall Council,http://opendatacommunities.org/id/metropolitan-district-council/walsall ,WC147-479,28.02.2023,ADULT SOCIAL CARE,ADVANCE HEALTH CARE (UK) LTD,08/02/2023,"1,734.60",6541-Domiciliary Care,THIRD PARTY PAYMENTS,PRIVATE CONTRACTOR,REVENUE
Walsall Council,http://opendatacommunities.org/id/metropolitan-district-council/walsall ,WC147-480,28.02.2023,ADULT SOCIAL CARE,ADVANCE HEALTH CARE (UK) LTD,08/02/2023,"1,282.40",6541-Domiciliary Care,THIRD PARTY PAYMENTS,PRIVATE CONTRACTOR,REVENUE
Walsall Council,http://opendatacommunities.org/id/metropolitan-district-council/walsall ,WC147-481,28.02.2023,ADULT SOCIAL CARE,ADVANCE HEALTH CARE (UK) LTD,08/02/2023,705.84,6541-Domiciliary Care,THIRD PARTY PAYMENTS,PRIVATE CONTRACTOR,REVENUE
Walsall Council,http://opendatacommunities.org/id/metropolitan-district-council/walsall ,WC147-482,28.02.2023,ADULT SOCIAL CARE,ADVANCE HEALTH CARE (UK) LTD,08/02/2023,"1,890.72",6554-Professional Services-Priv Contractor & Other Agencies,THIRD PARTY PAYMENTS,PRIVATE CONTRACTOR,REVENUE
Walsall Council,http://opendatacommunities.org/id/metropolitan-district-council/walsall ,WC147-483,28.02.2023,ADULT SOCIAL CARE,ADVANCE HEALTH CARE (UK) LTD,08/02/2023,290.88,6554-Professional Services-Priv Contractor & Other Agencies,THIRD PARTY PAYMENTS,PRIVATE CONTRACTOR,REVENUE
Walsall Council,http://opendatacommunities.org/id/metropolitan-district-council/walsall ,WC147-484,28.02.2023,ADULT SOCIAL CARE,ADVANCE HEALTH CARE (UK) LTD,08/02/2023,"1,527.12",6554-Professional Services-Priv Contractor & Other Agencies,THIRD PARTY PAYMENTS,PRIVATE CONTRACTOR,REVENUE
Walsall Council,http://opendatacommunities.org/id/metropolitan-district-council/walsall ,WC147-485,28.02.2023,ADULT SOCIAL CARE,ADVANCE HEALTH CARE (UK) LTD,08/02/2023,"1,672.56",6554-Professional Services-Priv Contractor & Other Agencies,THIRD PARTY PAYMENTS,PRIVATE CONTRACTOR,REVENUE
Walsall Council,http://opendatacommunities.org/id/metropolitan-district-council/walsall ,WC147-486,28.02.2023,ADULT SOCIAL CARE,ADVANCE HEALTH CARE (UK) LTD,08/02/2023,823.03,6554-Professional Services-Priv Contractor & Other Agencies,THIRD PARTY PAYMENTS,PRIVATE CONTRACTOR,REVENUE
Walsall Council,http://opendatacommunities.org/id/metropolitan-district-council/walsall ,WC147-487,28.02.2023,ADULT SOCIAL CARE,ADVANCE HEALTH CARE (UK) LTD,08/02/2023,"1,131.20",6554-Professional Services-Priv Contractor & Other Agencies,THIRD PARTY PAYMENTS,PRIVATE CONTRACTOR,REVENUE
Walsall Council,http://opendatacommunities.org/id/metropolitan-district-council/walsall ,WC147-488,28.02.2023,ADULT SOCIAL CARE,ADVANCE HEALTH CARE (UK) LTD,08/02/2023,"1,583.68",6554-Professional Services-Priv Contractor & Other Agencies,THIRD PARTY PAYMENTS,PRIVATE CONTRACTOR,REVENUE
Walsall Council,http://opendatacommunities.org/id/metropolitan-district-council/walsall ,WC147-489,28.02.2023,ADULT SOCIAL CARE,ADVANCE HEALTH CARE (UK) LTD,08/02/2023,"2,036.16",6554-Professional Services-Priv Contractor & Other Agencies,THIRD PARTY PAYMENTS,PRIVATE CONTRACTOR,REVENUE
Walsall Council,http://opendatacommunities.org/id/metropolitan-district-council/walsall ,WC147-490,28.02.2023,ADULT SOCIAL CARE,ADVANCE HEALTH CARE (UK) LTD,08/02/2023,"1,890.72",6554-Professional Services-Priv Contractor & Other Agencies,THIRD PARTY PAYMENTS,PRIVATE CONTRACTOR,REVENUE
Walsall Council,http://opendatacommunities.org/id/metropolitan-district-council/walsall ,WC147-491,28.02.2023,ADULT SOCIAL CARE,ADVANCE HEALTH CARE (UK) LTD,08/02/2023,"1,171.60",6554-Professional Services-Priv Contractor & Other Agencies,THIRD PARTY PAYMENTS,PRIVATE CONTRACTOR,REVENUE
Walsall Council,http://opendatacommunities.org/id/metropolitan-district-council/walsall ,WC147-492,28.02.2023,ADULT SOCIAL CARE,ADVANCE HEALTH CARE (UK) LTD,08/02/2023,949.65,6554-Professional Services-Priv Contractor & Other Agencies,THIRD PARTY PAYMENTS,PRIVATE CONTRACTOR,REVENUE
Walsall Council,http://opendatacommunities.org/id/metropolitan-district-council/walsall ,WC147-493,28.02.2023,ADULT SOCIAL CARE,ADVANCE HEALTH CARE (UK) LTD,13/02/2023,509.04,6541-Domiciliary Care,THIRD PARTY PAYMENTS,PRIVATE CONTRACTOR,REVENUE
Walsall Council,http://opendatacommunities.org/id/metropolitan-district-council/walsall ,WC147-494,28.02.2023,ADULT SOCIAL CARE,ADVANCE HEALTH CARE (UK) LTD,13/02/2023,509.04,6541-Domiciliary Care,THIRD PARTY PAYMENTS,PRIVATE CONTRACTOR,REVENUE
Walsall Council,http://opendatacommunities.org/id/metropolitan-district-council/walsall ,WC147-495,28.02.2023,ADULT SOCIAL CARE,ADVANCE HEALTH CARE (UK) LTD,13/02/2023,565.60,6541-Domiciliary Care,THIRD PARTY PAYMENTS,PRIVATE CONTRACTOR,REVENUE
Walsall Council,http://opendatacommunities.org/id/metropolitan-district-council/walsall ,WC147-496,28.02.2023,ADULT SOCIAL CARE,ADVANCE HEALTH CARE (UK) LTD,13/02/2023,500.96,6541-Domiciliary Care,THIRD PARTY PAYMENTS,PRIVATE CONTRACTOR,REVENUE
Walsall Council,http://opendatacommunities.org/id/metropolitan-district-council/walsall ,WC147-497,28.02.2023,ADULT SOCIAL CARE,ADVANCE HEALTH CARE (UK) LTD,13/02/2023,509.04,6541-Domiciliary Care,THIRD PARTY PAYMENTS,PRIVATE CONTRACTOR,REVENUE
Walsall Council,http://opendatacommunities.org/id/metropolitan-district-council/walsall ,WC147-498,28.02.2023,ADULT SOCIAL CARE,ADVANCE HEALTH CARE (UK) LTD,13/02/2023,589.84,6541-Domiciliary Care,THIRD PARTY PAYMENTS,PRIVATE CONTRACTOR,REVENUE
Walsall Council,http://opendatacommunities.org/id/metropolitan-district-council/walsall ,WC147-499,28.02.2023,ADULT SOCIAL CARE,ADVANCE HEALTH CARE (UK) LTD,13/02/2023,254.52,6541-Domiciliary Care,THIRD PARTY PAYMENTS,PRIVATE CONTRACTOR,REVENUE
Walsall Council,http://opendatacommunities.org/id/metropolitan-district-council/walsall ,WC147-500,28.02.2023,ADULT SOCIAL CARE,ADVANCE HEALTH CARE (UK) LTD,13/02/2023,254.52,6541-Domiciliary Care,THIRD PARTY PAYMENTS,PRIVATE CONTRACTOR,REVENUE
Walsall Council,http://opendatacommunities.org/id/metropolitan-district-council/walsall ,WC147-501,28.02.2023,ADULT SOCIAL CARE,ADVANCE HEALTH CARE (UK) LTD,13/02/2023,509.04,6541-Domiciliary Care,THIRD PARTY PAYMENTS,PRIVATE CONTRACTOR,REVENUE
Walsall Council,http://opendatacommunities.org/id/metropolitan-district-council/walsall ,WC147-502,28.02.2023,ADULT SOCIAL CARE,ADVANCE HEALTH CARE (UK) LTD,13/02/2023,565.60,6541-Domiciliary Care,THIRD PARTY PAYMENTS,PRIVATE CONTRACTOR,REVENUE
Walsall Council,http://opendatacommunities.org/id/metropolitan-district-council/walsall ,WC147-503,28.02.2023,ADULT SOCIAL CARE,ADVANCE HEALTH CARE (UK) LTD,13/02/2023,-872.64,6541-Domiciliary Care,THIRD PARTY PAYMENTS,PRIVATE CONTRACTOR,REVENUE
Walsall Council,http://opendatacommunities.org/id/metropolitan-district-council/walsall ,WC147-504,28.02.2023,ADULT SOCIAL CARE,ADVANCE HEALTH CARE (UK) LTD,13/02/2023,377.16,6541-Domiciliary Care,THIRD PARTY PAYMENTS,PRIVATE CONTRACTOR,REVENUE
Walsall Council,http://opendatacommunities.org/id/metropolitan-district-council/walsall ,WC147-505,28.02.2023,ADULT SOCIAL CARE,ADVANCE HEALTH CARE (UK) LTD,13/02/2023,339.50,6541-Domiciliary Care,THIRD PARTY PAYMENTS,PRIVATE CONTRACTOR,REVENUE
Walsall Council,http://opendatacommunities.org/id/metropolitan-district-council/walsall ,WC147-506,28.02.2023,ADULT SOCIAL CARE,ADVANCE HEALTH CARE (UK) LTD,13/02/2023,565.60,6541-Domiciliary Care,THIRD PARTY PAYMENTS,PRIVATE CONTRACTOR,REVENUE
Walsall Council,http://opendatacommunities.org/id/metropolitan-district-council/walsall ,WC147-507,28.02.2023,ADULT SOCIAL CARE,ADVANCE HEALTH CARE (UK) LTD,13/02/2023,452.48,6541-Domiciliary Care,THIRD PARTY PAYMENTS,PRIVATE CONTRACTOR,REVENUE
Walsall Council,http://opendatacommunities.org/id/metropolitan-district-council/walsall ,WC147-508,28.02.2023,ADULT SOCIAL CARE,ADVANCE HEALTH CARE (UK) LTD,13/02/2023,254.52,6541-Domiciliary Care,THIRD PARTY PAYMENTS,PRIVATE CONTRACTOR,REVENUE
Walsall Council,http://opendatacommunities.org/id/metropolitan-district-council/walsall ,WC147-509,28.02.2023,ADULT SOCIAL CARE,ADVANCE HEALTH CARE (UK) LTD,13/02/2023,509.04,6541-Domiciliary Care,THIRD PARTY PAYMENTS,PRIVATE CONTRACTOR,REVENUE
Walsall Council,http://opendatacommunities.org/id/metropolitan-district-council/walsall ,WC147-510,28.02.2023,ADULT SOCIAL CARE,ADVANCE HEALTH CARE (UK) LTD,13/02/2023,452.48,6541-Domiciliary Care,THIRD PARTY PAYMENTS,PRIVATE CONTRACTOR,REVENUE
Walsall Council,http://opendatacommunities.org/id/metropolitan-district-council/walsall ,WC147-511,28.02.2023,ADULT SOCIAL CARE,ADVANCE HEALTH CARE (UK) LTD,13/02/2023,864.56,6541-Domiciliary Care,THIRD PARTY PAYMENTS,PRIVATE CONTRACTOR,REVENUE
Walsall Council,http://opendatacommunities.org/id/metropolitan-district-council/walsall ,WC147-512,28.02.2023,ADULT SOCIAL CARE,ADVANCE HEALTH CARE (UK) LTD,13/02/2023,396.06,6541-Domiciliary Care,THIRD PARTY PAYMENTS,PRIVATE CONTRACTOR,REVENUE
Walsall Council,http://opendatacommunities.org/id/metropolitan-district-council/walsall ,WC147-513,28.02.2023,ADULT SOCIAL CARE,ADVANCE HEALTH CARE (UK) LTD,13/02/2023,254.52,6541-Domiciliary Care,THIRD PARTY PAYMENTS,PRIVATE CONTRACTOR,REVENUE
Walsall Council,http://opendatacommunities.org/id/metropolitan-district-council/walsall ,WC147-514,28.02.2023,ADULT SOCIAL CARE,ADVANCE HEALTH CARE (UK) LTD,13/02/2023,339.50,6541-Domiciliary Care,THIRD PARTY PAYMENTS,PRIVATE CONTRACTOR,REVENUE
Walsall Council,http://opendatacommunities.org/id/metropolitan-district-council/walsall ,WC147-515,28.02.2023,ADULT SOCIAL CARE,ADVANCE HEALTH CARE (UK) LTD,13/02/2023,339.36,6541-Domiciliary Care,THIRD PARTY PAYMENTS,PRIVATE CONTRACTOR,REVENUE
Walsall Council,http://opendatacommunities.org/id/metropolitan-district-council/walsall ,WC147-516,28.02.2023,ADULT SOCIAL CARE,ADVANCE HEALTH CARE (UK) LTD,13/02/2023,452.48,6541-Domiciliary Care,THIRD PARTY PAYMENTS,PRIVATE CONTRACTOR,REVENUE
Walsall Council,http://opendatacommunities.org/id/metropolitan-district-council/walsall ,WC147-517,28.02.2023,ADULT SOCIAL CARE,ADVANCE HEALTH CARE (UK) LTD,13/02/2023,509.04,6541-Domiciliary Care,THIRD PARTY PAYMENTS,PRIVATE CONTRACTOR,REVENUE
Walsall Council,http://opendatacommunities.org/id/metropolitan-district-council/walsall ,WC147-518,28.02.2023,ADULT SOCIAL CARE,ADVANCE HEALTH CARE (UK) LTD,13/02/2023,565.60,6541-Domiciliary Care,THIRD PARTY PAYMENTS,PRIVATE CONTRACTOR,REVENUE
Walsall Council,http://opendatacommunities.org/id/metropolitan-district-council/walsall ,WC147-519,28.02.2023,ADULT SOCIAL CARE,ADVANCE HEALTH CARE (UK) LTD,13/02/2023,509.04,6541-Domiciliary Care,THIRD PARTY PAYMENTS,PRIVATE CONTRACTOR,REVENUE
Walsall Council,http://opendatacommunities.org/id/metropolitan-district-council/walsall ,WC147-520,28.02.2023,ADULT SOCIAL CARE,ADVANCE HEALTH CARE (UK) LTD,13/02/2023,395.92,6541-Domiciliary Care,THIRD PARTY PAYMENTS,PRIVATE CONTRACTOR,REVENUE
Walsall Council,http://opendatacommunities.org/id/metropolitan-district-council/walsall ,WC147-521,28.02.2023,ADULT SOCIAL CARE,ADVANCE HEALTH CARE (UK) LTD,13/02/2023,452.48,6541-Domiciliary Care,THIRD PARTY PAYMENTS,PRIVATE CONTRACTOR,REVENUE
Walsall Council,http://opendatacommunities.org/id/metropolitan-district-council/walsall ,WC147-522,28.02.2023,ADULT SOCIAL CARE,ADVANCE HEALTH CARE (UK) LTD,13/02/2023,339.36,6541-Domiciliary Care,THIRD PARTY PAYMENTS,PRIVATE CONTRACTOR,REVENUE
Walsall Council,http://opendatacommunities.org/id/metropolitan-district-council/walsall ,WC147-523,28.02.2023,ADULT SOCIAL CARE,ADVANCE HEALTH CARE (UK) LTD,13/02/2023,581.76,6541-Domiciliary Care,THIRD PARTY PAYMENTS,PRIVATE CONTRACTOR,REVENUE
Walsall Council,http://opendatacommunities.org/id/metropolitan-district-council/walsall ,WC147-524,28.02.2023,ADULT SOCIAL CARE,ADVANCE HEALTH CARE (UK) LTD,13/02/2023,339.50,6541-Domiciliary Care,THIRD PARTY PAYMENTS,PRIVATE CONTRACTOR,REVENUE
Walsall Council,http://opendatacommunities.org/id/metropolitan-district-council/walsall ,WC147-525,28.02.2023,ADULT SOCIAL CARE,ADVANCE HEALTH CARE (UK) LTD,13/02/2023,509.04,6541-Domiciliary Care,THIRD PARTY PAYMENTS,PRIVATE CONTRACTOR,REVENUE
Walsall Council,http://opendatacommunities.org/id/metropolitan-district-council/walsall ,WC147-526,28.02.2023,ADULT SOCIAL CARE,ADVANCE HEALTH CARE (UK) LTD,13/02/2023,509.04,6541-Domiciliary Care,THIRD PARTY PAYMENTS,PRIVATE CONTRACTOR,REVENUE
Walsall Council,http://opendatacommunities.org/id/metropolitan-district-council/walsall ,WC147-527,28.02.2023,ADULT SOCIAL CARE,ADVANCE HEALTH CARE (UK) LTD,13/02/2023,565.60,6541-Domiciliary Care,THIRD PARTY PAYMENTS,PRIVATE CONTRACTOR,REVENUE
Walsall Council,http://opendatacommunities.org/id/metropolitan-district-council/walsall ,WC147-528,28.02.2023,ADULT SOCIAL CARE,ADVANCE HEALTH CARE (UK) LTD,13/02/2023,589.84,6541-Domiciliary Care,THIRD PARTY PAYMENTS,PRIVATE CONTRACTOR,REVENUE
Walsall Council,http://opendatacommunities.org/id/metropolitan-district-council/walsall ,WC147-529,28.02.2023,ADULT SOCIAL CARE,ADVANCE HEALTH CARE (UK) LTD,13/02/2023,254.52,6541-Domiciliary Care,THIRD PARTY PAYMENTS,PRIVATE CONTRACTOR,REVENUE
Walsall Council,http://opendatacommunities.org/id/metropolitan-district-council/walsall ,WC147-530,28.02.2023,ADULT SOCIAL CARE,ADVANCE HEALTH CARE (UK) LTD,13/02/2023,254.52,6541-Domiciliary Care,THIRD PARTY PAYMENTS,PRIVATE CONTRACTOR,REVENUE
Walsall Council,http://opendatacommunities.org/id/metropolitan-district-council/walsall ,WC147-531,28.02.2023,ADULT SOCIAL CARE,ADVANCE HEALTH CARE (UK) LTD,13/02/2023,509.04,6541-Domiciliary Care,THIRD PARTY PAYMENTS,PRIVATE CONTRACTOR,REVENUE
Walsall Council,http://opendatacommunities.org/id/metropolitan-district-council/walsall ,WC147-532,28.02.2023,ADULT SOCIAL CARE,ADVANCE HEALTH CARE (UK) LTD,13/02/2023,377.16,6541-Domiciliary Care,THIRD PARTY PAYMENTS,PRIVATE CONTRACTOR,REVENUE
Walsall Council,http://opendatacommunities.org/id/metropolitan-district-council/walsall ,WC147-533,28.02.2023,ADULT SOCIAL CARE,ADVANCE HEALTH CARE (UK) LTD,13/02/2023,339.50,6541-Domiciliary Care,THIRD PARTY PAYMENTS,PRIVATE CONTRACTOR,REVENUE
Walsall Council,http://opendatacommunities.org/id/metropolitan-district-council/walsall ,WC147-534,28.02.2023,ADULT SOCIAL CARE,ADVANCE HEALTH CARE (UK) LTD,13/02/2023,509.04,6541-Domiciliary Care,THIRD PARTY PAYMENTS,PRIVATE CONTRACTOR,REVENUE
Walsall Council,http://opendatacommunities.org/id/metropolitan-district-council/walsall ,WC147-535,28.02.2023,ADULT SOCIAL CARE,ADVANCE HEALTH CARE (UK) LTD,13/02/2023,452.48,6541-Domiciliary Care,THIRD PARTY PAYMENTS,PRIVATE CONTRACTOR,REVENUE
Walsall Council,http://opendatacommunities.org/id/metropolitan-district-council/walsall ,WC147-536,28.02.2023,ADULT SOCIAL CARE,ADVANCE HEALTH CARE (UK) LTD,13/02/2023,509.04,6541-Domiciliary Care,THIRD PARTY PAYMENTS,PRIVATE CONTRACTOR,REVENUE
Walsall Council,http://opendatacommunities.org/id/metropolitan-district-council/walsall ,WC147-537,28.02.2023,ADULT SOCIAL CARE,ADVANCE HEALTH CARE (UK) LTD,13/02/2023,509.04,6541-Domiciliary Care,THIRD PARTY PAYMENTS,PRIVATE CONTRACTOR,REVENUE
Walsall Council,http://opendatacommunities.org/id/metropolitan-district-council/walsall ,WC147-538,28.02.2023,ADULT SOCIAL CARE,ADVANCE HEALTH CARE (UK) LTD,13/02/2023,509.04,6541-Domiciliary Care,THIRD PARTY PAYMENTS,PRIVATE CONTRACTOR,REVENUE
Walsall Council,http://opendatacommunities.org/id/metropolitan-district-council/walsall ,WC147-539,28.02.2023,ADULT SOCIAL CARE,ADVANCE HEALTH CARE (UK) LTD,13/02/2023,864.56,6541-Domiciliary Care,THIRD PARTY PAYMENTS,PRIVATE CONTRACTOR,REVENUE
Walsall Council,http://opendatacommunities.org/id/metropolitan-district-council/walsall ,WC147-540,28.02.2023,ADULT SOCIAL CARE,ADVANCE HEALTH CARE (UK) LTD,13/02/2023,396.06,6541-Domiciliary Care,THIRD PARTY PAYMENTS,PRIVATE CONTRACTOR,REVENUE
Walsall Council,http://opendatacommunities.org/id/metropolitan-district-council/walsall ,WC147-541,28.02.2023,ADULT SOCIAL CARE,ADVANCE HEALTH CARE (UK) LTD,13/02/2023,254.52,6541-Domiciliary Care,THIRD PARTY PAYMENTS,PRIVATE CONTRACTOR,REVENUE
Walsall Council,http://opendatacommunities.org/id/metropolitan-district-council/walsall ,WC147-542,28.02.2023,ADULT SOCIAL CARE,ADVANCE HEALTH CARE (UK) LTD,13/02/2023,565.60,6541-Domiciliary Care,THIRD PARTY PAYMENTS,PRIVATE CONTRACTOR,REVENUE
Walsall Council,http://opendatacommunities.org/id/metropolitan-district-council/walsall ,WC147-543,28.02.2023,ADULT SOCIAL CARE,ADVANCE HEALTH CARE (UK) LTD,13/02/2023,500.96,6541-Domiciliary Care,THIRD PARTY PAYMENTS,PRIVATE CONTRACTOR,REVENUE
Walsall Council,http://opendatacommunities.org/id/metropolitan-district-council/walsall ,WC147-544,28.02.2023,ADULT SOCIAL CARE,ADVANCE HEALTH CARE (UK) LTD,13/02/2023,509.04,6541-Domiciliary Care,THIRD PARTY PAYMENTS,PRIVATE CONTRACTOR,REVENUE
Walsall Council,http://opendatacommunities.org/id/metropolitan-district-council/walsall ,WC147-545,28.02.2023,ADULT SOCIAL CARE,ADVANCE HEALTH CARE (UK) LTD,13/02/2023,565.60,6541-Domiciliary Care,THIRD PARTY PAYMENTS,PRIVATE CONTRACTOR,REVENUE
Walsall Council,http://opendatacommunities.org/id/metropolitan-district-council/walsall ,WC147-546,28.02.2023,ADULT SOCIAL CARE,ADVANCE HEALTH CARE (UK) LTD,13/02/2023,565.60,6541-Domiciliary Care,THIRD PARTY PAYMENTS,PRIVATE CONTRACTOR,REVENUE
Walsall Council,http://opendatacommunities.org/id/metropolitan-district-council/walsall ,WC147-547,28.02.2023,ADULT SOCIAL CARE,ADVANCE HEALTH CARE (UK) LTD,13/02/2023,452.48,6541-Domiciliary Care,THIRD PARTY PAYMENTS,PRIVATE CONTRACTOR,REVENUE
Walsall Council,http://opendatacommunities.org/id/metropolitan-district-council/walsall ,WC147-548,28.02.2023,ADULT SOCIAL CARE,ADVANCE HEALTH CARE (UK) LTD,13/02/2023,254.52,6541-Domiciliary Care,THIRD PARTY PAYMENTS,PRIVATE CONTRACTOR,REVENUE
Walsall Council,http://opendatacommunities.org/id/metropolitan-district-council/walsall ,WC147-549,28.02.2023,ADULT SOCIAL CARE,ADVANCE HEALTH CARE (UK) LTD,13/02/2023,452.48,6541-Domiciliary Care,THIRD PARTY PAYMENTS,PRIVATE CONTRACTOR,REVENUE
Walsall Council,http://opendatacommunities.org/id/metropolitan-district-council/walsall ,WC147-550,28.02.2023,ADULT SOCIAL CARE,ADVANCE HEALTH CARE (UK) LTD,13/02/2023,339.36,6541-Domiciliary Care,THIRD PARTY PAYMENTS,PRIVATE CONTRACTOR,REVENUE
Walsall Council,http://opendatacommunities.org/id/metropolitan-district-council/walsall ,WC147-551,28.02.2023,ADULT SOCIAL CARE,ADVANCE HEALTH CARE (UK) LTD,13/02/2023,395.92,6541-Domiciliary Care,THIRD PARTY PAYMENTS,PRIVATE CONTRACTOR,REVENUE
Walsall Council,http://opendatacommunities.org/id/metropolitan-district-council/walsall ,WC147-552,28.02.2023,ADULT SOCIAL CARE,ADVANCE HEALTH CARE (UK) LTD,13/02/2023,452.48,6541-Domiciliary Care,THIRD PARTY PAYMENTS,PRIVATE CONTRACTOR,REVENUE
Walsall Council,http://opendatacommunities.org/id/metropolitan-district-council/walsall ,WC147-553,28.02.2023,ADULT SOCIAL CARE,ADVANCE HEALTH CARE (UK) LTD,13/02/2023,339.36,6541-Domiciliary Care,THIRD PARTY PAYMENTS,PRIVATE CONTRACTOR,REVENUE
Walsall Council,http://opendatacommunities.org/id/metropolitan-district-council/walsall ,WC147-554,28.02.2023,ADULT SOCIAL CARE,ADVANCE HEALTH CARE (UK) LTD,13/02/2023,509.04,6541-Domiciliary Care,THIRD PARTY PAYMENTS,PRIVATE CONTRACTOR,REVENUE
Walsall Council,http://opendatacommunities.org/id/metropolitan-district-council/walsall ,WC147-555,28.02.2023,ADULT SOCIAL CARE,ADVANCE HEALTH CARE (UK) LTD,28/02/2023,589.84,6541-Domiciliary Care,THIRD PARTY PAYMENTS,PRIVATE CONTRACTOR,REVENUE
Walsall Council,http://opendatacommunities.org/id/metropolitan-district-council/walsall ,WC147-556,28.02.2023,ADULT SOCIAL CARE,ADVANCE HEALTH CARE (UK) LTD,28/02/2023,254.52,6541-Domiciliary Care,THIRD PARTY PAYMENTS,PRIVATE CONTRACTOR,REVENUE
Walsall Council,http://opendatacommunities.org/id/metropolitan-district-council/walsall ,WC147-557,28.02.2023,ADULT SOCIAL CARE,ADVANCE HEALTH CARE (UK) LTD,28/02/2023,254.52,6541-Domiciliary Care,THIRD PARTY PAYMENTS,PRIVATE CONTRACTOR,REVENUE
Walsall Council,http://opendatacommunities.org/id/metropolitan-district-council/walsall ,WC147-558,28.02.2023,ADULT SOCIAL CARE,ADVANCE HEALTH CARE (UK) LTD,28/02/2023,509.04,6541-Domiciliary Care,THIRD PARTY PAYMENTS,PRIVATE CONTRACTOR,REVENUE
Walsall Council,http://opendatacommunities.org/id/metropolitan-district-council/walsall ,WC147-559,28.02.2023,ADULT SOCIAL CARE,ADVANCE HEALTH CARE (UK) LTD,28/02/2023,509.04,6541-Domiciliary Care,THIRD PARTY PAYMENTS,PRIVATE CONTRACTOR,REVENUE
Walsall Council,http://opendatacommunities.org/id/metropolitan-district-council/walsall ,WC147-560,28.02.2023,ADULT SOCIAL CARE,ADVANCE HEALTH CARE (UK) LTD,28/02/2023,509.04,6541-Domiciliary Care,THIRD PARTY PAYMENTS,PRIVATE CONTRACTOR,REVENUE
Walsall Council,http://opendatacommunities.org/id/metropolitan-district-council/walsall ,WC147-561,28.02.2023,ADULT SOCIAL CARE,ADVANCE HEALTH CARE (UK) LTD,28/02/2023,377.16,6541-Domiciliary Care,THIRD PARTY PAYMENTS,PRIVATE CONTRACTOR,REVENUE
Walsall Council,http://opendatacommunities.org/id/metropolitan-district-council/walsall ,WC147-562,28.02.2023,ADULT SOCIAL CARE,ADVANCE HEALTH CARE (UK) LTD,28/02/2023,339.50,6541-Domiciliary Care,THIRD PARTY PAYMENTS,PRIVATE CONTRACTOR,REVENUE
Walsall Council,http://opendatacommunities.org/id/metropolitan-district-council/walsall ,WC147-563,28.02.2023,ADULT SOCIAL CARE,ADVANCE HEALTH CARE (UK) LTD,28/02/2023,565.60,6541-Domiciliary Care,THIRD PARTY PAYMENTS,PRIVATE CONTRACTOR,REVENUE
Walsall Council,http://opendatacommunities.org/id/metropolitan-district-council/walsall ,WC147-564,28.02.2023,ADULT SOCIAL CARE,ADVANCE HEALTH CARE (UK) LTD,28/02/2023,500.96,6541-Domiciliary Care,THIRD PARTY PAYMENTS,PRIVATE CONTRACTOR,REVENUE
Walsall Council,http://opendatacommunities.org/id/metropolitan-district-council/walsall ,WC147-565,28.02.2023,ADULT SOCIAL CARE,ADVANCE HEALTH CARE (UK) LTD,28/02/2023,509.04,6541-Domiciliary Care,THIRD PARTY PAYMENTS,PRIVATE CONTRACTOR,REVENUE
Walsall Council,http://opendatacommunities.org/id/metropolitan-district-council/walsall ,WC147-566,28.02.2023,ADULT SOCIAL CARE,ADVANCE HEALTH CARE (UK) LTD,28/02/2023,339.50,6541-Domiciliary Care,THIRD PARTY PAYMENTS,PRIVATE CONTRACTOR,REVENUE
Walsall Council,http://opendatacommunities.org/id/metropolitan-district-council/walsall ,WC147-567,28.02.2023,ADULT SOCIAL CARE,ADVANCE HEALTH CARE (UK) LTD,28/02/2023,509.04,6541-Domiciliary Care,THIRD PARTY PAYMENTS,PRIVATE CONTRACTOR,REVENUE
Walsall Council,http://opendatacommunities.org/id/metropolitan-district-council/walsall ,WC147-568,28.02.2023,ADULT SOCIAL CARE,ADVANCE HEALTH CARE (UK) LTD,28/02/2023,452.48,6541-Domiciliary Care,THIRD PARTY PAYMENTS,PRIVATE CONTRACTOR,REVENUE
Walsall Council,http://opendatacommunities.org/id/metropolitan-district-council/walsall ,WC147-569,28.02.2023,ADULT SOCIAL CARE,ADVANCE HEALTH CARE (UK) LTD,28/02/2023,565.60,6541-Domiciliary Care,THIRD PARTY PAYMENTS,PRIVATE CONTRACTOR,REVENUE
Walsall Council,http://opendatacommunities.org/id/metropolitan-district-council/walsall ,WC147-570,28.02.2023,ADULT SOCIAL CARE,ADVANCE HEALTH CARE (UK) LTD,28/02/2023,509.04,6541-Domiciliary Care,THIRD PARTY PAYMENTS,PRIVATE CONTRACTOR,REVENUE
Walsall Council,http://opendatacommunities.org/id/metropolitan-district-council/walsall ,WC147-571,28.02.2023,ADULT SOCIAL CARE,ADVANCE HEALTH CARE (UK) LTD,28/02/2023,509.04,6541-Domiciliary Care,THIRD PARTY PAYMENTS,PRIVATE CONTRACTOR,REVENUE
Walsall Council,http://opendatacommunities.org/id/metropolitan-district-council/walsall ,WC147-572,28.02.2023,ADULT SOCIAL CARE,ADVANCE HEALTH CARE (UK) LTD,28/02/2023,565.60,6541-Domiciliary Care,THIRD PARTY PAYMENTS,PRIVATE CONTRACTOR,REVENUE
Walsall Council,http://opendatacommunities.org/id/metropolitan-district-council/walsall ,WC147-573,28.02.2023,ADULT SOCIAL CARE,ADVANCE HEALTH CARE (UK) LTD,28/02/2023,864.56,6541-Domiciliary Care,THIRD PARTY PAYMENTS,PRIVATE CONTRACTOR,REVENUE
Walsall Council,http://opendatacommunities.org/id/metropolitan-district-council/walsall ,WC147-574,28.02.2023,ADULT SOCIAL CARE,ADVANCE HEALTH CARE (UK) LTD,28/02/2023,396.06,6541-Domiciliary Care,THIRD PARTY PAYMENTS,PRIVATE CONTRACTOR,REVENUE
Walsall Council,http://opendatacommunities.org/id/metropolitan-district-council/walsall ,WC147-575,28.02.2023,ADULT SOCIAL CARE,ADVANCE HEALTH CARE (UK) LTD,28/02/2023,254.52,6541-Domiciliary Care,THIRD PARTY PAYMENTS,PRIVATE CONTRACTOR,REVENUE
Walsall Council,http://opendatacommunities.org/id/metropolitan-district-council/walsall ,WC147-576,28.02.2023,ADULT SOCIAL CARE,ADVANCE HEALTH CARE (UK) LTD,28/02/2023,"1,131.20",6541-Domiciliary Care,THIRD PARTY PAYMENTS,PRIVATE CONTRACTOR,REVENUE
Walsall Council,http://opendatacommunities.org/id/metropolitan-district-council/walsall ,WC147-577,28.02.2023,ADULT SOCIAL CARE,ADVANCE HEALTH CARE (UK) LTD,28/02/2023,339.36,6541-Domiciliary Care,THIRD PARTY PAYMENTS,PRIVATE CONTRACTOR,REVENUE
Walsall Council,http://opendatacommunities.org/id/metropolitan-district-council/walsall ,WC147-578,28.02.2023,ADULT SOCIAL CARE,ADVANCE HEALTH CARE (UK) LTD,28/02/2023,395.92,6541-Domiciliary Care,THIRD PARTY PAYMENTS,PRIVATE CONTRACTOR,REVENUE
Walsall Council,http://opendatacommunities.org/id/metropolitan-district-council/walsall ,WC147-579,28.02.2023,ADULT SOCIAL CARE,ADVANCE HEALTH CARE (UK) LTD,28/02/2023,452.48,6541-Domiciliary Care,THIRD PARTY PAYMENTS,PRIVATE CONTRACTOR,REVENUE
Walsall Council,http://opendatacommunities.org/id/metropolitan-district-council/walsall ,WC147-580,28.02.2023,ADULT SOCIAL CARE,ADVANCE HEALTH CARE (UK) LTD,28/02/2023,339.36,6541-Domiciliary Care,THIRD PARTY PAYMENTS,PRIVATE CONTRACTOR,REVENUE
Walsall Council,http://opendatacommunities.org/id/metropolitan-district-council/walsall ,WC147-581,28.02.2023,ADULT SOCIAL CARE,ADVANCE HEALTH CARE (UK) LTD,28/02/2023,565.60,6541-Domiciliary Care,THIRD PARTY PAYMENTS,PRIVATE CONTRACTOR,REVENUE
Walsall Council,http://opendatacommunities.org/id/metropolitan-district-council/walsall ,WC147-582,28.02.2023,ADULT SOCIAL CARE,ADVANCE HEALTH CARE (UK) LTD,28/02/2023,452.48,6541-Domiciliary Care,THIRD PARTY PAYMENTS,PRIVATE CONTRACTOR,REVENUE
Walsall Council,http://opendatacommunities.org/id/metropolitan-district-council/walsall ,WC147-583,28.02.2023,ADULT SOCIAL CARE,ADVANCE HEALTH CARE (UK) LTD,28/02/2023,254.52,6541-Domiciliary Care,THIRD PARTY PAYMENTS,PRIVATE CONTRACTOR,REVENUE
Walsall Council,http://opendatacommunities.org/id/metropolitan-district-council/walsall ,WC147-584,28.02.2023,ADULT SOCIAL CARE,ADVANCE HEALTH CARE (UK) LTD,28/02/2023,"-1,131.20",6541-Domiciliary Care,THIRD PARTY PAYMENTS,PRIVATE CONTRACTOR,REVENUE
Walsall Council,http://opendatacommunities.org/id/metropolitan-district-council/walsall ,WC147-585,28.02.2023,ADULT SOCIAL CARE,ADVANCE HEALTH CARE (UK) LTD,28/02/2023,452.48,6541-Domiciliary Care,THIRD PARTY PAYMENTS,PRIVATE CONTRACTOR,REVENUE
Walsall Council,http://opendatacommunities.org/id/metropolitan-district-council/walsall ,WC147-586,28.02.2023,ADULT SOCIAL CARE,ADVANCE HEALTH CARE (UK) LTD,28/02/2023,509.04,6541-Domiciliary Care,THIRD PARTY PAYMENTS,PRIVATE CONTRACTOR,REVENUE
Walsall Council,http://opendatacommunities.org/id/metropolitan-district-council/walsall ,WC147-587,28.02.2023,ADULT SOCIAL CARE,ADVANCE HEALTH CARE (UK) LTD,28/02/2023,509.04,6541-Domiciliary Care,THIRD PARTY PAYMENTS,PRIVATE CONTRACTOR,REVENUE
Walsall Council,http://opendatacommunities.org/id/metropolitan-district-council/walsall ,WC147-588,28.02.2023,ADULT SOCIAL CARE,ADVANCE HEALTH CARE (UK) LTD,28/02/2023,509.04,6541-Domiciliary Care,THIRD PARTY PAYMENTS,PRIVATE CONTRACTOR,REVENUE
Walsall Council,http://opendatacommunities.org/id/metropolitan-district-council/walsall ,WC147-589,28.02.2023,ADULT SOCIAL CARE,ADVANCE HEALTH CARE (UK) LTD,28/02/2023,339.50,6541-Domiciliary Care,THIRD PARTY PAYMENTS,PRIVATE CONTRACTOR,REVENUE
Walsall Council,http://opendatacommunities.org/id/metropolitan-district-council/walsall ,WC147-590,28.02.2023,ADULT SOCIAL CARE,ADVANCE HEALTH CARE (UK) LTD,28/02/2023,509.04,6541-Domiciliary Care,THIRD PARTY PAYMENTS,PRIVATE CONTRACTOR,REVENUE
Walsall Council,http://opendatacommunities.org/id/metropolitan-district-council/walsall ,WC147-591,28.02.2023,ADULT SOCIAL CARE,ADVANCE HEALTH CARE (UK) LTD,28/02/2023,509.04,6541-Domiciliary Care,THIRD PARTY PAYMENTS,PRIVATE CONTRACTOR,REVENUE
Walsall Council,http://opendatacommunities.org/id/metropolitan-district-council/walsall ,WC147-592,28.02.2023,ADULT SOCIAL CARE,ADVANCE HEALTH CARE (UK) LTD,28/02/2023,864.56,6541-Domiciliary Care,THIRD PARTY PAYMENTS,PRIVATE CONTRACTOR,REVENUE
Walsall Council,http://opendatacommunities.org/id/metropolitan-district-council/walsall ,WC147-593,28.02.2023,ADULT SOCIAL CARE,ADVANCE HEALTH CARE (UK) LTD,28/02/2023,396.06,6541-Domiciliary Care,THIRD PARTY PAYMENTS,PRIVATE CONTRACTOR,REVENUE
Walsall Council,http://opendatacommunities.org/id/metropolitan-district-council/walsall ,WC147-594,28.02.2023,ADULT SOCIAL CARE,ADVANCE HEALTH CARE (UK) LTD,28/02/2023,254.52,6541-Domiciliary Care,THIRD PARTY PAYMENTS,PRIVATE CONTRACTOR,REVENUE
Walsall Council,http://opendatacommunities.org/id/metropolitan-district-council/walsall ,WC147-595,28.02.2023,ADULT SOCIAL CARE,ADVANCE HEALTH CARE (UK) LTD,28/02/2023,565.60,6541-Domiciliary Care,THIRD PARTY PAYMENTS,PRIVATE CONTRACTOR,REVENUE
Walsall Council,http://opendatacommunities.org/id/metropolitan-district-council/walsall ,WC147-596,28.02.2023,ADULT SOCIAL CARE,ADVANCE HEALTH CARE (UK) LTD,28/02/2023,500.96,6541-Domiciliary Care,THIRD PARTY PAYMENTS,PRIVATE CONTRACTOR,REVENUE
Walsall Council,http://opendatacommunities.org/id/metropolitan-district-council/walsall ,WC147-597,28.02.2023,ADULT SOCIAL CARE,ADVANCE HEALTH CARE (UK) LTD,28/02/2023,509.04,6541-Domiciliary Care,THIRD PARTY PAYMENTS,PRIVATE CONTRACTOR,REVENUE
Walsall Council,http://opendatacommunities.org/id/metropolitan-district-council/walsall ,WC147-598,28.02.2023,ADULT SOCIAL CARE,ADVANCE HEALTH CARE (UK) LTD,28/02/2023,509.04,6541-Domiciliary Care,THIRD PARTY PAYMENTS,PRIVATE CONTRACTOR,REVENUE
Walsall Council,http://opendatacommunities.org/id/metropolitan-district-council/walsall ,WC147-599,28.02.2023,ADULT SOCIAL CARE,ADVANCE HEALTH CARE (UK) LTD,28/02/2023,509.04,6541-Domiciliary Care,THIRD PARTY PAYMENTS,PRIVATE CONTRACTOR,REVENUE
Walsall Council,http://opendatacommunities.org/id/metropolitan-district-council/walsall ,WC147-600,28.02.2023,ADULT SOCIAL CARE,ADVANCE HEALTH CARE (UK) LTD,28/02/2023,565.60,6541-Domiciliary Care,THIRD PARTY PAYMENTS,PRIVATE CONTRACTOR,REVENUE
Walsall Council,http://opendatacommunities.org/id/metropolitan-district-council/walsall ,WC147-601,28.02.2023,ADULT SOCIAL CARE,ADVANCE HEALTH CARE (UK) LTD,28/02/2023,395.92,6541-Domiciliary Care,THIRD PARTY PAYMENTS,PRIVATE CONTRACTOR,REVENUE
Walsall Council,http://opendatacommunities.org/id/metropolitan-district-council/walsall ,WC147-602,28.02.2023,ADULT SOCIAL CARE,ADVANCE HEALTH CARE (UK) LTD,28/02/2023,589.84,6541-Domiciliary Care,THIRD PARTY PAYMENTS,PRIVATE CONTRACTOR,REVENUE
Walsall Council,http://opendatacommunities.org/id/metropolitan-district-council/walsall ,WC147-603,28.02.2023,ADULT SOCIAL CARE,ADVANCE HEALTH CARE (UK) LTD,28/02/2023,254.52,6541-Domiciliary Care,THIRD PARTY PAYMENTS,PRIVATE CONTRACTOR,REVENUE
Walsall Council,http://opendatacommunities.org/id/metropolitan-district-council/walsall ,WC147-604,28.02.2023,ADULT SOCIAL CARE,ADVANCE HEALTH CARE (UK) LTD,28/02/2023,254.52,6541-Domiciliary Care,THIRD PARTY PAYMENTS,PRIVATE CONTRACTOR,REVENUE
Walsall Council,http://opendatacommunities.org/id/metropolitan-district-council/walsall ,WC147-605,28.02.2023,ADULT SOCIAL CARE,ADVANCE HEALTH CARE (UK) LTD,28/02/2023,509.04,6541-Domiciliary Care,THIRD PARTY PAYMENTS,PRIVATE CONTRACTOR,REVENUE
Walsall Council,http://opendatacommunities.org/id/metropolitan-district-council/walsall ,WC147-606,28.02.2023,ADULT SOCIAL CARE,ADVANCE HEALTH CARE (UK) LTD,28/02/2023,452.48,6541-Domiciliary Care,THIRD PARTY PAYMENTS,PRIVATE CONTRACTOR,REVENUE
Walsall Council,http://opendatacommunities.org/id/metropolitan-district-council/walsall ,WC147-607,28.02.2023,ADULT SOCIAL CARE,ADVANCE HEALTH CARE (UK) LTD,28/02/2023,339.36,6541-Domiciliary Care,THIRD PARTY PAYMENTS,PRIVATE CONTRACTOR,REVENUE
Walsall Council,http://opendatacommunities.org/id/metropolitan-district-council/walsall ,WC147-608,28.02.2023,ADULT SOCIAL CARE,ADVANCE HEALTH CARE (UK) LTD,28/02/2023,565.60,6541-Domiciliary Care,THIRD PARTY PAYMENTS,PRIVATE CONTRACTOR,REVENUE
Walsall Council,http://opendatacommunities.org/id/metropolitan-district-council/walsall ,WC147-609,28.02.2023,ADULT SOCIAL CARE,ADVANCE HEALTH CARE (UK) LTD,28/02/2023,565.60,6541-Domiciliary Care,THIRD PARTY PAYMENTS,PRIVATE CONTRACTOR,REVENUE
Walsall Council,http://opendatacommunities.org/id/metropolitan-district-council/walsall ,WC147-610,28.02.2023,ADULT SOCIAL CARE,ADVANCE HEALTH CARE (UK) LTD,28/02/2023,377.16,6541-Domiciliary Care,THIRD PARTY PAYMENTS,PRIVATE CONTRACTOR,REVENUE
Walsall Council,http://opendatacommunities.org/id/metropolitan-district-council/walsall ,WC147-611,28.02.2023,ADULT SOCIAL CARE,ADVANCE HEALTH CARE (UK) LTD,28/02/2023,339.50,6541-Domiciliary Care,THIRD PARTY PAYMENTS,PRIVATE CONTRACTOR,REVENUE
Walsall Council,http://opendatacommunities.org/id/metropolitan-district-council/walsall ,WC147-612,28.02.2023,ADULT SOCIAL CARE,ADVANCE HEALTH CARE (UK) LTD,28/02/2023,509.04,6541-Domiciliary Care,THIRD PARTY PAYMENTS,PRIVATE CONTRACTOR,REVENUE
Walsall Council,http://opendatacommunities.org/id/metropolitan-district-council/walsall ,WC147-613,28.02.2023,ADULT SOCIAL CARE,ADVANCE HEALTH CARE (UK) LTD,28/02/2023,452.48,6541-Domiciliary Care,THIRD PARTY PAYMENTS,PRIVATE CONTRACTOR,REVENUE
Walsall Council,http://opendatacommunities.org/id/metropolitan-district-council/walsall ,WC147-614,28.02.2023,ADULT SOCIAL CARE,ADVANCE HEALTH CARE (UK) LTD,28/02/2023,339.36,6541-Domiciliary Care,THIRD PARTY PAYMENTS,PRIVATE CONTRACTOR,REVENUE
Walsall Council,http://opendatacommunities.org/id/metropolitan-district-council/walsall ,WC147-615,28.02.2023,ADULT SOCIAL CARE,ADVANCE HEALTH CARE (UK) LTD,28/02/2023,509.04,6541-Domiciliary Care,THIRD PARTY PAYMENTS,PRIVATE CONTRACTOR,REVENUE
Walsall Council,http://opendatacommunities.org/id/metropolitan-district-council/walsall ,WC147-616,28.02.2023,ADULT SOCIAL CARE,ADVANCE HEALTH CARE (UK) LTD,28/02/2023,509.04,6541-Domiciliary Care,THIRD PARTY PAYMENTS,PRIVATE CONTRACTOR,REVENUE
Walsall Council,http://opendatacommunities.org/id/metropolitan-district-council/walsall ,WC147-617,28.02.2023,ADULT SOCIAL CARE,ADVANCE HEALTH CARE (UK) LTD,28/02/2023,509.04,6541-Domiciliary Care,THIRD PARTY PAYMENTS,PRIVATE CONTRACTOR,REVENUE
Walsall Council,http://opendatacommunities.org/id/metropolitan-district-council/walsall ,WC147-618,28.02.2023,ADULT SOCIAL CARE,ADVANCE HEALTH CARE (UK) LTD,28/02/2023,258.56,6541-Domiciliary Care,THIRD PARTY PAYMENTS,PRIVATE CONTRACTOR,REVENUE
Walsall Council,http://opendatacommunities.org/id/metropolitan-district-council/walsall ,WC147-619,28.02.2023,ADULT SOCIAL CARE,ADVANCE HEALTH CARE (UK) LTD,28/02/2023,452.48,6541-Domiciliary Care,THIRD PARTY PAYMENTS,PRIVATE CONTRACTOR,REVENUE
Walsall Council,http://opendatacommunities.org/id/metropolitan-district-council/walsall ,WC147-620,28.02.2023,ADULT SOCIAL CARE,ADVANCE HEALTH CARE (UK) LTD,28/02/2023,254.52,6541-Domiciliary Care,THIRD PARTY PAYMENTS,PRIVATE CONTRACTOR,REVENUE
Walsall Council,http://opendatacommunities.org/id/metropolitan-district-council/walsall ,WC147-621,28.02.2023,ADULT SOCIAL CARE,ADVANCE HEALTH CARE (UK) LTD,28/02/2023,452.48,6541-Domiciliary Care,THIRD PARTY PAYMENTS,PRIVATE CONTRACTOR,REVENUE
Walsall Council,http://opendatacommunities.org/id/metropolitan-district-council/walsall ,WC147-622,28.02.2023,"ECONOMY, ENVIRONMENT & COMMUNITIES",ADVANCED COMMUNICATION SOLUTIONS LTD,17/02/2023,-295.50,6414-Computer Equipment,SUPPLIES & SERVICES,COMMUNICATIONS & COMPUTING,REVENUE
Walsall Council,http://opendatacommunities.org/id/metropolitan-district-council/walsall ,WC147-623,28.02.2023,"ECONOMY, ENVIRONMENT & COMMUNITIES",ADVANCED COMMUNICATION SOLUTIONS LTD,17/02/2023,-288.83,6414-Computer Equipment,SUPPLIES & SERVICES,COMMUNICATIONS & COMPUTING,REVENUE
Walsall Council,http://opendatacommunities.org/id/metropolitan-district-council/walsall ,WC147-624,28.02.2023,"ECONOMY, ENVIRONMENT & COMMUNITIES",ADVANCED COMMUNICATION SOLUTIONS LTD,17/02/2023,288.83,6414-Computer Equipment,SUPPLIES & SERVICES,COMMUNICATIONS & COMPUTING,REVENUE
Walsall Council,http://opendatacommunities.org/id/metropolitan-district-council/walsall ,WC147-625,28.02.2023,"ECONOMY, ENVIRONMENT & COMMUNITIES",ADVANCED COMMUNICATION SOLUTIONS LTD,17/02/2023,295.50,6414-Computer Equipment,SUPPLIES & SERVICES,COMMUNICATIONS & COMPUTING,REVENUE
Walsall Council,http://opendatacommunities.org/id/metropolitan-district-council/walsall ,WC147-626,28.02.2023,"ECONOMY, ENVIRONMENT & COMMUNITIES",ADVANCED VISUALISATION TECHNOLOGIES LTD T/A DIGITAL AUTOPSY UK,03/02/2023,"10,710.00",6413-Professional Fees & Services,SUPPLIES & SERVICES,SERVICES,REVENUE
Walsall Council,http://opendatacommunities.org/id/metropolitan-district-council/walsall ,WC147-627,28.02.2023,CHILDRENS,ADVENTURELAND DAY NURSERY,15/02/2023,"1,573.69",1184-Other-Grants to Other Orgs,SUPPLIES & SERVICES,GRANTS (EXP) & SUBSCRIPTIONS,REVENUE
Walsall Council,http://opendatacommunities.org/id/metropolitan-district-council/walsall ,WC147-628,28.02.2023,CHILDRENS,ADVENTURELAND DAY NURSERY,15/02/2023,"9,378.60",1184-Other-Grants to Other Orgs,SUPPLIES & SERVICES,GRANTS (EXP) & SUBSCRIPTIONS,REVENUE
Walsall Council,http://opendatacommunities.org/id/metropolitan-district-council/walsall ,WC147-629,28.02.2023,ADULT SOCIAL CARE,ADVINIA CARE HOMES LTD - HAMMERWICH HALL CARE HOME,13/02/2023,"2,366.04",6541-Residential EMI,THIRD PARTY PAYMENTS,PRIVATE CONTRACTOR,REVENUE
Walsall Council,http://opendatacommunities.org/id/metropolitan-district-council/walsall ,WC147-630,28.02.2023,ADULT SOCIAL CARE,ADVINIA CARE HOMES LTD - HAMMERWICH HALL CARE HOME,13/02/2023,"2,095.40",6541-Residential,THIRD PARTY PAYMENTS,PRIVATE CONTRACTOR,REVENUE
Walsall Council,http://opendatacommunities.org/id/metropolitan-district-council/walsall ,WC147-631,28.02.2023,ECONOMY & ENVIRONMENT CAPITAL,AECOM INFRASTRUCTURE & ENVIRONMENT UK LIMITED,03/02/2023,"38,204.51",7200-Consultants Fees,CAPITAL,"NEW CONSTRUCTION,CONVERSION & RENOVATION",CAPITAL
Walsall Council,http://opendatacommunities.org/id/metropolitan-district-council/walsall ,WC147-632,28.02.2023,ADULT SOCIAL CARE,AESOP ARTS AND SOCIETY LTD,24/02/2023,"6,192.50",6420-Payment to Contractors,SUPPLIES & SERVICES,SERVICES,REVENUE
Walsall Council,http://opendatacommunities.org/id/metropolitan-district-council/walsall ,WC147-633,28.02.2023,CHILDRENS,REDACTED,08/02/2023,325.00,6223-School Uniform/Initial Training Allowance-Foster Carers,TRANSFER PAYMENTS,CHILDREN SOCIAL SERVICES CLIENT,REVENUE
Walsall Council,http://opendatacommunities.org/id/metropolitan-district-council/walsall ,WC147-634,28.02.2023,CHILDRENS,REDACTED,08/02/2023,415.56,6223-Foster Carers Maintenance Allowance,TRANSFER PAYMENTS,CHILDREN SOCIAL SERVICES CLIENT,REVENUE
Walsall Council,http://opendatacommunities.org/id/metropolitan-district-council/walsall ,WC147-635,28.02.2023,CHILDRENS,REDACTED,08/02/2023,325.00,6223-School Uniform/Initial Training Allowance-Foster Carers,TRANSFER PAYMENTS,CHILDREN SOCIAL SERVICES CLIENT,REVENUE
Walsall Council,http://opendatacommunities.org/id/metropolitan-district-council/walsall ,WC147-636,28.02.2023,CHILDRENS,REDACTED,08/02/2023,419.66,6223-Internal Foster Carers-Carer Fees,TRANSFER PAYMENTS,CHILDREN SOCIAL SERVICES CLIENT,REVENUE
Walsall Council,http://opendatacommunities.org/id/metropolitan-district-council/walsall ,WC147-637,28.02.2023,CHILDRENS,REDACTED,08/02/2023,600.00,6223-Purchase of Furniture & Equipment,SUPPLIES & SERVICES,EQUIPMENT FURNITURE & MATERIALS,REVENUE
Walsall Council,http://opendatacommunities.org/id/metropolitan-district-council/walsall ,WC147-638,28.02.2023,CHILDRENS,REDACTED,16/02/2023,460.80,6223-Foster Carers Maintenance Allowance,TRANSFER PAYMENTS,CHILDREN SOCIAL SERVICES CLIENT,REVENUE
Walsall Council,http://opendatacommunities.org/id/metropolitan-district-council/walsall ,WC147-639,28.02.2023,RESOURCES AND TRANSFORMATION CAPITAL,AGILISYS LTD,01/02/2023,"-50,829.84",7300-Consultants Fees,CAPITAL,"NEW CONSTRUCTION,CONVERSION & RENOVATION",CAPITAL
Walsall Council,http://opendatacommunities.org/id/metropolitan-district-council/walsall ,WC147-640,28.02.2023,RESOURCES AND TRANSFORMATION CAPITAL,AGILISYS LTD,01/02/2023,"42,358.20",7300-Consultants Fees,CAPITAL,"NEW CONSTRUCTION,CONVERSION & RENOVATION",CAPITAL
Walsall Council,http://opendatacommunities.org/id/metropolitan-district-council/walsall ,WC147-641,28.02.2023,RESOURCES AND TRANSFORMATION CAPITAL,AGILISYS LTD,01/02/2023,"50,829.84",7300-Consultants Fees,CAPITAL,"NEW CONSTRUCTION,CONVERSION & RENOVATION",CAPITAL
Walsall Council,http://opendatacommunities.org/id/metropolitan-district-council/walsall ,WC147-642,28.02.2023,RESOURCES AND TRANSFORMATION CAPITAL,AGILISYS LTD,01/02/2023,"35,600.00",7300-Consultants Fees,CAPITAL,"NEW CONSTRUCTION,CONVERSION & RENOVATION",CAPITAL
Walsall Council,http://opendatacommunities.org/id/metropolitan-district-council/walsall ,WC147-643,28.02.2023,RESOURCES AND TRANSFORMATION CAPITAL,AGILISYS LTD,23/02/2023,"-12,334.52",7300-Consultants Fees,CAPITAL,"NEW CONSTRUCTION,CONVERSION & RENOVATION",CAPITAL
Walsall Council,http://opendatacommunities.org/id/metropolitan-district-council/walsall ,WC147-644,28.02.2023,RESOURCES AND TRANSFORMATION CAPITAL,AGILISYS LTD,23/02/2023,"12,334.52",7300-Consultants Fees,CAPITAL,"NEW CONSTRUCTION,CONVERSION & RENOVATION",CAPITAL
Walsall Council,http://opendatacommunities.org/id/metropolitan-district-council/walsall ,WC147-645,28.02.2023,CHILDRENS,REDACTED,08/02/2023,638.37,6223-Special Guardianship Orders,TRANSFER PAYMENTS,CHILDREN SOCIAL SERVICES CLIENT,REVENUE
Walsall Council,http://opendatacommunities.org/id/metropolitan-district-council/walsall ,WC147-646,28.02.2023,ADULT SOCIAL CARE,REDACTED,02/02/2023,"2,517.12",6541-Direct Payment,THIRD PARTY PAYMENTS,PRIVATE CONTRACTOR,REVENUE
Walsall Council,http://opendatacommunities.org/id/metropolitan-district-council/walsall ,WC147-647,28.02.2023,ADULT SOCIAL CARE,REDACTED,02/02/2023,"2,193.08",6541-Direct Payment,THIRD PARTY PAYMENTS,PRIVATE CONTRACTOR,REVENUE
Walsall Council,http://opendatacommunities.org/id/metropolitan-district-council/walsall ,WC147-648,28.02.2023,ADULT SOCIAL CARE,REDACTED,02/02/2023,625.62,6541-Direct Payment,THIRD PARTY PAYMENTS,PRIVATE CONTRACTOR,REVENUE
Walsall Council,http://opendatacommunities.org/id/metropolitan-district-council/walsall ,WC147-649,28.02.2023,"ECONOMY, ENVIRONMENT & COMMUNITIES",ALBERT JAGGER LTD,10/02/2023,476.40,6410-Materials to Stores,SUPPLIES & SERVICES,EQUIPMENT FURNITURE & MATERIALS,REVENUE
Walsall Council,http://opendatacommunities.org/id/metropolitan-district-council/walsall ,WC147-650,28.02.2023,CHILDRENS,ALDRIDGE & BARONS LIMITED,28/02/2023,"2,146.00",6241-Hire of Vehicle with Driver,TRANSPORT,DIRECT TRANSPORT COSTS,REVENUE
Walsall Council,http://opendatacommunities.org/id/metropolitan-district-council/walsall ,WC147-651,28.02.2023,CHILDRENS,ALDRIDGE & BARONS LIMITED,28/02/2023,"3,033.00",6241-Hire of Vehicle with Driver,TRANSPORT,DIRECT TRANSPORT COSTS,REVENUE
Walsall Council,http://opendatacommunities.org/id/metropolitan-district-council/walsall ,WC147-652,28.02.2023,CHILDRENS,ALDRIDGE & BARONS LIMITED,28/02/2023,"2,887.60",6241-Hire of Vehicle with Driver,TRANSPORT,DIRECT TRANSPORT COSTS,REVENUE
Walsall Council,http://opendatacommunities.org/id/metropolitan-district-council/walsall ,WC147-653,28.02.2023,CHILDRENS,ALDRIDGE & BARONS LIMITED,28/02/2023,"2,340.00",6241-Hire of Vehicle with Driver,TRANSPORT,DIRECT TRANSPORT COSTS,REVENUE
Walsall Council,http://opendatacommunities.org/id/metropolitan-district-council/walsall ,WC147-654,28.02.2023,CHILDRENS,ALDRIDGE & BARONS LIMITED,28/02/2023,"3,600.00",6241-Hire of Vehicle with Driver,TRANSPORT,DIRECT TRANSPORT COSTS,REVENUE
Walsall Council,http://opendatacommunities.org/id/metropolitan-district-council/walsall ,WC147-655,28.02.2023,CHILDRENS,ALDRIDGE & BARONS LIMITED,28/02/2023,"2,232.00",6241-Hire of Vehicle with Driver,TRANSPORT,DIRECT TRANSPORT COSTS,REVENUE
Walsall Council,http://opendatacommunities.org/id/metropolitan-district-council/walsall ,WC147-656,28.02.2023,CHILDRENS,ALDRIDGE & BARONS LIMITED,28/02/2023,"2,811.60",6241-Hire of Vehicle with Driver,TRANSPORT,DIRECT TRANSPORT COSTS,REVENUE
Walsall Council,http://opendatacommunities.org/id/metropolitan-district-council/walsall ,WC147-657,28.02.2023,CHILDRENS,ALDRIDGE & BARONS LIMITED,28/02/2023,"1,717.00",6241-Hire of Vehicle with Driver,TRANSPORT,DIRECT TRANSPORT COSTS,REVENUE
Walsall Council,http://opendatacommunities.org/id/metropolitan-district-council/walsall ,WC147-658,28.02.2023,CHILDRENS,ALDRIDGE & BARONS LIMITED,28/02/2023,"2,124.00",6241-Hire of Vehicle with Driver,TRANSPORT,DIRECT TRANSPORT COSTS,REVENUE
Walsall Council,http://opendatacommunities.org/id/metropolitan-district-council/walsall ,WC147-659,28.02.2023,CHILDRENS,ALDRIDGE & BARONS LIMITED,28/02/2023,"1,914.00",6241-Hire of Vehicle with Driver,TRANSPORT,DIRECT TRANSPORT COSTS,REVENUE
Walsall Council,http://opendatacommunities.org/id/metropolitan-district-council/walsall ,WC147-660,28.02.2023,CHILDRENS,ALDRIDGE & BARONS LIMITED,28/02/2023,"2,820.00",6241-Hire of Vehicle with Driver,TRANSPORT,DIRECT TRANSPORT COSTS,REVENUE
Walsall Council,http://opendatacommunities.org/id/metropolitan-district-council/walsall ,WC147-661,28.02.2023,CHILDRENS,ALDRIDGE & BARONS LIMITED,28/02/2023,"1,188.00",6241-Hire of Vehicle with Driver,TRANSPORT,DIRECT TRANSPORT COSTS,REVENUE
Walsall Council,http://opendatacommunities.org/id/metropolitan-district-council/walsall ,WC147-662,28.02.2023,CHILDRENS,ALDRIDGE & BARONS LIMITED,28/02/2023,525.00,6241-Hire of Vehicle with Driver,TRANSPORT,DIRECT TRANSPORT COSTS,REVENUE
Walsall Council,http://opendatacommunities.org/id/metropolitan-district-council/walsall ,WC147-663,28.02.2023,CHILDRENS,ALDRIDGE & BARONS LIMITED,28/02/2023,"2,414.00",6241-Hire of Vehicle with Driver,TRANSPORT,DIRECT TRANSPORT COSTS,REVENUE
Walsall Council,http://opendatacommunities.org/id/metropolitan-district-council/walsall ,WC147-664,28.02.2023,CHILDRENS,ALDRIDGE & BARONS LIMITED,28/02/2023,"3,585.00",6241-Hire of Vehicle with Driver,TRANSPORT,DIRECT TRANSPORT COSTS,REVENUE
Walsall Council,http://opendatacommunities.org/id/metropolitan-district-council/walsall ,WC147-665,28.02.2023,CHILDRENS,ALDRIDGE & BARONS LIMITED,28/02/2023,"2,600.00",6241-Hire of Vehicle with Driver,TRANSPORT,DIRECT TRANSPORT COSTS,REVENUE
Walsall Council,http://opendatacommunities.org/id/metropolitan-district-council/walsall ,WC147-666,28.02.2023,CHILDRENS,ALDRIDGE & BARONS LIMITED,28/02/2023,"2,760.00",6241-Hire of Vehicle with Driver,TRANSPORT,DIRECT TRANSPORT COSTS,REVENUE
Walsall Council,http://opendatacommunities.org/id/metropolitan-district-council/walsall ,WC147-667,28.02.2023,CHILDRENS,ALDRIDGE & BARONS LIMITED,28/02/2023,"2,000.00",6241-Hire of Vehicle with Driver,TRANSPORT,DIRECT TRANSPORT COSTS,REVENUE
Walsall Council,http://opendatacommunities.org/id/metropolitan-district-council/walsall ,WC147-668,28.02.2023,CHILDRENS,ALDRIDGE & BARONS LIMITED,28/02/2023,"3,172.00",6241-Hire of Vehicle with Driver,TRANSPORT,DIRECT TRANSPORT COSTS,REVENUE
Walsall Council,http://opendatacommunities.org/id/metropolitan-district-council/walsall ,WC147-669,28.02.2023,CHILDRENS,ALDRIDGE & BARONS LIMITED,28/02/2023,"1,800.00",6241-Hire of Vehicle with Driver,TRANSPORT,DIRECT TRANSPORT COSTS,REVENUE
Walsall Council,http://opendatacommunities.org/id/metropolitan-district-council/walsall ,WC147-670,28.02.2023,CHILDRENS,ALDRIDGE & BARONS LIMITED,28/02/2023,"1,296.00",6241-Hire of Vehicle with Driver,TRANSPORT,DIRECT TRANSPORT COSTS,REVENUE
Walsall Council,http://opendatacommunities.org/id/metropolitan-district-council/walsall ,WC147-671,28.02.2023,CHILDRENS,ALDRIDGE & BARONS LIMITED,28/02/2023,495.00,6241-Hire of Vehicle with Driver,TRANSPORT,DIRECT TRANSPORT COSTS,REVENUE
Walsall Council,http://opendatacommunities.org/id/metropolitan-district-council/walsall ,WC147-672,28.02.2023,CHILDRENS,ALDRIDGE & BARONS LIMITED,28/02/2023,"3,110.40",6241-Hire of Vehicle with Driver,TRANSPORT,DIRECT TRANSPORT COSTS,REVENUE
Walsall Council,http://opendatacommunities.org/id/metropolitan-district-council/walsall ,WC147-673,28.02.2023,CHILDRENS,ALDRIDGE & BARONS LIMITED,28/02/2023,"3,000.00",6241-Hire of Vehicle with Driver,TRANSPORT,DIRECT TRANSPORT COSTS,REVENUE
Walsall Council,http://opendatacommunities.org/id/metropolitan-district-council/walsall ,WC147-674,28.02.2023,CHILDRENS,ALDRIDGE & BARONS LIMITED,28/02/2023,"2,800.00",6241-Hire of Vehicle with Driver,TRANSPORT,DIRECT TRANSPORT COSTS,REVENUE
Walsall Council,http://opendatacommunities.org/id/metropolitan-district-council/walsall ,WC147-675,28.02.2023,CHILDRENS,ALDRIDGE & BARONS LIMITED,28/02/2023,"2,200.00",6241-Hire of Vehicle with Driver,TRANSPORT,DIRECT TRANSPORT COSTS,REVENUE
Walsall Council,http://opendatacommunities.org/id/metropolitan-district-council/walsall ,WC147-676,28.02.2023,CHILDRENS,ALDRIDGE & BARONS LIMITED,28/02/2023,"2,260.00",6241-Hire of Vehicle with Driver,TRANSPORT,DIRECT TRANSPORT COSTS,REVENUE
Walsall Council,http://opendatacommunities.org/id/metropolitan-district-council/walsall ,WC147-677,28.02.2023,CHILDRENS,ALDRIDGE & BARONS LIMITED,28/02/2023,"3,000.00",6241-Hire of Vehicle with Driver,TRANSPORT,DIRECT TRANSPORT COSTS,REVENUE
Walsall Council,http://opendatacommunities.org/id/metropolitan-district-council/walsall ,WC147-678,28.02.2023,CHILDRENS,ALDRIDGE & BARONS LIMITED,28/02/2023,"1,620.00",6241-Hire of Vehicle with Driver,TRANSPORT,DIRECT TRANSPORT COSTS,REVENUE
Walsall Council,http://opendatacommunities.org/id/metropolitan-district-council/walsall ,WC147-679,28.02.2023,ADULT SOCIAL CARE,REDACTED,02/02/2023,"1,551.36",6541-Direct Payment,THIRD PARTY PAYMENTS,PRIVATE CONTRACTOR,REVENUE
Walsall Council,http://opendatacommunities.org/id/metropolitan-district-council/walsall ,WC147-680,28.02.2023,"ECONOMY, ENVIRONMENT & COMMUNITIES",REDACTED,21/02/2023,345.00,6414-Professional Fees & Services,SUPPLIES & SERVICES,SERVICES,REVENUE
Walsall Council,http://opendatacommunities.org/id/metropolitan-district-council/walsall ,WC147-681,28.02.2023,ADULT SOCIAL CARE,ALEXANDRA HOUSE CARE SERVICES LTD T/A STONEBRIDGE NURSING HOME,13/02/2023,"7,434.72",6541-Residential,THIRD PARTY PAYMENTS,PRIVATE CONTRACTOR,REVENUE
Walsall Council,http://opendatacommunities.org/id/metropolitan-district-council/walsall ,WC147-682,28.02.2023,ADULT SOCIAL CARE,REDACTED,02/02/2023,993.52,6541-Direct Payment,THIRD PARTY PAYMENTS,PRIVATE CONTRACTOR,REVENUE
Walsall Council,http://opendatacommunities.org/id/metropolitan-district-council/walsall ,WC147-683,28.02.2023,CHILDRENS,REDACTED,08/02/2023,341.72,6223-Special Guardianship Orders,TRANSFER PAYMENTS,CHILDREN SOCIAL SERVICES CLIENT,REVENUE
Walsall Council,http://opendatacommunities.org/id/metropolitan-district-council/walsall ,WC147-684,28.02.2023,"ECONOMY, ENVIRONMENT & COMMUNITIES",ALL SAINTS CHURCH STREETLY,06/02/2023,370.96,6430-Grants to Other Orgs,SUPPLIES & SERVICES,GRANTS (EXP) & SUBSCRIPTIONS,REVENUE
Walsall Council,http://opendatacommunities.org/id/metropolitan-district-council/walsall ,WC147-685,28.02.2023,CHILDRENS,ALLIANCE CARE LTD,17/02/2023,"3,024.00",6220-Professional Fees & Services,SUPPLIES & SERVICES,SERVICES,REVENUE
Walsall Council,http://opendatacommunities.org/id/metropolitan-district-council/walsall ,WC147-686,28.02.2023,ECONOMY & ENVIRONMENT CAPITAL,ALLIANCE LEISURE SERVICES LTD,20/02/2023,"189,915.30",7200-Site Works Contractors,CAPITAL,"NEW CONSTRUCTION,CONVERSION & RENOVATION",CAPITAL
Walsall Council,http://opendatacommunities.org/id/metropolitan-district-council/walsall ,WC147-687,28.02.2023,RESOURCES AND TRANSFORMATION,ALLIED PUBLICITY SERVICES (MANCHESTER) LIMITED T/A APS GROUP,17/02/2023,"1,095.46",6312-External Printing Services,SUPPLIES & SERVICES,PRINTING STATIONERY & GENERAL OFFICE,REVENUE
Walsall Council,http://opendatacommunities.org/id/metropolitan-district-council/walsall ,WC147-688,28.02.2023,RESOURCES AND TRANSFORMATION,ALLIED PUBLICITY SERVICES (MANCHESTER) LIMITED T/A APS GROUP,06/02/2023,"1,528.36",6312-External Printing Services,SUPPLIES & SERVICES,PRINTING STATIONERY & GENERAL OFFICE,REVENUE
Walsall Council,http://opendatacommunities.org/id/metropolitan-district-council/walsall ,WC147-689,28.02.2023,CHILDRENS,ALLPAY LTD,03/02/2023,"-1,000.00",6222-Professional Fees & Services,SUPPLIES & SERVICES,SERVICES,REVENUE
Walsall Council,http://opendatacommunities.org/id/metropolitan-district-council/walsall ,WC147-690,28.02.2023,CHILDRENS,ALLPAY LTD,03/02/2023,"1,000.00",6222-Professional Fees & Services,SUPPLIES & SERVICES,SERVICES,REVENUE
Walsall Council,http://opendatacommunities.org/id/metropolitan-district-council/walsall ,WC147-691,28.02.2023,CHILDRENS,ALLPAY LTD,06/02/2023,"-1,000.00",6222-Professional Fees & Services,SUPPLIES & SERVICES,SERVICES,REVENUE
Walsall Council,http://opendatacommunities.org/id/metropolitan-district-council/walsall ,WC147-692,28.02.2023,CHILDRENS,ALLPAY LTD,06/02/2023,"1,000.00",6222-Professional Fees & Services,SUPPLIES & SERVICES,SERVICES,REVENUE
Walsall Council,http://opendatacommunities.org/id/metropolitan-district-council/walsall ,WC147-693,28.02.2023,CHILDRENS,ALLPAY LTD,06/02/2023,"1,000.00",6222-Professional Fees & Services,SUPPLIES & SERVICES,SERVICES,REVENUE
Walsall Council,http://opendatacommunities.org/id/metropolitan-district-council/walsall ,WC147-694,28.02.2023,ADULT SOCIAL CARE,ALMA COURT,13/02/2023,"4,805.72",6541-Nursing EMI,THIRD PARTY PAYMENTS,PRIVATE CONTRACTOR,REVENUE
Walsall Council,http://opendatacommunities.org/id/metropolitan-district-council/walsall ,WC147-695,28.02.2023,ADULT SOCIAL CARE,ALMA COURT,13/02/2023,"4,263.00",6541-Residential,THIRD PARTY PAYMENTS,PRIVATE CONTRACTOR,REVENUE
Walsall Council,http://opendatacommunities.org/id/metropolitan-district-council/walsall ,WC147-696,28.02.2023,ADULT SOCIAL CARE,ALMA COURT,13/02/2023,"4,000.00",6541-Nursing EMI,THIRD PARTY PAYMENTS,PRIVATE CONTRACTOR,REVENUE
Walsall Council,http://opendatacommunities.org/id/metropolitan-district-council/walsall ,WC147-697,28.02.2023,ADULT SOCIAL CARE,ALMA COURT,13/02/2023,"6,718.40",6541-Residential,THIRD PARTY PAYMENTS,PRIVATE CONTRACTOR,REVENUE
Walsall Council,http://opendatacommunities.org/id/metropolitan-district-council/walsall ,WC147-698,28.02.2023,CHILDRENS,ALMOZENE NURSERY & CHILDRENS CENTRE,15/02/2023,"3,004.31",1184-Other-Grants to Other Orgs,SUPPLIES & SERVICES,GRANTS (EXP) & SUBSCRIPTIONS,REVENUE
Walsall Council,http://opendatacommunities.org/id/metropolitan-district-council/walsall ,WC147-699,28.02.2023,CHILDRENS,ALMOZENE NURSERY & CHILDRENS CENTRE,15/02/2023,"4,402.20",1184-Other-Grants to Other Orgs,SUPPLIES & SERVICES,GRANTS (EXP) & SUBSCRIPTIONS,REVENUE
Walsall Council,http://opendatacommunities.org/id/metropolitan-district-council/walsall ,WC147-700,28.02.2023,ADULT SOCIAL CARE,ALPHA HEALTH CARE LTD,13/02/2023,"2,763.80",6541-Nursing EMI,THIRD PARTY PAYMENTS,PRIVATE CONTRACTOR,REVENUE
Walsall Council,http://opendatacommunities.org/id/metropolitan-district-council/walsall ,WC147-701,28.02.2023,ADULT SOCIAL CARE,ALPHA HEALTH CARE LTD,13/02/2023,"7,067.80",6541-Nursing EMI,THIRD PARTY PAYMENTS,PRIVATE CONTRACTOR,REVENUE
Walsall Council,http://opendatacommunities.org/id/metropolitan-district-council/walsall ,WC147-702,28.02.2023,ADULT SOCIAL CARE,ALPHA HEALTH CARE LTD,13/02/2023,"3,132.12",6541-Nursing EMI,THIRD PARTY PAYMENTS,PRIVATE CONTRACTOR,REVENUE
Walsall Council,http://opendatacommunities.org/id/metropolitan-district-council/walsall ,WC147-703,28.02.2023,ADULT SOCIAL CARE,ALPHA HEALTH CARE LTD,13/02/2023,"3,398.04",6541-Residential EMI,THIRD PARTY PAYMENTS,PRIVATE CONTRACTOR,REVENUE
Walsall Council,http://opendatacommunities.org/id/metropolitan-district-council/walsall ,WC147-704,28.02.2023,ADULT SOCIAL CARE,ALPHA HEALTH CARE LTD,13/02/2023,"2,766.04",6541-Residential EMI,THIRD PARTY PAYMENTS,PRIVATE CONTRACTOR,REVENUE
Walsall Council,http://opendatacommunities.org/id/metropolitan-district-council/walsall ,WC147-705,28.02.2023,ADULT SOCIAL CARE,ALPHA HEALTH CARE LTD,13/02/2023,"-8,837.05",6541-Nursing EMI,THIRD PARTY PAYMENTS,PRIVATE CONTRACTOR,REVENUE
Walsall Council,http://opendatacommunities.org/id/metropolitan-district-council/walsall ,WC147-706,28.02.2023,ADULT SOCIAL CARE,ALPHA HEALTH CARE LTD,13/02/2023,"7,105.00",6541-Residential,THIRD PARTY PAYMENTS,PRIVATE CONTRACTOR,REVENUE
Walsall Council,http://opendatacommunities.org/id/metropolitan-district-council/walsall ,WC147-707,28.02.2023,ADULT SOCIAL CARE,ALPHA HEALTH CARE LTD,13/02/2023,"3,374.96",6541-Residential EMI,THIRD PARTY PAYMENTS,PRIVATE CONTRACTOR,REVENUE
Walsall Council,http://opendatacommunities.org/id/metropolitan-district-council/walsall ,WC147-708,28.02.2023,ADULT SOCIAL CARE,ALPHA HEALTH CARE LTD,13/02/2023,"3,374.96",6541-Residential EMI,THIRD PARTY PAYMENTS,PRIVATE CONTRACTOR,REVENUE
Walsall Council,http://opendatacommunities.org/id/metropolitan-district-council/walsall ,WC147-709,28.02.2023,ADULT SOCIAL CARE,ALPHA HEALTH CARE LTD,13/02/2023,"3,980.00",6541-Residential,THIRD PARTY PAYMENTS,PRIVATE CONTRACTOR,REVENUE
Walsall Council,http://opendatacommunities.org/id/metropolitan-district-council/walsall ,WC147-710,28.02.2023,ADULT SOCIAL CARE,ALPHA HEALTH CARE LTD,13/02/2023,"3,980.00",6541-Residential EMI,THIRD PARTY PAYMENTS,PRIVATE CONTRACTOR,REVENUE
Walsall Council,http://opendatacommunities.org/id/metropolitan-district-council/walsall ,WC147-711,28.02.2023,ADULT SOCIAL CARE,ALPHA HEALTH CARE LTD,13/02/2023,"2,889.52",6541-Residential EMI,THIRD PARTY PAYMENTS,PRIVATE CONTRACTOR,REVENUE
Walsall Council,http://opendatacommunities.org/id/metropolitan-district-council/walsall ,WC147-712,28.02.2023,ADULT SOCIAL CARE,ALPHA HEALTH CARE LTD,13/02/2023,"3,105.16",6541-Nursing EMI,THIRD PARTY PAYMENTS,PRIVATE CONTRACTOR,REVENUE
Walsall Council,http://opendatacommunities.org/id/metropolitan-district-council/walsall ,WC147-713,28.02.2023,ADULT SOCIAL CARE,ALPHA HEALTH CARE LTD,13/02/2023,"6,343.36",6541-Residential,THIRD PARTY PAYMENTS,PRIVATE CONTRACTOR,REVENUE
Walsall Council,http://opendatacommunities.org/id/metropolitan-district-council/walsall ,WC147-714,28.02.2023,ADULT SOCIAL CARE,ALPHA HEALTH CARE LTD,13/02/2023,"2,134.15",6541-Nursing EMI,THIRD PARTY PAYMENTS,PRIVATE CONTRACTOR,REVENUE
Walsall Council,http://opendatacommunities.org/id/metropolitan-district-council/walsall ,WC147-715,28.02.2023,ADULT SOCIAL CARE,ALPHA HEALTH CARE LTD,13/02/2023,"7,600.00",6541-Residential,THIRD PARTY PAYMENTS,PRIVATE CONTRACTOR,REVENUE
Walsall Council,http://opendatacommunities.org/id/metropolitan-district-council/walsall ,WC147-716,28.02.2023,ADULT SOCIAL CARE,ALPHA HEALTH CARE LTD,13/02/2023,"3,085.88",6541-Nursing,THIRD PARTY PAYMENTS,PRIVATE CONTRACTOR,REVENUE
Walsall Council,http://opendatacommunities.org/id/metropolitan-district-council/walsall ,WC147-717,28.02.2023,ADULT SOCIAL CARE,ALPHA HEALTH CARE LTD,13/02/2023,"2,856.24",6541-Nursing,THIRD PARTY PAYMENTS,PRIVATE CONTRACTOR,REVENUE
Walsall Council,http://opendatacommunities.org/id/metropolitan-district-council/walsall ,WC147-718,28.02.2023,ADULT SOCIAL CARE,ALPHA HEALTH CARE LTD,13/02/2023,"2,366.04",6541-Residential EMI,THIRD PARTY PAYMENTS,PRIVATE CONTRACTOR,REVENUE
Walsall Council,http://opendatacommunities.org/id/metropolitan-district-council/walsall ,WC147-719,28.02.2023,ADULT SOCIAL CARE,ALPHA HEALTH CARE LTD,13/02/2023,"2,763.80",6541-Nursing EMI,THIRD PARTY PAYMENTS,PRIVATE CONTRACTOR,REVENUE
Walsall Council,http://opendatacommunities.org/id/metropolitan-district-council/walsall ,WC147-720,28.02.2023,ADULT SOCIAL CARE,ALPHA HEALTH CARE LTD,13/02/2023,"2,366.04",6541-Residential EMI,THIRD PARTY PAYMENTS,PRIVATE CONTRACTOR,REVENUE
Walsall Council,http://opendatacommunities.org/id/metropolitan-district-council/walsall ,WC147-721,28.02.2023,ADULT SOCIAL CARE,ALPHA HEALTH CARE LTD,13/02/2023,"2,998.00",6541-Nursing,THIRD PARTY PAYMENTS,PRIVATE CONTRACTOR,REVENUE
Walsall Council,http://opendatacommunities.org/id/metropolitan-district-council/walsall ,WC147-722,28.02.2023,ADULT SOCIAL CARE,ALPHA HEALTH CARE LTD,13/02/2023,"3,667.80",6541-Nursing EMI,THIRD PARTY PAYMENTS,PRIVATE CONTRACTOR,REVENUE
Walsall Council,http://opendatacommunities.org/id/metropolitan-district-council/walsall ,WC147-723,28.02.2023,ADULT SOCIAL CARE,ALPHA HEALTH CARE LTD,13/02/2023,"2,630.96",6541-Residential,THIRD PARTY PAYMENTS,PRIVATE CONTRACTOR,REVENUE
Walsall Council,http://opendatacommunities.org/id/metropolitan-district-council/walsall ,WC147-724,28.02.2023,ADULT SOCIAL CARE,ALPHA HEALTH CARE LTD,13/02/2023,"3,958.52",6541-Residential,THIRD PARTY PAYMENTS,PRIVATE CONTRACTOR,REVENUE
Walsall Council,http://opendatacommunities.org/id/metropolitan-district-council/walsall ,WC147-725,28.02.2023,ADULT SOCIAL CARE,ALPHA HEALTH CARE LTD,13/02/2023,"-3,836.28",6541-Nursing,THIRD PARTY PAYMENTS,PRIVATE CONTRACTOR,REVENUE
Walsall Council,http://opendatacommunities.org/id/metropolitan-district-council/walsall ,WC147-726,28.02.2023,ADULT SOCIAL CARE,ALPHA HEALTH CARE LTD,13/02/2023,"4,120.00",6541-Nursing EMI,THIRD PARTY PAYMENTS,PRIVATE CONTRACTOR,REVENUE
Walsall Council,http://opendatacommunities.org/id/metropolitan-district-council/walsall ,WC147-727,28.02.2023,ADULT SOCIAL CARE,ALPHA HEALTH CARE LTD,13/02/2023,"1,289.56",6541-Nursing,THIRD PARTY PAYMENTS,PRIVATE CONTRACTOR,REVENUE
Walsall Council,http://opendatacommunities.org/id/metropolitan-district-council/walsall ,WC147-728,28.02.2023,ADULT SOCIAL CARE,ALPHA HEALTH CARE LTD,13/02/2023,"3,090.44",6541-Residential,THIRD PARTY PAYMENTS,PRIVATE CONTRACTOR,REVENUE
Walsall Council,http://opendatacommunities.org/id/metropolitan-district-council/walsall ,WC147-729,28.02.2023,ADULT SOCIAL CARE,ALPHA HEALTH CARE LTD,13/02/2023,"3,520.00",6541-Residential EMI,THIRD PARTY PAYMENTS,PRIVATE CONTRACTOR,REVENUE
Walsall Council,http://opendatacommunities.org/id/metropolitan-district-council/walsall ,WC147-730,28.02.2023,CHILDRENS,ALPHABIOLABS,15/02/2023,460.00,6222-Professional Fees & Services,SUPPLIES & SERVICES,SERVICES,REVENUE
Walsall Council,http://opendatacommunities.org/id/metropolitan-district-council/walsall ,WC147-731,28.02.2023,CHILDRENS,AMAH NURSERIES LIMITED T/A BANANA MOON WALSALL,15/02/2023,"4,496.25",1184-Other-Grants to Other Orgs,SUPPLIES & SERVICES,GRANTS (EXP) & SUBSCRIPTIONS,REVENUE
Walsall Council,http://opendatacommunities.org/id/metropolitan-district-council/walsall ,WC147-732,28.02.2023,CHILDRENS,AMAH NURSERIES LIMITED T/A BANANA MOON WALSALL,15/02/2023,"5,742.00",1184-Other-Grants to Other Orgs,SUPPLIES & SERVICES,GRANTS (EXP) & SUBSCRIPTIONS,REVENUE
Walsall Council,http://opendatacommunities.org/id/metropolitan-district-council/walsall ,WC147-733,28.02.2023,CHILDRENS,AMANS TRAVEL LTD,28/02/2023,"3,800.00",6241-Hire of Vehicle with Driver,TRANSPORT,DIRECT TRANSPORT COSTS,REVENUE
Walsall Council,http://opendatacommunities.org/id/metropolitan-district-council/walsall ,WC147-734,28.02.2023,CHILDRENS,AMANS TRAVEL LTD,28/02/2023,"4,200.00",6241-Hire of Vehicle with Driver,TRANSPORT,DIRECT TRANSPORT COSTS,REVENUE
Walsall Council,http://opendatacommunities.org/id/metropolitan-district-council/walsall ,WC147-735,28.02.2023,CHILDRENS,AMANS TRAVEL LTD,28/02/2023,"2,700.00",6241-Hire of Vehicle with Driver,TRANSPORT,DIRECT TRANSPORT COSTS,REVENUE
Walsall Council,http://opendatacommunities.org/id/metropolitan-district-council/walsall ,WC147-736,28.02.2023,CHILDRENS,AMANS TRAVEL LTD,28/02/2023,"2,700.00",6241-Hire of Vehicle with Driver,TRANSPORT,DIRECT TRANSPORT COSTS,REVENUE
Walsall Council,http://opendatacommunities.org/id/metropolitan-district-council/walsall ,WC147-737,28.02.2023,CHILDRENS,AMANS TRAVEL LTD,28/02/2023,"3,800.00",6241-Hire of Vehicle with Driver,TRANSPORT,DIRECT TRANSPORT COSTS,REVENUE
Walsall Council,http://opendatacommunities.org/id/metropolitan-district-council/walsall ,WC147-738,28.02.2023,ADULT SOCIAL CARE,REDACTED,02/02/2023,"3,409.76",6541-Direct Payment,THIRD PARTY PAYMENTS,PRIVATE CONTRACTOR,REVENUE
Walsall Council,http://opendatacommunities.org/id/metropolitan-district-council/walsall ,WC147-739,28.02.2023,ADULT SOCIAL CARE,REDACTED,02/02/2023,"-3,532.63",6541-Direct Payment,THIRD PARTY PAYMENTS,PRIVATE CONTRACTOR,REVENUE
Walsall Council,http://opendatacommunities.org/id/metropolitan-district-council/walsall ,WC147-740,28.02.2023,ADULT SOCIAL CARE,REDACTED,02/02/2023,"5,972.46",6541-Direct Payment,THIRD PARTY PAYMENTS,PRIVATE CONTRACTOR,REVENUE
Walsall Council,http://opendatacommunities.org/id/metropolitan-district-council/walsall ,WC147-741,28.02.2023,RESOURCES AND TRANSFORMATION,AMBUR RADIO,24/02/2023,"4,166.25",6312-Grants to Other Orgs,SUPPLIES & SERVICES,GRANTS (EXP) & SUBSCRIPTIONS,REVENUE
Walsall Council,http://opendatacommunities.org/id/metropolitan-district-council/walsall ,WC147-742,28.02.2023,ECONOMY & ENVIRONMENT CAPITAL,AMEY LG LIMITED,23/02/2023,"8,666.27",7200-Site Works Contractors,CAPITAL,"NEW CONSTRUCTION,CONVERSION & RENOVATION",CAPITAL
Walsall Council,http://opendatacommunities.org/id/metropolitan-district-council/walsall ,WC147-743,28.02.2023,"ECONOMY, ENVIRONMENT & COMMUNITIES",AMEY OW LTD,17/02/2023,"5,300.99",6411-Professional Fees & Services,SUPPLIES & SERVICES,SERVICES,REVENUE
Walsall Council,http://opendatacommunities.org/id/metropolitan-district-council/walsall ,WC147-744,28.02.2023,CHILDRENS,AMG NURSING CARE SERVICES,06/02/2023,406.60,6220-Professional Fees & Services,SUPPLIES & SERVICES,SERVICES,REVENUE
Walsall Council,http://opendatacommunities.org/id/metropolitan-district-council/walsall ,WC147-745,28.02.2023,CHILDRENS,AMG NURSING CARE SERVICES,06/02/2023,"1,492.67",6220-Professional Fees & Services,SUPPLIES & SERVICES,SERVICES,REVENUE
Walsall Council,http://opendatacommunities.org/id/metropolitan-district-council/walsall ,WC147-746,28.02.2023,CHILDRENS,AMG NURSING CARE SERVICES,24/02/2023,327.45,6220-Professional Fees & Services,SUPPLIES & SERVICES,SERVICES,REVENUE
Walsall Council,http://opendatacommunities.org/id/metropolitan-district-council/walsall ,WC147-747,28.02.2023,CHILDRENS,AMG NURSING CARE SERVICES,06/02/2023,406.60,6220-Professional Fees & Services,SUPPLIES & SERVICES,SERVICES,REVENUE
Walsall Council,http://opendatacommunities.org/id/metropolitan-district-council/walsall ,WC147-748,28.02.2023,CHILDRENS,AMG NURSING CARE SERVICES,06/02/2023,"1,550.12",6220-Professional Fees & Services,SUPPLIES & SERVICES,SERVICES,REVENUE
Walsall Council,http://opendatacommunities.org/id/metropolitan-district-council/walsall ,WC147-749,28.02.2023,CHILDRENS,AMG NURSING CARE SERVICES,20/02/2023,406.60,6220-Professional Fees & Services,SUPPLIES & SERVICES,SERVICES,REVENUE
Walsall Council,http://opendatacommunities.org/id/metropolitan-district-council/walsall ,WC147-750,28.02.2023,CHILDRENS,AMG NURSING CARE SERVICES,20/02/2023,995.80,6220-Professional Fees & Services,SUPPLIES & SERVICES,SERVICES,REVENUE
Walsall Council,http://opendatacommunities.org/id/metropolitan-district-council/walsall ,WC147-751,28.02.2023,CHILDRENS,AMG NURSING CARE SERVICES,20/02/2023,"1,550.12",6220-Professional Fees & Services,SUPPLIES & SERVICES,SERVICES,REVENUE
Walsall Council,http://opendatacommunities.org/id/metropolitan-district-council/walsall ,WC147-752,28.02.2023,CHILDRENS,AMG NURSING CARE SERVICES,24/02/2023,263.20,6220-Professional Fees & Services,SUPPLIES & SERVICES,SERVICES,REVENUE
Walsall Council,http://opendatacommunities.org/id/metropolitan-district-council/walsall ,WC147-753,28.02.2023,CHILDRENS,REDACTED,08/02/2023,614.40,6223-Foster Carers Maintenance Allowance,TRANSFER PAYMENTS,CHILDREN SOCIAL SERVICES CLIENT,REVENUE
Walsall Council,http://opendatacommunities.org/id/metropolitan-district-council/walsall ,WC147-754,28.02.2023,CHILDRENS,REDACTED,08/02/2023,503.92,6223-Internal Foster Carers-Carer Fees,TRANSFER PAYMENTS,CHILDREN SOCIAL SERVICES CLIENT,REVENUE
Walsall Council,http://opendatacommunities.org/id/metropolitan-district-council/walsall ,WC147-755,28.02.2023,CHILDRENS,REDACTED,13/02/2023,536.57,6223-Independent Foster Care-Oth Agency Provision,THIRD PARTY PAYMENTS,PRIVATE CONTRACTOR,REVENUE
Walsall Council,http://opendatacommunities.org/id/metropolitan-district-council/walsall ,WC147-756,28.02.2023,ADULT SOCIAL CARE,ANCHOR CARE HOMES LTD,13/02/2023,"2,366.04",6541-Residential EMI,THIRD PARTY PAYMENTS,PRIVATE CONTRACTOR,REVENUE
Walsall Council,http://opendatacommunities.org/id/metropolitan-district-council/walsall ,WC147-757,28.02.2023,ADULT SOCIAL CARE,ANCHOR CAREHOMES LTD - HARDEN HALL,13/02/2023,"2,366.04",6541-Residential EMI,THIRD PARTY PAYMENTS,PRIVATE CONTRACTOR,REVENUE
Walsall Council,http://opendatacommunities.org/id/metropolitan-district-council/walsall ,WC147-758,28.02.2023,ADULT SOCIAL CARE,ANCHOR CAREHOMES LTD - HARDEN HALL,13/02/2023,"2,366.04",6541-Residential EMI,THIRD PARTY PAYMENTS,PRIVATE CONTRACTOR,REVENUE
Walsall Council,http://opendatacommunities.org/id/metropolitan-district-council/walsall ,WC147-759,28.02.2023,ADULT SOCIAL CARE,ANCHOR CAREHOMES LTD - HARDEN HALL,13/02/2023,"2,366.04",6541-Residential EMI,THIRD PARTY PAYMENTS,PRIVATE CONTRACTOR,REVENUE
Walsall Council,http://opendatacommunities.org/id/metropolitan-district-council/walsall ,WC147-760,28.02.2023,ADULT SOCIAL CARE,ANCHOR CAREHOMES LTD - HARDEN HALL,13/02/2023,"2,366.04",6541-Residential EMI,THIRD PARTY PAYMENTS,PRIVATE CONTRACTOR,REVENUE
Walsall Council,http://opendatacommunities.org/id/metropolitan-district-council/walsall ,WC147-761,28.02.2023,ADULT SOCIAL CARE,ANCHOR CAREHOMES LTD - HARDEN HALL,13/02/2023,"2,566.04",6541-Residential EMI,THIRD PARTY PAYMENTS,PRIVATE CONTRACTOR,REVENUE
Walsall Council,http://opendatacommunities.org/id/metropolitan-district-council/walsall ,WC147-762,28.02.2023,ADULT SOCIAL CARE,ANCHOR CAREHOMES LTD - HARDEN HALL,13/02/2023,"2,566.04",6541-Residential EMI,THIRD PARTY PAYMENTS,PRIVATE CONTRACTOR,REVENUE
Walsall Council,http://opendatacommunities.org/id/metropolitan-district-council/walsall ,WC147-763,28.02.2023,ADULT SOCIAL CARE,ANCHOR CAREHOMES LTD - HARDEN HALL,13/02/2023,"2,095.40",6541-Residential,THIRD PARTY PAYMENTS,PRIVATE CONTRACTOR,REVENUE
Walsall Council,http://opendatacommunities.org/id/metropolitan-district-council/walsall ,WC147-764,28.02.2023,ADULT SOCIAL CARE,ANCHOR CAREHOMES LTD - HARDEN HALL,13/02/2023,"2,726.04",6541-Residential EMI,THIRD PARTY PAYMENTS,PRIVATE CONTRACTOR,REVENUE
Walsall Council,http://opendatacommunities.org/id/metropolitan-district-council/walsall ,WC147-765,28.02.2023,ADULT SOCIAL CARE,ANCHOR CAREHOMES LTD - HARDEN HALL,13/02/2023,"2,095.40",6541-Residential,THIRD PARTY PAYMENTS,PRIVATE CONTRACTOR,REVENUE
Walsall Council,http://opendatacommunities.org/id/metropolitan-district-council/walsall ,WC147-766,28.02.2023,ADULT SOCIAL CARE,ANCHOR CAREHOMES LTD - HARDEN HALL,13/02/2023,"5,220.33",6541-Residential EMI,THIRD PARTY PAYMENTS,PRIVATE CONTRACTOR,REVENUE
Walsall Council,http://opendatacommunities.org/id/metropolitan-district-council/walsall ,WC147-767,28.02.2023,ADULT SOCIAL CARE,ANCHOR CAREHOMES LTD - HARDEN HALL,13/02/2023,"1,460.38",6554-Professional Services-Priv Contractor & Other Agencies,THIRD PARTY PAYMENTS,PRIVATE CONTRACTOR,REVENUE
Walsall Council,http://opendatacommunities.org/id/metropolitan-district-council/walsall ,WC147-768,28.02.2023,ADULT SOCIAL CARE,ANCHOR CAREHOMES LTD - HARDEN HALL,13/02/2023,"2,366.04",6541-Residential EMI,THIRD PARTY PAYMENTS,PRIVATE CONTRACTOR,REVENUE
Walsall Council,http://opendatacommunities.org/id/metropolitan-district-council/walsall ,WC147-769,28.02.2023,ADULT SOCIAL CARE,ANCHOR CAREHOMES LTD - HARDEN HALL,13/02/2023,"2,726.04",6541-Residential EMI,THIRD PARTY PAYMENTS,PRIVATE CONTRACTOR,REVENUE
Walsall Council,http://opendatacommunities.org/id/metropolitan-district-council/walsall ,WC147-770,28.02.2023,ADULT SOCIAL CARE,ANCHOR CAREHOMES LTD - HARDEN HALL,13/02/2023,"2,698.04",6541-Residential EMI,THIRD PARTY PAYMENTS,PRIVATE CONTRACTOR,REVENUE
Walsall Council,http://opendatacommunities.org/id/metropolitan-district-council/walsall ,WC147-771,28.02.2023,ADULT SOCIAL CARE,ANCHOR CAREHOMES LTD - HARDEN HALL,13/02/2023,"2,366.04",6541-Residential EMI,THIRD PARTY PAYMENTS,PRIVATE CONTRACTOR,REVENUE
Walsall Council,http://opendatacommunities.org/id/metropolitan-district-council/walsall ,WC147-772,28.02.2023,ADULT SOCIAL CARE,ANCHOR CAREHOMES LTD - HARDEN HALL,13/02/2023,"5,733.00",6541-Residential EMI,THIRD PARTY PAYMENTS,PRIVATE CONTRACTOR,REVENUE
Walsall Council,http://opendatacommunities.org/id/metropolitan-district-council/walsall ,WC147-773,28.02.2023,ADULT SOCIAL CARE,ANCHOR CAREHOMES LTD - HARDEN HALL,13/02/2023,"2,726.04",6541-Residential EMI,THIRD PARTY PAYMENTS,PRIVATE CONTRACTOR,REVENUE
Walsall Council,http://opendatacommunities.org/id/metropolitan-district-council/walsall ,WC147-774,28.02.2023,ADULT SOCIAL CARE,ANCHOR CAREHOMES LTD - HARDEN HALL,13/02/2023,"2,095.40",6541-Residential,THIRD PARTY PAYMENTS,PRIVATE CONTRACTOR,REVENUE
Walsall Council,http://opendatacommunities.org/id/metropolitan-district-council/walsall ,WC147-775,28.02.2023,ADULT SOCIAL CARE,ANCHOR CAREHOMES LTD - HARDEN HALL,13/02/2023,"2,726.04",6541-Residential EMI,THIRD PARTY PAYMENTS,PRIVATE CONTRACTOR,REVENUE
Walsall Council,http://opendatacommunities.org/id/metropolitan-district-council/walsall ,WC147-776,28.02.2023,ADULT SOCIAL CARE,ANCHOR CAREHOMES LTD - HARDEN HALL,13/02/2023,"1,140.00",6541-Residential,THIRD PARTY PAYMENTS,PRIVATE CONTRACTOR,REVENUE
Walsall Council,http://opendatacommunities.org/id/metropolitan-district-council/walsall ,WC147-777,28.02.2023,ADULT SOCIAL CARE,ANCHOR CAREHOMES LTD - HARDEN HALL,13/02/2023,"8,859.63",6541-Residential EMI,THIRD PARTY PAYMENTS,PRIVATE CONTRACTOR,REVENUE
Walsall Council,http://opendatacommunities.org/id/metropolitan-district-council/walsall ,WC147-778,28.02.2023,ADULT SOCIAL CARE,ANCHOR CAREHOMES LTD - HARDEN HALL,13/02/2023,"2,366.04",6541-Residential EMI,THIRD PARTY PAYMENTS,PRIVATE CONTRACTOR,REVENUE
Walsall Council,http://opendatacommunities.org/id/metropolitan-district-council/walsall ,WC147-779,28.02.2023,ADULT SOCIAL CARE,ANCHOR CAREHOMES LTD - HARDEN HALL,13/02/2023,"2,366.04",6541-Residential EMI,THIRD PARTY PAYMENTS,PRIVATE CONTRACTOR,REVENUE
Walsall Council,http://opendatacommunities.org/id/metropolitan-district-council/walsall ,WC147-780,28.02.2023,ADULT SOCIAL CARE,ANCHOR CAREHOMES LTD - HARDEN HALL,13/02/2023,"2,366.04",6541-Residential EMI,THIRD PARTY PAYMENTS,PRIVATE CONTRACTOR,REVENUE
Walsall Council,http://opendatacommunities.org/id/metropolitan-district-council/walsall ,WC147-781,28.02.2023,ADULT SOCIAL CARE,ANCHOR CAREHOMES LTD - HARDEN HALL,13/02/2023,"2,366.04",6541-Residential EMI,THIRD PARTY PAYMENTS,PRIVATE CONTRACTOR,REVENUE
Walsall Council,http://opendatacommunities.org/id/metropolitan-district-council/walsall ,WC147-782,28.02.2023,ADULT SOCIAL CARE,ANCHOR CAREHOMES LTD - HARDEN HALL,13/02/2023,"2,417.00",6541-Residential EMI,THIRD PARTY PAYMENTS,PRIVATE CONTRACTOR,REVENUE
Walsall Council,http://opendatacommunities.org/id/metropolitan-district-council/walsall ,WC147-783,28.02.2023,ADULT SOCIAL CARE,ANCHOR CAREHOMES LTD - HARDEN HALL,13/02/2023,"2,726.04",6541-Residential EMI,THIRD PARTY PAYMENTS,PRIVATE CONTRACTOR,REVENUE
Walsall Council,http://opendatacommunities.org/id/metropolitan-district-council/walsall ,WC147-784,28.02.2023,ADULT SOCIAL CARE,ANCHOR CAREHOMES LTD - HARDEN HALL,13/02/2023,"2,726.04",6541-Residential EMI,THIRD PARTY PAYMENTS,PRIVATE CONTRACTOR,REVENUE
Walsall Council,http://opendatacommunities.org/id/metropolitan-district-council/walsall ,WC147-785,28.02.2023,ADULT SOCIAL CARE,ANCHOR CAREHOMES LTD - HARDEN HALL,13/02/2023,"2,646.04",6541-Residential EMI,THIRD PARTY PAYMENTS,PRIVATE CONTRACTOR,REVENUE
Walsall Council,http://opendatacommunities.org/id/metropolitan-district-council/walsall ,WC147-786,28.02.2023,ADULT SOCIAL CARE,ANCHOR CAREHOMES LTD - HARDEN HALL,13/02/2023,"2,095.40",6541-Residential,THIRD PARTY PAYMENTS,PRIVATE CONTRACTOR,REVENUE
Walsall Council,http://opendatacommunities.org/id/metropolitan-district-council/walsall ,WC147-787,28.02.2023,ADULT SOCIAL CARE,ANCHOR CAREHOMES LTD - HARDEN HALL,13/02/2023,"2,366.04",6541-Residential EMI,THIRD PARTY PAYMENTS,PRIVATE CONTRACTOR,REVENUE
Walsall Council,http://opendatacommunities.org/id/metropolitan-district-council/walsall ,WC147-788,28.02.2023,CHILDRENS,REDACTED,08/02/2023,341.72,6223-Special Guardianship Orders,TRANSFER PAYMENTS,CHILDREN SOCIAL SERVICES CLIENT,REVENUE
